Local authority department which incurred the expenditure,Service Division,Cost Centre,Summary of the Purpose of Expenditure,Expense Type,Expense Code,Detailed Expense Type,Date of Transaction,Transaction Number,Beneficiary,Merchant Category Number,Merchant Category,Gross Amount,VAT,Net Amount
Children and Young Peoples Services,Head of Education,070169,Durham SSP,Supplies and Services,304403,Equipment and Materials,01-Oct-2017,000006538433375,Amazon EU,5969,Other consumables,8.23,0.00,8.23
Children and Young Peoples Services,Head of Education,070169,Durham SSP,Supplies and Services,304403,Equipment and Materials,01-Oct-2017,000006538433377,Amazon EU,5969,Other consumables,8.23,0.00,8.23
Regeneration and Local Services,Economic Development and Housing,031576,B& B - Temp Accom,Supplies and Services,364320,Grants to Voluntary Organisations,01-Oct-2017,000006538433383,TRAVELODGE,3615,Accommodation assistance,38.00,6.33,31.67
Regeneration and Local Services,Culture & Sport,054813,Gala Theatre - Technical,Supplies and Services,312011,Newspapers Books and Periodicals,01-Oct-2017,000006538433471,Amazon UK Marketplace,5942,Books-school library,13.69,0.00,13.69
Regeneration and Local Services,Economic Development and Housing,030708,VCD - Marketing & Information,Supplies and Services,304999,Equipment and Materials,01-Oct-2017,000006538433495,GOOGLE SVCSAPPS_visit,5968,Misc equipment tools and materials,6.60,0.00,6.60
Resources,Resources Management,069000,Resources Management,Supplies and Services,324117,Provisions,01-Oct-2017,000006538433813,TESCO STORES 2371,5411,Catering costs - provisions,3.00,0.00,3.00
Regeneration and Local Services,Culture & Sport,054813,Gala Theatre - Technical,Supplies and Services,312011,Newspapers Books and Periodicals,01-Oct-2017,000006546040973,AMAZON.CO.UK,5942,Books-school library,24.89,0.00,24.89
Regeneration and Local Services,Economic Development and Housing,030699,Business Growth and Innovation General,Transport,235057,Public Transport,02-Oct-2017,000006538433317,ROYAL DUTCH AIRLINES (KLM),3010,Staff travelling,0.61,0.00,0.61
Regeneration and Local Services,Economic Development and Housing,030699,Business Growth and Innovation General,Supplies and Services,352001,Conference Expenses,02-Oct-2017,000006538433319,SWISSOTEL THE BOSPHORU,7011,Conferencesseminars fees etc,21.75,0.00,21.75
Children and Young Peoples Services,Head of Education,071801,Selby Cottage Childcare Centre,Supplies and Services,324117,Provisions,02-Oct-2017,000006546040539,ASDA HOME SHOPPING,5411,Catering costs - provisions,79.02,0.00,79.02
Children and Young Peoples Services,Head of Education,054640,Durham Learning Resources,Supplies and Services,312011,Newspapers Books and Periodicals,02-Oct-2017,000006546040555,Amazon UK Marketplace,5942,Books-school library,4.98,0.00,4.98
Regeneration and Local Services,Economic Development and Housing,030732,Rural Employability Project - South Durham,Employees,040149,Recruitment Instruction and Training,02-Oct-2017,000006546040577,WWW.UKCONSTRUCTIONSAFE,8299,Training-all costs,39.00,0.00,39.00
Children and Young Peoples Services,Head of Early Help Assessment and Safeguarding,088037,One Point YEI,Supplies and Services,312011,Newspapers Books and Periodicals,02-Oct-2017,000006546040599,Amazon UK Marketplace,5942,Books-school library,29.94,0.00,29.94
Adult and Health Services,Head of Adults,055302,Durham Pathways,Supplies and Services,324117,Provisions,02-Oct-2017,000006546040619,LIDL UK,5411,Catering costs - provisions,1.89,0.00,1.89
Regeneration and Local Services,Direct Services,010383,C&G - South Street Cleansing,Supplies and Services,304221,Equipment and Materials,02-Oct-2017,000006546040633,R DEFTY,5200,Direct materials,22.00,0.00,22.00
Regeneration and Local Services,Economic Development and Housing,030699,Business Growth and Innovation General,Supplies and Services,312011,Newspapers Books and Periodicals,02-Oct-2017,000006546040663,FASTHOSTS INTERNET,4816,Books-school library,59.99,10.00,49.99
Children and Young Peoples Services,Head of Looked After Provision Permanence and Care Leavers,085342,9 Cedar Drive Aycliffe,Supplies and Services,324117,Provisions,02-Oct-2017,000006546040675,TESCO STORES 2916,5411,Catering costs - provisions,9.32,0.00,9.32
Adult and Health Services,Head of Adults,055302,Durham Pathways,Supplies and Services,324117,Provisions,02-Oct-2017,000006546040749,W M MORRISON PLC,5411,Catering costs - provisions,8.45,0.00,8.45
Adult and Health Services,Head of Adults,055302,Durham Pathways,Supplies and Services,324117,Provisions,02-Oct-2017,000006546040753,W M MORRISON PLC,5411,Catering costs - provisions,3.97,0.00,3.97
Regeneration and Local Services,Economic Development and Housing,030737,Durham Works Flexible Fund,Transport,230031,Contract Hire,02-Oct-2017,000006546040767,WWW.SIMPLYGO.COM,4131,Pupils-transport to play fields etc,27.00,0.00,27.00
Regeneration and Local Services,Economic Development and Housing,030737,Durham Works Flexible Fund,Transport,230031,Contract Hire,02-Oct-2017,000006546040769,ARRIVA NORTH EAST,4131,Pupils-transport to play fields etc,25.00,0.00,25.00
Regeneration and Local Services,Economic Development and Housing,030737,Durham Works Flexible Fund,Transport,230031,Contract Hire,02-Oct-2017,000006546040775,ARRIVA NORTH EAST,4131,Pupils-transport to play fields etc,25.00,0.00,25.00
Regeneration and Local Services,Direct Services,021242,Catering - County Hall,Supplies and Services,324117,Provisions,02-Oct-2017,000006546040781,WWW.ADELIEFOODS.CO.UK,5499,Catering costs - provisions,140.47,0.00,140.47
Regeneration and Local Services,Direct Services,021242,Catering - County Hall,Supplies and Services,324117,Provisions,02-Oct-2017,000006546040785,WWW.ADELIEFOODS.CO.UK,5499,Catering costs - provisions,134.90,0.00,134.90
Regeneration and Local Services,Direct Services,021242,Catering - County Hall,Supplies and Services,324117,Provisions,02-Oct-2017,000006546040789,WWW.ADELIEFOODS.CO.UK,5499,Catering costs - provisions,133.15,0.00,133.15
Regeneration and Local Services,Direct Services,021242,Catering - County Hall,Supplies and Services,324117,Provisions,02-Oct-2017,000006546040799,WWW.ADELIEFOODS.CO.UK,5499,Catering costs - provisions,82.44,0.00,82.44
Regeneration and Local Services,Direct Services,021242,Catering - County Hall,Supplies and Services,324117,Provisions,02-Oct-2017,000006546040803,WWW.ADELIEFOODS.CO.UK,5499,Catering costs - provisions,48.49,0.00,48.49
Regeneration and Local Services,Direct Services,021242,Catering - County Hall,Supplies and Services,324117,Provisions,02-Oct-2017,000006546040807,WWW.ADELIEFOODS.CO.UK,5499,Catering costs - provisions,47.00,0.00,47.00
Children and Young Peoples Services,Head of Education,079599,Psychological-HQ,Employees,040149,Recruitment Instruction and Training,02-Oct-2017,000006546040873,WEBSTORE,8220,Training-all costs,50.00,8.33,41.67
Regeneration and Local Services,Economic Development and Housing,030725,Community Economic Development,Transport,235057,Public Transport,02-Oct-2017,000006546040901,ARRIVA NORTH EAST,4131,Staff travelling,25.00,0.00,25.00
Children and Young Peoples Services,Head of Early Help Assessment and Safeguarding,088063,Bishop Auckland 0 - 5,Supplies and Services,324117,Provisions,02-Oct-2017,000006546040923,WM MORRISON 040,5411,Catering costs - provisions,10.17,0.00,10.17
Children and Young Peoples Services,Head of Education,071732,Dean Bank Childcare,Supplies and Services,324117,Provisions,02-Oct-2017,000006546040947,ASDA HOME SHOPPING,5411,Catering costs - provisions,53.81,0.00,53.81
Children and Young Peoples Services,Head of Education,071732,Dean Bank Childcare,Supplies and Services,324117,Provisions,02-Oct-2017,000006546040953,ASDA HOME SHOPPING,5411,Catering costs - provisions,48.46,0.00,48.46
Children and Young Peoples Services,Head of Education,071732,Dean Bank Childcare,Supplies and Services,324117,Provisions,02-Oct-2017,000006546040961,ASDA HOME SHOPPING,5411,Catering costs - provisions,-0.40,0.00,-0.40
Regeneration and Local Services,Culture & Sport,054813,Gala Theatre - Technical,Supplies and Services,312011,Newspapers Books and Periodicals,02-Oct-2017,000006546040979,AMAZON.CO.UK,5942,Books-school library,47.06,0.00,47.06
Regeneration and Local Services,Economic Development and Housing,030737,Durham Works Flexible Fund,Transport,235057,Public Transport,02-Oct-2017,000006546040983,ARRIVA NORTH EAST,4131,Staff travelling,85.50,0.00,85.50
Regeneration and Local Services,Economic Development and Housing,030737,Durham Works Flexible Fund,Transport,235057,Public Transport,02-Oct-2017,000006546040989,ARRIVA NORTH EAST,4131,Staff travelling,25.00,0.00,25.00
Children and Young Peoples Services,Head of Looked After Provision Permanence and Care Leavers,085952,Secure Education,Supplies and Services,324117,Provisions,02-Oct-2017,000006546041023,TESCO STORES 6329,5411,Catering costs - provisions,62.20,0.00,62.20
Regeneration and Local Services,Direct Services,010301,C&G - North Grounds Maintenance,Supplies and Services,304403,Equipment and Materials,02-Oct-2017,000006546041057,FRED WILLIAMSON,5231,Other consumables,84.59,0.00,84.59
Regeneration and Local Services,Culture & Sport,054815,Gala Theatre Stage School,Supplies and Services,304999,Equipment and Materials,02-Oct-2017,000006546041265,BIGDUG LIMITED,5072,Misc equipment tools and materials,467.76,0.00,467.76
Regeneration and Local Services,Direct Services,021234,Catering - Locomotion,Supplies and Services,324117,Provisions,02-Oct-2017,000006546041283,WWW.ADELIEFOODS.CO.UK,5499,Catering costs - provisions,82.57,0.00,82.57
Regeneration and Local Services,Direct Services,021234,Catering - Locomotion,Supplies and Services,324117,Provisions,02-Oct-2017,000006546041291,WWW.ADELIEFOODS.CO.UK,5499,Catering costs - provisions,62.20,0.00,62.20
Regeneration and Local Services,Direct Services,021234,Catering - Locomotion,Supplies and Services,324117,Provisions,02-Oct-2017,000006546041297,WWW.ADELIEFOODS.CO.UK,5499,Catering costs - provisions,35.28,0.00,35.28
Regeneration and Local Services,Direct Services,021234,Catering - Locomotion,Supplies and Services,324117,Provisions,02-Oct-2017,000006546041299,WWW.ADELIEFOODS.CO.UK,5499,Catering costs - provisions,35.28,0.00,35.28
Regeneration and Local Services,Direct Services,021234,Catering - Locomotion,Supplies and Services,324117,Provisions,02-Oct-2017,000006546041305,FREEMAN CATERING BUTCH,5422,Catering costs - provisions,188.76,0.00,188.76
Regeneration and Local Services,Direct Services,021234,Catering - Locomotion,Supplies and Services,324117,Provisions,02-Oct-2017,000006546041309,FREEMAN CATERING BUTCH,5422,Catering costs - provisions,62.92,0.00,62.92
Regeneration and Local Services,Direct Services,010525,Catering - Green Lane,Supplies and Services,324117,Provisions,02-Oct-2017,000006546041355,WWW.ADELIEFOODS.CO.UK,5499,Catering costs - provisions,36.90,0.00,36.90
Regeneration and Local Services,Direct Services,010525,Catering - Green Lane,Supplies and Services,324117,Provisions,02-Oct-2017,000006546041363,WWW.ADELIEFOODS.CO.UK,5499,Catering costs - provisions,36.90,0.00,36.90
Children and Young Peoples Services,Head of Education,076006,Music Service Events,Supplies and Services,304403,Equipment and Materials,02-Oct-2017,000006546041391,WWW.TROPHYSTORE.CO.UK,5947,Other consumables,13.48,0.00,13.48
Children and Young Peoples Services,Head of Early Help Assessment and Safeguarding,085556,Child Protection Team Stanley,Supplies and Services,372009,Subscriptions,02-Oct-2017,000006546041459,CUMBRIA COUNTY COU,7375,Subscriptions,65.00,0.00,65.00
Regeneration and Local Services,Economic Development and Housing,030544,Rural Employability - Client Engagement,Supplies and Services,384700,Miscellaneous Expenses,02-Oct-2017,000006546041481,SCREWFIX,5211,Miscellaneous grants,42.99,0.00,42.99
Regeneration and Local Services,Economic Development and Housing,030749,Employability - Youth Contract,Transport,230031,Contract Hire,02-Oct-2017,000006546041487,ARRIVA NORTH EAST,4131,Pupils-transport to play fields etc,3.80,0.00,3.80
Regeneration and Local Services,Economic Development and Housing,030749,Employability - Youth Contract,Transport,230031,Contract Hire,02-Oct-2017,000006546041491,ARRIVA NORTH EAST,4131,Pupils-transport to play fields etc,60.00,0.00,60.00
Regeneration and Local Services,Economic Development and Housing,030749,Employability - Youth Contract,Transport,230031,Contract Hire,02-Oct-2017,000006546041497,ARRIVA NORTH EAST,4131,Pupils-transport to play fields etc,85.50,0.00,85.50
Resources,Corporate Finance,069387,Procurement Team A Staff,Supplies and Services,364320,Grants to Voluntary Organisations,02-Oct-2017,000006546041585,WWW.MALMAISON.COM,7011,Accommodation assistance,111.00,0.00,111.00
Regeneration and Local Services,Economic Development and Housing,031576,B& B - Temp Accom,Supplies and Services,364320,Grants to Voluntary Organisations,02-Oct-2017,000006546041651,TRAVELODGE,3615,Accommodation assistance,41.00,6.83,34.17
Regeneration and Local Services,Economic Development and Housing,031576,B& B - Temp Accom,Supplies and Services,364320,Grants to Voluntary Organisations,02-Oct-2017,000006546041655,TRAVELODGE,3615,Accommodation assistance,42.00,7.00,35.00
Regeneration and Local Services,Economic Development and Housing,031576,B& B - Temp Accom,Supplies and Services,364320,Grants to Voluntary Organisations,02-Oct-2017,000006546041661,TRAVELODGE,3615,Accommodation assistance,58.00,9.67,48.33
Regeneration and Local Services,Economic Development and Housing,031576,B& B - Temp Accom,Supplies and Services,364320,Grants to Voluntary Organisations,02-Oct-2017,000006546041665,TRAVELODGE,3615,Accommodation assistance,46.00,7.67,38.33
Regeneration and Local Services,Direct Services,010301,C&G - North Grounds Maintenance,Supplies and Services,304403,Equipment and Materials,02-Oct-2017,000006546041673,TIMPSON LTD,7251,Other consumables,24.00,0.00,24.00
Regeneration and Local Services,Direct Services,021235,Catering - Wharton Park,Supplies and Services,324117,Provisions,02-Oct-2017,000006546041845,WWW.ADELIEFOODS.CO.UK,5499,Catering costs - provisions,53.77,0.00,53.77
Regeneration and Local Services,Direct Services,021235,Catering - Wharton Park,Supplies and Services,324117,Provisions,02-Oct-2017,000006546041851,WWW.ADELIEFOODS.CO.UK,5499,Catering costs - provisions,29.48,0.00,29.48
Regeneration and Local Services,Direct Services,021235,Catering - Wharton Park,Supplies and Services,324117,Provisions,02-Oct-2017,000006546041857,WWW.ADELIEFOODS.CO.UK,5499,Catering costs - provisions,27.75,0.00,27.75
Regeneration and Local Services,Culture & Sport,054812,Gala Theatre - Catering etc,Supplies and Services,324117,Provisions,02-Oct-2017,000006549641943,BATLEYS PERTH,5300,Catering costs - provisions,99.41,0.00,99.41
Children and Young Peoples Services,Head of Looked After Provision Permanence and Care Leavers,085955,Auckland,Supplies and Services,304259,Equipment and Materials,02-Oct-2017,000006549641987,AMAZON UK RETAIL AMAZO,5999,Equipment-purchase and rental,10.82,0.00,10.82
Regeneration and Local Services,Culture & Sport,054235,Bishop Auckland Town Hall Cafe,Supplies and Services,324117,Provisions,02-Oct-2017,000006549642107,BATLEYS PERTH,5300,Catering costs - provisions,-4.16,0.00,-4.16
Regeneration and Local Services,Direct Services,021324,Catering - Meadowfield,Supplies and Services,324117,Provisions,02-Oct-2017,000006549642109,BATLEYS PERTH,5300,Catering costs - provisions,-1.49,0.00,-1.49
Regeneration and Local Services,Direct Services,021235,Catering - Wharton Park,Supplies and Services,324117,Provisions,02-Oct-2017,000006549642173,BATLEYS PERTH,5300,Catering costs - provisions,89.16,14.86,74.30
Regeneration and Local Services,Direct Services,021235,Catering - Wharton Park,Supplies and Services,324117,Provisions,02-Oct-2017,000006549642173 - 1,BATLEYS PERTH,5300,Catering costs - provisions,25.25,,25.25
Children and Young Peoples Services,Head of Education,071801,Selby Cottage Childcare Centre,Supplies and Services,304259,Equipment and Materials,03-Oct-2017,000006546040549,ITUNES.COM/BILL,5735,Equipment-purchase and rental,4.75,0.00,4.75
Children and Young Peoples Services,Head of Looked After Provision Permanence and Care Leavers,085341,High Etherley Satelite Home,Supplies and Services,324117,Provisions,03-Oct-2017,000006549641837,TESCO STORES 6329,5411,Catering costs - provisions,31.41,0.00,31.41
Children and Young Peoples Services,Head of Looked After Provision Permanence and Care Leavers,085341,High Etherley Satelite Home,Supplies and Services,324117,Provisions,03-Oct-2017,000006549641839,TESCO STORES 6329,5411,Catering costs - provisions,4.00,0.00,4.00
Children and Young Peoples Services,Head of Early Help Assessment and Safeguarding,085100,Strategic Manager Families First Area South,Supplies and Services,384199,Miscellaneous Expenses,03-Oct-2017,000006549641843,SUNDERLAND CC,9399,Other hired and contracted services,7.00,0.00,7.00
Resources,Digital and Customer Services,069010,Administration,Supplies and Services,344033,Telephones,03-Oct-2017,000006549641845,Amazon UK Marketplace,5942,Telephones general-all costs,63.84,0.00,63.84
Regeneration and Local Services,Economic Development and Housing,030676,Business Development - Durham City Promotions,Supplies and Services,304403,Equipment and Materials,03-Oct-2017,000006549641847,WWW.CUTPRICEWHOLESALER,5251,Other consumables,494.64,82.44,412.20
Regeneration and Local Services,Economic Development and Housing,030676,Business Development - Durham City Promotions,Supplies and Services,304403,Equipment and Materials,03-Oct-2017,000006549641849,WWW.CUTPRICEWHOLESALER,5251,Other consumables,464.40,77.40,387.00
Regeneration and Local Services,Economic Development and Housing,030676,Business Development - Durham City Promotions,Supplies and Services,304403,Equipment and Materials,03-Oct-2017,000006549641851,WWW.CUTPRICEWHOLESALER,5251,Other consumables,453.60,75.60,378.00
Dedicated Schools Grant,Dedicated Schools Grant,079050,SENSS-Sensory,Supplies and Services,304259,Equipment and Materials,03-Oct-2017,000006549641899,WILKO DURHAM 426,5722,Equipment-purchase and rental,8.40,0.00,8.40
Regeneration and Local Services,Economic Development and Housing,030699,Business Growth and Innovation General,Supplies and Services,304403,Equipment and Materials,03-Oct-2017,000006549641901,ADOBE CREATIVE CLOUD,5734,Other consumables,50.57,0.00,50.57
Children and Young Peoples Services,Head of Looked After Provision Permanence and Care Leavers,085342,9 Cedar Drive Aycliffe,Supplies and Services,304403,Equipment and Materials,03-Oct-2017,000006549641905,BARGAIN BUYS RETAIL LT,5065,Other consumables,179.98,0.00,179.98
Adult and Health Services,Head of Adults,055302,Durham Pathways,Supplies and Services,328041,Clothing Uniforms and Laundry,03-Oct-2017,000006549641915,DURHAM CHRISTIAN PARTN,5651,Clothing uniforms and laundry,34.50,0.00,34.50
Regeneration and Local Services,Economic Development and Housing,030737,Durham Works Flexible Fund,Supplies and Services,328041,Clothing Uniforms and Laundry,03-Oct-2017,000006549641921,ASDA STORES LTD,5411,Clothing uniforms and laundry,67.05,0.00,67.05
Regeneration and Local Services,Economic Development and Housing,030737,Durham Works Flexible Fund,Supplies and Services,384999,Miscellaneous Expenses,03-Oct-2017,000006549641923,ASDA STORES LTD,5411,Other expenses,10.00,0.00,10.00
Regeneration and Local Services,Direct Services,021242,Catering - County Hall,Supplies and Services,324117,Provisions,03-Oct-2017,000006549641925,JR HOLLAND FOODSERVICE,5422,Catering costs - provisions,74.21,0.00,74.21
Regeneration and Local Services,Direct Services,021242,Catering - County Hall,Supplies and Services,324117,Provisions,03-Oct-2017,000006549641927,JR HOLLAND FOODSERVICE,5422,Catering costs - provisions,13.16,0.00,13.16
Children and Young Peoples Services,Head of Education,070169,Durham SSP,Transport,235057,Public Transport,03-Oct-2017,000006549641929,PARK INN TELFORD,7011,Staff travelling,126.40,21.07,105.33
Regeneration and Local Services,Economic Development and Housing,030554,International Relations,Transport,235057,Public Transport,03-Oct-2017,000006549641937,NATIONALHOLIDAYS.COM,4722,Staff travelling,765.31,0.00,765.31
Regeneration and Local Services,Economic Development and Housing,030554,International Relations,Transport,235057,Public Transport,03-Oct-2017,000006549641939,EAST COAST MAINLINE CO,4112,Staff travelling,297.70,0.00,297.70
Regeneration and Local Services,Culture & Sport,054812,Gala Theatre - Catering etc,Supplies and Services,324117,Provisions,03-Oct-2017,000006549641941,JR HOLLAND FOODSERVICE,5422,Catering costs - provisions,55.58,0.00,55.58
Children and Young Peoples Services,Head of Looked After Provision Permanence and Care Leavers,085362,LAC & Permanence Team 2,Supplies and Services,384999,Miscellaneous Expenses,03-Oct-2017,000006549641953,GRO HM PASSPORT OFFICE,9399,Other expenses,23.40,0.00,23.40
Regeneration and Local Services,Economic Development and Housing,031576,B& B - Temp Accom,Supplies and Services,352001,Conference Expenses,03-Oct-2017,000006549641955,TRAVELODGE,3615,Conferencesseminars fees etc,41.00,6.83,34.17
Regeneration and Local Services,Economic Development and Housing,031576,B& B - Temp Accom,Supplies and Services,352001,Conference Expenses,03-Oct-2017,000006549641957,TRAVELODGE,3615,Conferencesseminars fees etc,44.00,7.33,36.67
Regeneration and Local Services,Economic Development and Housing,030749,Employability - Youth Contract,Supplies and Services,324117,Provisions,03-Oct-2017,000006549641963,MARKS&SPENCER PLC,5411,Catering costs - provisions,30.50,0.00,30.50
Regeneration and Local Services,Direct Services,010301,C&G - North Grounds Maintenance,Supplies and Services,304403,Equipment and Materials,03-Oct-2017,000006549641989,BESCOL,5231,Other consumables,25.74,0.00,25.74
Regeneration and Local Services,Direct Services,010301,C&G - North Grounds Maintenance,Supplies and Services,304259,Equipment and Materials,03-Oct-2017,000006549641991,SCREWFIX,5211,Equipment-purchase and rental,34.20,0.00,34.20
Regeneration and Local Services,Culture & Sport,011060,Hardwick Park Catering,Supplies and Services,324117,Provisions,03-Oct-2017,000006549641997,JR HOLLAND FOODSERVICE,5422,Catering costs - provisions,50.05,0.00,50.05
Resources,Digital and Customer Services,070205,School Services - Health and Safety Services,Supplies and Services,304639,Equipment and Materials,03-Oct-2017,000006549641999,Amazon UK Marketplace,5942,Technicians-supplies,49.99,0.00,49.99
Regeneration and Local Services,Direct Services,021234,Catering - Locomotion,Supplies and Services,324117,Provisions,03-Oct-2017,000006549642015,JR HOLLAND FOODSERVICE,5422,Catering costs - provisions,16.69,0.00,16.69
Children and Young Peoples Services,Head of Early Help Assessment and Safeguarding,071443,Stanley One Point Hub,Supplies and Services,304259,Equipment and Materials,03-Oct-2017,000006549642029,WWW.DURHAM.GOV.UK,9399,Equipment-purchase and rental,12.00,0.00,12.00
Children and Young Peoples Services,Head of Looked After Provision Permanence and Care Leavers,085333,Coxhoe Satelite Home,Supplies and Services,324117,Provisions,03-Oct-2017,000006549642043,ASDA SUPERSTORE 4987,5411,Catering costs - provisions,83.78,0.00,83.78
Children and Young Peoples Services,Head of Looked After Provision Permanence and Care Leavers,085333,Coxhoe Satelite Home,Supplies and Services,324117,Provisions,03-Oct-2017,000006549642045,ASDA SUPERSTORE 4987,5411,Catering costs - provisions,15.65,0.00,15.65
Adult and Health Services,Head of Adults,055301,Stanley Pathways,Supplies and Services,324117,Provisions,03-Oct-2017,000006549642047,ASDA SUPERSTORE,5411,Catering costs - provisions,3.48,0.00,3.48
Regeneration and Local Services,Economic Development and Housing,030737,Durham Works Flexible Fund,Supplies and Services,328041,Clothing Uniforms and Laundry,03-Oct-2017,000006549642063,INDUSTRIAL WORKWEAR LI,5137,Clothing uniforms and laundry,23.46,3.91,19.55
Regeneration and Local Services,Economic Development and Housing,030737,Durham Works Flexible Fund,Supplies and Services,328041,Clothing Uniforms and Laundry,03-Oct-2017,000006549642063 - 1,INDUSTRIAL WORKWEAR LI,5137,Clothing uniforms and laundry,21.95,,21.95
Resources,Internal Audit and Insurance,065104,Internal Audit,Employees,040149,Recruitment Instruction and Training,03-Oct-2017,000006549642093,WWW.AAT-ORG.UK,8931,Training-all costs,92.00,0.00,92.00
Children and Young Peoples Services,Head of Early Help Assessment and Safeguarding,074000,TTF-Attachment and Results,Transfer Payments,525033,Other,03-Oct-2017,000006549642149,FRANKS THE FLOORING ST,5713,Grants to individuals,147.00,0.00,147.00
Children and Young Peoples Services,Head of Early Help Assessment and Safeguarding,074000,TTF-Attachment and Results,Transfer Payments,525033,Other,03-Oct-2017,000006549642151,WILKO.COM,5722,Grants to individuals,59.00,9.83,49.17
Children and Young Peoples Services,Head of Early Help Assessment and Safeguarding,074000,TTF-Attachment and Results,Transfer Payments,525033,Other,03-Oct-2017,000006549642153,ASDA GEORGE COM LEEDS,5411,Grants to individuals,147.50,0.00,147.50
Children and Young Peoples Services,Head of Early Help Assessment and Safeguarding,074000,TTF-Attachment and Results,Transfer Payments,525033,Other,03-Oct-2017,000006549642155,ASDA GEORGE COM LEEDS,5411,Grants to individuals,24.00,4.00,20.00
Children and Young Peoples Services,Head of Early Help Assessment and Safeguarding,074000,TTF-Attachment and Results,Transfer Payments,525033,Other,03-Oct-2017,000006549642157,TESCO - FredAldous,5999,Grants to individuals,16.46,2.74,13.72
Children and Young Peoples Services,Head of Early Help Assessment and Safeguarding,074000,TTF-Attachment and Results,Transfer Payments,525033,Other,03-Oct-2017,000006549642159,TESCO-Seller_IST_1_240,5999,Grants to individuals,139.92,23.32,116.60
Children and Young Peoples Services,Head of Early Help Assessment and Safeguarding,074000,TTF-Attachment and Results,Transfer Payments,525033,Other,03-Oct-2017,000006549642159 - 1,TESCO-Seller_IST_1_240,5999,Grants to individuals,3.06,,3.06
Children and Young Peoples Services,Head of Early Help Assessment and Safeguarding,074000,TTF-Attachment and Results,Transfer Payments,525033,Other,03-Oct-2017,000006549642161,TESCO-Seller_IST_1_240,5999,Grants to individuals,45.98,0.00,45.98
Regeneration and Local Services,Direct Services,021235,Catering - Wharton Park,Supplies and Services,324117,Provisions,03-Oct-2017,000006549642171,JR HOLLAND FOODSERVICE,5422,Catering costs - provisions,7.90,0.00,7.90
Regeneration and Local Services,Direct Services,021242,Catering - County Hall,Supplies and Services,324117,Provisions,03-Oct-2017,000006554087747,BATLEYS PERTH,5300,Catering costs - provisions,386.64,64.44,322.20
Regeneration and Local Services,Direct Services,021242,Catering - County Hall,Supplies and Services,324117,Provisions,03-Oct-2017,000006554087747 - 1,BATLEYS PERTH,5300,Catering costs - provisions,174.65,,174.65
Regeneration and Local Services,Direct Services,021242,Catering - County Hall,Supplies and Services,324117,Provisions,03-Oct-2017,000006554087753,BATLEYS PERTH,5300,Catering costs - provisions,40.20,6.70,33.50
Regeneration and Local Services,Direct Services,021242,Catering - County Hall,Supplies and Services,324117,Provisions,03-Oct-2017,000006554087753 - 1,BATLEYS PERTH,5300,Catering costs - provisions,175.46,,175.46
Regeneration and Local Services,Direct Services,021234,Catering - Locomotion,Supplies and Services,324117,Provisions,03-Oct-2017,000006554087985,BATLEYS PERTH,5300,Catering costs - provisions,116.04,19.34,96.70
Regeneration and Local Services,Direct Services,021234,Catering - Locomotion,Supplies and Services,324117,Provisions,03-Oct-2017,000006554087985 - 1,BATLEYS PERTH,5300,Catering costs - provisions,230.88,,230.88
Regeneration and Local Services,Culture & Sport,054235,Bishop Auckland Town Hall Cafe,Supplies and Services,324117,Provisions,03-Oct-2017,000006554088125,BATLEYS PERTH,5300,Catering costs - provisions,72.12,0.00,72.12
Regeneration and Local Services,Direct Services,021324,Catering - Meadowfield,Supplies and Services,324117,Provisions,03-Oct-2017,000006554088137,BATLEYS PERTH,5300,Catering costs - provisions,45.96,7.66,38.30
Regeneration and Local Services,Direct Services,021324,Catering - Meadowfield,Supplies and Services,324117,Provisions,03-Oct-2017,000006554088137 - 1,BATLEYS PERTH,5300,Catering costs - provisions,95.12,,95.12
Regeneration and Local Services,Direct Services,010383,C&G - South Street Cleansing,Transport,215995,Running Costs of Vehicles,03-Oct-2017,000006558974515,SNOWBALLS (RAILWAY,5533,Vehicle running expenses,167.16,27.86,139.30
Regeneration and Local Services,Economic Development and Housing,030749,Employability - Youth Contract,Supplies and Services,328041,Clothing Uniforms and Laundry,03-Oct-2017,000006558974751,ZARA INTERNET UK,5651,Clothing uniforms and laundry,33.94,0.00,33.94
Regeneration and Local Services,Economic Development and Housing,030749,Employability - Youth Contract,Supplies and Services,328041,Clothing Uniforms and Laundry,03-Oct-2017,000006558974761,NEW LOOK INTERNET,5621,Clothing uniforms and laundry,59.97,0.00,59.97
Regeneration and Local Services,Economic Development and Housing,030749,Employability - Youth Contract,Supplies and Services,328041,Clothing Uniforms and Laundry,03-Oct-2017,000006558974765,RIVER ISLAND 400,5691,Clothing uniforms and laundry,63.99,0.00,63.99
Regeneration and Local Services,Economic Development and Housing,030749,Employability - Youth Contract,Supplies and Services,328041,Clothing Uniforms and Laundry,03-Oct-2017,000006571936461,WWW.TOPMAN.COM,5691,Clothing uniforms and laundry,50.00,0.00,50.00
Children and Young Peoples Services,Head of Early Help Assessment and Safeguarding,088001,Peterlee Locality,Supplies and Services,312009,Newspapers Books and Periodicals,04-Oct-2017,000006549642099,"INCREDIBLE YEARS, INC.",5192,Newspapers books and periodicals,"7,214.69",0.00,7214.69
Children and Young Peoples Services,Head of Early Help Assessment and Safeguarding,088001,Peterlee Locality,Supplies and Services,312009,Newspapers Books and Periodicals,04-Oct-2017,000006549642101,"INCREDIBLE YEARS, INC.",5192,Newspapers books and periodicals,198.40,0.00,198.40
Regeneration and Local Services,Direct Services,021242,Catering - County Hall,Supplies and Services,324117,Provisions,04-Oct-2017,000006554087633,ICELAND,5411,Catering costs - provisions,10.10,0.00,10.10
Regeneration and Local Services,Direct Services,021242,Catering - County Hall,Supplies and Services,324117,Provisions,04-Oct-2017,000006554087637,TESCO STORES 6029,5411,Catering costs - provisions,14.25,0.00,14.25
Children and Young Peoples Services,Head of Education,071801,Selby Cottage Childcare Centre,Supplies and Services,324117,Provisions,04-Oct-2017,000006554087639,TESCO STORES 2278,5411,Catering costs - provisions,9.78,0.00,9.78
Regeneration and Local Services,Economic Development and Housing,031500,Housing Solutions - Core Team,Supplies and Services,364320,Grants to Voluntary Organisations,04-Oct-2017,000006554087663,TRAVELODGE,3615,Accommodation assistance,59.00,9.83,49.17
Regeneration and Local Services,Economic Development and Housing,031500,Housing Solutions - Core Team,Supplies and Services,364320,Grants to Voluntary Organisations,04-Oct-2017,000006554087667,TRAVELODGE,3615,Accommodation assistance,41.00,6.83,34.17
Regeneration and Local Services,Economic Development and Housing,031500,Housing Solutions - Core Team,Supplies and Services,364320,Grants to Voluntary Organisations,04-Oct-2017,000006554087671,TRAVELODGE,3615,Accommodation assistance,61.00,10.17,50.83
Children and Young Peoples Services,Head of Looked After Provision Permanence and Care Leavers,085955,Auckland,Supplies and Services,324117,Provisions,04-Oct-2017,000006554087675,TESCO STORES 6329,5411,Catering costs - provisions,67.01,0.00,67.01
Regeneration and Local Services,Economic Development and Housing,030699,Business Growth and Innovation General,Supplies and Services,312011,Newspapers Books and Periodicals,04-Oct-2017,000006554087687,FASTHOSTS INTERNET,4816,Books-school library,6.34,1.06,5.28
Regeneration and Local Services,Economic Development and Housing,030737,Durham Works Flexible Fund,Supplies and Services,328041,Clothing Uniforms and Laundry,04-Oct-2017,000006554087721,WWW.ASOS.COM,5651,Clothing uniforms and laundry,42.00,0.00,42.00
Regeneration and Local Services,Economic Development and Housing,030737,Durham Works Flexible Fund,Transport,230031,Contract Hire,04-Oct-2017,000006554087725,ARRIVA NORTH EAST,4131,Pupils-transport to play fields etc,25.00,0.00,25.00
Regeneration and Local Services,Direct Services,021242,Catering - County Hall,Supplies and Services,324117,Provisions,04-Oct-2017,000006554087729,JR HOLLAND FOODSERVICE,5422,Catering costs - provisions,98.46,0.00,98.46
Regeneration and Local Services,Direct Services,021242,Catering - County Hall,Supplies and Services,324117,Provisions,04-Oct-2017,000006554087733,JR HOLLAND FOODSERVICE,5422,Catering costs - provisions,65.90,0.00,65.90
Regeneration and Local Services,Direct Services,021242,Catering - County Hall,Supplies and Services,324117,Provisions,04-Oct-2017,000006554087737,JR HOLLAND FOODSERVICE,5422,Catering costs - provisions,46.46,0.00,46.46
Regeneration and Local Services,Direct Services,021242,Catering - County Hall,Supplies and Services,324117,Provisions,04-Oct-2017,000006554087741,JR HOLLAND FOODSERVICE,5422,Catering costs - provisions,13.16,0.00,13.16
Regeneration and Local Services,Direct Services,021242,Catering - County Hall,Supplies and Services,324117,Provisions,04-Oct-2017,000006554087743,JR HOLLAND FOODSERVICE,5422,Catering costs - provisions,6.94,0.00,6.94
Regeneration and Local Services,Economic Development and Housing,030737,Durham Works Flexible Fund,Transport,235057,Public Transport,04-Oct-2017,000006554087759,ARRIVA NORTH EAST,4131,Staff travelling,28.00,0.00,28.00
Regeneration and Local Services,Economic Development and Housing,030554,International Relations,Transport,235057,Public Transport,04-Oct-2017,000006554087763,PRINCE BISHOP SHOPPING,7523,Staff travelling,3.30,0.00,3.30
Regeneration and Local Services,Culture & Sport,054812,Gala Theatre - Catering etc,Supplies and Services,324117,Provisions,04-Oct-2017,000006554087767,JR HOLLAND FOODSERVICE,5422,Catering costs - provisions,19.68,0.00,19.68
Regeneration and Local Services,Culture & Sport,054812,Gala Theatre - Catering etc,Supplies and Services,324117,Provisions,04-Oct-2017,000006554087771,JR HOLLAND FOODSERVICE,5422,Catering costs - provisions,1.26,0.00,1.26
Regeneration and Local Services,Culture & Sport,054812,Gala Theatre - Catering etc,Supplies and Services,324117,Provisions,04-Oct-2017,000006554087775,JR HOLLAND FOODSERVICE,5422,Catering costs - provisions,-1.26,0.00,-1.26
Children and Young Peoples Services,Head of Education,079599,Psychological-HQ,Employees,040149,Recruitment Instruction and Training,04-Oct-2017,000006554087787,WEBSTORE,8220,Training-all costs,50.00,8.33,41.67
Regeneration and Local Services,Economic Development and Housing,030749,Employability - Youth Contract,Supplies and Services,304259,Equipment and Materials,04-Oct-2017,000006554087831,SCREWFIX DIRECT,5211,Equipment-purchase and rental,72.84,12.14,60.70
Regeneration and Local Services,Economic Development and Housing,030749,Employability - Youth Contract,Supplies and Services,304259,Equipment and Materials,04-Oct-2017,000006554087831 - 1,SCREWFIX DIRECT,5211,Equipment-purchase and rental,27.11,,27.11
Children and Young Peoples Services,Head of Education,071732,Dean Bank Childcare,Supplies and Services,328041,Clothing Uniforms and Laundry,04-Oct-2017,000006554087857,B & M RETAIL,5310,Clothing uniforms and laundry,25.81,0.00,25.81
Regeneration and Local Services,Economic Development and Housing,030554,International Relations,Transport,235057,Public Transport,04-Oct-2017,000006554087867,PRINCE BISHOP SHOPPING,7523,Staff travelling,2.10,0.00,2.10
Regeneration and Local Services,Economic Development and Housing,030737,Durham Works Flexible Fund,Supplies and Services,328041,Clothing Uniforms and Laundry,04-Oct-2017,000006554087901,NEXT 0511 WASHINGTON,5651,Clothing uniforms and laundry,81.05,0.00,81.05
Regeneration and Local Services,Direct Services,010367,C&G - South Grounds Maintenance,Supplies and Services,384999,Miscellaneous Expenses,04-Oct-2017,000006554087909,WWW.GUSTHARTS.COM,5046,Other expenses,418.25,69.71,348.54
Regeneration and Local Services,Spatial Policy Planning Assets & Environment,031222,North Pennines Allen Valleys Landscape Partnership,Supplies and Services,384999,Miscellaneous Expenses,04-Oct-2017,000006554087925,ROTHER VALLEY OPTICS,5945,Other expenses,37.24,6.21,31.03
Regeneration and Local Services,Spatial Policy Planning Assets & Environment,031222,North Pennines Allen Valleys Landscape Partnership,Supplies and Services,324117,Provisions,04-Oct-2017,000006554087927,WAITROSE 782,5411,Catering costs - provisions,39.14,0.00,39.14
Regeneration and Local Services,Culture & Sport,011060,Hardwick Park Catering,Supplies and Services,324117,Provisions,04-Oct-2017,000006554087933,JR HOLLAND FOODSERVICE,5422,Catering costs - provisions,58.08,0.00,58.08
Regeneration and Local Services,Culture & Sport,011060,Hardwick Park Catering,Supplies and Services,324117,Provisions,04-Oct-2017,000006554087937,JR HOLLAND FOODSERVICE,5422,Catering costs - provisions,38.90,0.00,38.90
Regeneration and Local Services,Culture & Sport,011060,Hardwick Park Catering,Supplies and Services,324117,Provisions,04-Oct-2017,000006554087941,JR HOLLAND FOODSERVICE,5422,Catering costs - provisions,27.09,0.00,27.09
Regeneration and Local Services,Culture & Sport,011060,Hardwick Park Catering,Supplies and Services,324117,Provisions,04-Oct-2017,000006554087945,JR HOLLAND FOODSERVICE,5422,Catering costs - provisions,4.70,0.00,4.70
Regeneration and Local Services,Direct Services,021234,Catering - Locomotion,Supplies and Services,324117,Provisions,04-Oct-2017,000006554087973,JR HOLLAND FOODSERVICE,5422,Catering costs - provisions,13.70,0.00,13.70
Regeneration and Local Services,Direct Services,021234,Catering - Locomotion,Supplies and Services,324117,Provisions,04-Oct-2017,000006554087977,JR HOLLAND FOODSERVICE,5422,Catering costs - provisions,4.16,0.00,4.16
Regeneration and Local Services,Direct Services,021234,Catering - Locomotion,Supplies and Services,324117,Provisions,04-Oct-2017,000006554087979,JR HOLLAND FOODSERVICE,5422,Catering costs - provisions,3.44,0.00,3.44
Regeneration and Local Services,Direct Services,021234,Catering - Locomotion,Supplies and Services,324117,Provisions,04-Oct-2017,000006554087981,JR HOLLAND FOODSERVICE,5422,Catering costs - provisions,0.99,0.00,0.99
Regeneration and Local Services,Direct Services,021234,Catering - Locomotion,Supplies and Services,324117,Provisions,04-Oct-2017,000006554087989,JR HOLLAND FOODSERVICE,5422,Catering costs - provisions,-4.43,0.00,-4.43
Regeneration and Local Services,Direct Services,010525,Catering - Green Lane,Supplies and Services,324117,Provisions,04-Oct-2017,000006554087991,JR HOLLAND FOODSERVICE,5422,Catering costs - provisions,61.80,0.00,61.80
Regeneration and Local Services,Direct Services,021324,Catering - Meadowfield,Supplies and Services,324117,Provisions,04-Oct-2017,000006554088131,JR HOLLAND FOODSERVICE,5422,Catering costs - provisions,47.10,0.00,47.10
Regeneration and Local Services,Direct Services,021324,Catering - Meadowfield,Supplies and Services,324117,Provisions,04-Oct-2017,000006554088135,JR HOLLAND FOODSERVICE,5422,Catering costs - provisions,9.87,0.00,9.87
Adult and Health Services,EnvironmentHealth & Consumer Protection,010809,Env HealthConsumer Protection Manag,Employees,040149,Recruitment Instruction and Training,04-Oct-2017,000006554088145,CIEH,8699,Training-all costs,155.00,0.00,155.00
Adult and Health Services,Head of Adults,055306,Spennymoor Pathways,Supplies and Services,328041,Clothing Uniforms and Laundry,04-Oct-2017,000006554088189,ARGOS LTD,5310,Clothing uniforms and laundry,19.99,0.00,19.99
Regeneration and Local Services,Culture & Sport,011230,Operations Locality 2,Supplies and Services,304259,Equipment and Materials,04-Oct-2017,000006554088201,WILKO RETAIL LIMIT,5722,Equipment-purchase and rental,8.00,0.00,8.00
Children and Young Peoples Services,Head of Early Help Assessment and Safeguarding,085801,CDYOS - Support,Supplies and Services,304259,Equipment and Materials,04-Oct-2017,000006554088209,B&Q DIRECT,5211,Equipment-purchase and rental,180.35,30.06,150.29
Children and Young Peoples Services,Head of Early Help Assessment and Safeguarding,085801,CDYOS - Support,Supplies and Services,304259,Equipment and Materials,04-Oct-2017,000006554088213,B&Q DIRECT,5211,Equipment-purchase and rental,73.12,12.19,60.93
Children and Young Peoples Services,Head of Early Help Assessment and Safeguarding,088003,Peterlee 0 - 5,Supplies and Services,304259,Equipment and Materials,04-Oct-2017,000006554088227,GRO HM PASSPORT OFFICE,9399,Equipment-purchase and rental,23.40,0.00,23.40
Regeneration and Local Services,Economic Development and Housing,030699,Business Growth and Innovation General,Supplies and Services,304403,Equipment and Materials,04-Oct-2017,000006558974529,MEETEDGAR MONTHLY,5734,Other consumables,37.02,0.00,37.02
Children and Young Peoples Services,Head of Early Help Assessment and Safeguarding,085511,Emergency Duty Team,Supplies and Services,352001,Conference Expenses,04-Oct-2017,000006558974701,ROADCHEF DURHAM,7011,Conferencesseminars fees etc,49.00,0.00,49.00
Children and Young Peoples Services,Head of Early Help Assessment and Safeguarding,088003,Peterlee 0 - 5,Supplies and Services,304259,Equipment and Materials,04-Oct-2017,000006558975239,HARTLEPOOL BC CNP,9399,Equipment-purchase and rental,14.21,0.00,14.21
Children and Young Peoples Services,Head of Early Help Assessment and Safeguarding,088003,Peterlee 0 - 5,Supplies and Services,304259,Equipment and Materials,04-Oct-2017,000006558975241,HARTLEPOOL BC CNP,9399,Equipment-purchase and rental,-14.21,0.00,-14.21
Regeneration and Local Services,Economic Development and Housing,030749,Employability - Youth Contract,Supplies and Services,328041,Clothing Uniforms and Laundry,04-Oct-2017,000006564719095,MATALAN.CO.UK,5691,Clothing uniforms and laundry,39.95,0.00,39.95
Children and Young Peoples Services,Head of Looked After Provision Permanence and Care Leavers,085341,High Etherley Satelite Home,Supplies and Services,324117,Provisions,05-Oct-2017,000006558974439,TESCO STORES 6329,5411,Catering costs - provisions,34.61,0.00,34.61
Children and Young Peoples Services,Head of Looked After Provision Permanence and Care Leavers,085341,High Etherley Satelite Home,Supplies and Services,324117,Provisions,05-Oct-2017,000006558974445,TESCO STORES 6329,5411,Catering costs - provisions,5.20,0.00,5.20
Children and Young Peoples Services,Head of Education,071801,Selby Cottage Childcare Centre,Supplies and Services,304259,Equipment and Materials,05-Oct-2017,000006558974483,WILKO RETAIL LIMIT,5722,Equipment-purchase and rental,25.25,0.00,25.25
Children and Young Peoples Services,Head of Education,054640,Durham Learning Resources,Supplies and Services,312011,Newspapers Books and Periodicals,05-Oct-2017,000006558974485,Amazon UK Marketplace,5942,Books-school library,8.34,0.00,8.34
Resources,Corporate Finance,065106,Strategic Finance - Revenue & Capital,Supplies and Services,304335,Equipment and Materials,05-Oct-2017,000006558974487,Amazon EU,5969,ICT supplies etc,19.59,0.00,19.59
Regeneration and Local Services,Transport and Contracted Services,032170,Integrated Passenger Transport,Supplies and Services,332047,Printing Stationery and Gen Off Exps,05-Oct-2017,000006558974489,Amazon EU,5969,Stationery,13.22,0.00,13.22
Children and Young Peoples Services,Head of Looked After Provision Permanence and Care Leavers,085955,Auckland,Supplies and Services,328041,Clothing Uniforms and Laundry,05-Oct-2017,000006558974519,WWW.ARGOS.CO.UK,5310,Clothing uniforms and laundry,33.93,5.66,28.27
Children and Young Peoples Services,Head of Looked After Provision Permanence and Care Leavers,085965,Barnard,Supplies and Services,324117,Provisions,05-Oct-2017,000006558974521,TESCO STORES 6329,5411,Catering costs - provisions,61.02,0.00,61.02
Children and Young Peoples Services,Head of Looked After Provision Permanence and Care Leavers,085342,9 Cedar Drive Aycliffe,Employees,040149,Recruitment Instruction and Training,05-Oct-2017,000006558974533,PARENTPAY E-COM R,8220,Training-all costs,30.50,0.00,30.50
Children and Young Peoples Services,Head of Looked After Provision Permanence and Care Leavers,085342,9 Cedar Drive Aycliffe,Supplies and Services,304259,Equipment and Materials,05-Oct-2017,000006558974537,SPORTSDIRECT 246,5941,Equipment-purchase and rental,52.03,0.00,52.03
Regeneration and Local Services,Economic Development and Housing,030737,Durham Works Flexible Fund,Supplies and Services,328041,Clothing Uniforms and Laundry,05-Oct-2017,000006558974563,MATALAN.CO.UK,5691,Clothing uniforms and laundry,34.95,0.00,34.95
Regeneration and Local Services,Economic Development and Housing,030737,Durham Works Flexible Fund,Supplies and Services,328041,Clothing Uniforms and Laundry,05-Oct-2017,000006558974565,JACAMO (INTERNET),5691,Clothing uniforms and laundry,18.00,0.00,18.00
Regeneration and Local Services,Economic Development and Housing,030737,Durham Works Flexible Fund,Supplies and Services,328041,Clothing Uniforms and Laundry,05-Oct-2017,000006558974567,JACAMO (INTERNET),5691,Clothing uniforms and laundry,30.00,0.00,30.00
Regeneration and Local Services,Economic Development and Housing,030737,Durham Works Flexible Fund,Supplies and Services,328041,Clothing Uniforms and Laundry,05-Oct-2017,000006558974571,JACAMO (INTERNET),5691,Clothing uniforms and laundry,14.00,0.00,14.00
Regeneration and Local Services,Economic Development and Housing,030737,Durham Works Flexible Fund,Supplies and Services,328041,Clothing Uniforms and Laundry,05-Oct-2017,000006558974575,JACAMO (INTERNET),5691,Clothing uniforms and laundry,18.00,0.00,18.00
Regeneration and Local Services,Direct Services,021242,Catering - County Hall,Supplies and Services,324117,Provisions,05-Oct-2017,000006558974579,HOPWELLS LTD,5811,Catering costs - provisions,322.54,0.00,322.54
Regeneration and Local Services,Direct Services,021242,Catering - County Hall,Supplies and Services,324117,Provisions,05-Oct-2017,000006558974583,HOPWELLS LTD,5811,Catering costs - provisions,210.15,0.00,210.15
Regeneration and Local Services,Direct Services,021242,Catering - County Hall,Supplies and Services,324117,Provisions,05-Oct-2017,000006558974591,HOPWELLS LTD,5811,Catering costs - provisions,172.56,0.00,172.56
Regeneration and Local Services,Direct Services,021242,Catering - County Hall,Supplies and Services,324117,Provisions,05-Oct-2017,000006558974597,HOPWELLS LTD,5811,Catering costs - provisions,157.40,0.00,157.40
Regeneration and Local Services,Direct Services,021242,Catering - County Hall,Supplies and Services,324117,Provisions,05-Oct-2017,000006558974601,HOPWELLS LTD,5811,Catering costs - provisions,153.68,0.00,153.68
Regeneration and Local Services,Direct Services,021242,Catering - County Hall,Supplies and Services,324117,Provisions,05-Oct-2017,000006558974607,HOPWELLS LTD,5811,Catering costs - provisions,133.96,0.00,133.96
Regeneration and Local Services,Direct Services,021242,Catering - County Hall,Supplies and Services,324117,Provisions,05-Oct-2017,000006558974611,HOPWELLS LTD,5811,Catering costs - provisions,71.95,0.00,71.95
Regeneration and Local Services,Direct Services,021242,Catering - County Hall,Supplies and Services,324117,Provisions,05-Oct-2017,000006558974615,JR HOLLAND FOODSERVICE,5422,Catering costs - provisions,138.94,0.00,138.94
Regeneration and Local Services,Direct Services,021242,Catering - County Hall,Supplies and Services,324117,Provisions,05-Oct-2017,000006558974623,JR HOLLAND FOODSERVICE,5422,Catering costs - provisions,31.35,0.00,31.35
Regeneration and Local Services,Direct Services,021242,Catering - County Hall,Supplies and Services,324117,Provisions,05-Oct-2017,000006558974627,JR HOLLAND FOODSERVICE,5422,Catering costs - provisions,22.04,0.00,22.04
Regeneration and Local Services,Direct Services,021242,Catering - County Hall,Supplies and Services,324117,Provisions,05-Oct-2017,000006558974631,HOPWELLS LTD,5811,Catering costs - provisions,-4.43,0.00,-4.43
Regeneration and Local Services,Direct Services,021242,Catering - County Hall,Supplies and Services,324117,Provisions,05-Oct-2017,000006558974635,HOPWELLS LTD,5811,Catering costs - provisions,-8.20,0.00,-8.20
Regeneration and Local Services,Direct Services,021242,Catering - County Hall,Supplies and Services,324117,Provisions,05-Oct-2017,000006558974639,HOPWELLS LTD,5811,Catering costs - provisions,-11.98,0.00,-11.98
Regeneration and Local Services,Direct Services,021242,Catering - County Hall,Supplies and Services,324117,Provisions,05-Oct-2017,000006558974641,HOPWELLS LTD,5811,Catering costs - provisions,-13.29,0.00,-13.29
Regeneration and Local Services,Direct Services,021242,Catering - County Hall,Supplies and Services,324117,Provisions,05-Oct-2017,000006558974645,HOPWELLS LTD,5811,Catering costs - provisions,-13.50,0.00,-13.50
Regeneration and Local Services,Direct Services,021242,Catering - County Hall,Supplies and Services,324117,Provisions,05-Oct-2017,000006558974649,HOPWELLS LTD,5811,Catering costs - provisions,-19.37,0.00,-19.37
Children and Young Peoples Services,Head of Education,070169,Durham SSP,Supplies and Services,304259,Equipment and Materials,05-Oct-2017,000006558974651,DECATHLON,5941,Equipment-purchase and rental,41.21,6.87,34.34
Regeneration and Local Services,Economic Development and Housing,030554,International Relations,Transport,235057,Public Transport,05-Oct-2017,000006558974663,PRINCE BISHOP SHOPPING,7523,Staff travelling,2.10,0.00,2.10
Regeneration and Local Services,Culture & Sport,054812,Gala Theatre - Catering etc,Supplies and Services,324117,Provisions,05-Oct-2017,000006558974669,HOPWELLS LTD,5811,Catering costs - provisions,122.96,0.00,122.96
Regeneration and Local Services,Culture & Sport,054812,Gala Theatre - Catering etc,Supplies and Services,324117,Provisions,05-Oct-2017,000006558974673,HOPWELLS LTD,5811,Catering costs - provisions,77.26,0.00,77.26
Regeneration and Local Services,Culture & Sport,054812,Gala Theatre - Catering etc,Supplies and Services,324117,Provisions,05-Oct-2017,000006558974677,JR HOLLAND FOODSERVICE,5422,Catering costs - provisions,73.65,0.00,73.65
Regeneration and Local Services,Culture & Sport,054812,Gala Theatre - Catering etc,Supplies and Services,324117,Provisions,05-Oct-2017,000006558974683,HOPWELLS LTD,5811,Catering costs - provisions,-24.30,0.00,-24.30
Regeneration and Local Services,Culture & Sport,054812,Gala Theatre - Catering etc,Supplies and Services,324117,Provisions,05-Oct-2017,000006558974689,HOPWELLS LTD,5811,Catering costs - provisions,-55.48,0.00,-55.48
Regeneration and Local Services,Culture & Sport,054812,Gala Theatre - Catering etc,Supplies and Services,324117,Provisions,05-Oct-2017,000006558974691,JR HOLLAND FOODSERVICE,5422,Catering costs - provisions,-1.26,0.00,-1.26
Children and Young Peoples Services,Head of Education,079599,Psychological-HQ,Employees,040149,Recruitment Instruction and Training,05-Oct-2017,000006558974697,WEBSTORE,8220,Training-all costs,200.00,33.33,166.67
Regeneration and Local Services,Economic Development and Housing,030749,Employability - Youth Contract,Supplies and Services,384999,Miscellaneous Expenses,05-Oct-2017,000006558974753,WWW.SALONSDIRECT.CO.UK,7230,Other expenses,78.00,13.00,65.00
Regeneration and Local Services,Economic Development and Housing,030749,Employability - Youth Contract,Supplies and Services,328041,Clothing Uniforms and Laundry,05-Oct-2017,000006558974757,WWW.ASOS.COM,5651,Clothing uniforms and laundry,116.00,0.00,116.00
Children and Young Peoples Services,Head of Education,071732,Dean Bank Childcare,Supplies and Services,324117,Provisions,05-Oct-2017,000006558974775,SAINSBURYS SACAT (2303,5411,Catering costs - provisions,4.25,0.00,4.25
Children and Young Peoples Services,Head of Education,071732,Dean Bank Childcare,Supplies and Services,324117,Provisions,05-Oct-2017,000006558974777,CO-OP GROUP 010503,5411,Catering costs - provisions,5.99,0.00,5.99
Regeneration and Local Services,Economic Development and Housing,030737,Durham Works Flexible Fund,Supplies and Services,348037,Subsistence,05-Oct-2017,000006558974799,WWW.SIMPLYGO.COM,4131,Subsistence,70.00,0.00,70.00
Children and Young Peoples Services,Head of Looked After Provision Permanence and Care Leavers,085952,Secure Education,Supplies and Services,324117,Provisions,05-Oct-2017,000006558974807,Amazon UK Marketplace,5942,Catering costs - provisions,15.50,0.00,15.50
Children and Young Peoples Services,Head of Looked After Provision Permanence and Care Leavers,085957,Secure Management,Supplies and Services,304649,Equipment and Materials,05-Oct-2017,000006558974811,Amazon EU,5969,Toys,49.99,0.00,49.99
Children and Young Peoples Services,Head of Looked After Provision Permanence and Care Leavers,085957,Secure Management,Supplies and Services,328041,Clothing Uniforms and Laundry,05-Oct-2017,000006558974813,Amazon EU,5969,Clothing uniforms and laundry,22.58,0.00,22.58
Children and Young Peoples Services,Head of Looked After Provision Permanence and Care Leavers,085957,Secure Management,Supplies and Services,328041,Clothing Uniforms and Laundry,05-Oct-2017,000006558974817,M and M Direct Ltd,5941,Clothing uniforms and laundry,29.99,0.00,29.99
Children and Young Peoples Services,Head of Looked After Provision Permanence and Care Leavers,085952,Secure Education,Supplies and Services,324117,Provisions,05-Oct-2017,000006558974821,Amazon UK Marketplace,5942,Catering costs - provisions,19.98,0.00,19.98
Children and Young Peoples Services,Head of Looked After Provision Permanence and Care Leavers,085957,Secure Management,Supplies and Services,328041,Clothing Uniforms and Laundry,05-Oct-2017,000006558974829,WWW.URBANPIERCINGSHOP.,5944,Clothing uniforms and laundry,10.69,0.00,10.69
Children and Young Peoples Services,Head of Looked After Provision Permanence and Care Leavers,085957,Secure Management,Supplies and Services,328041,Clothing Uniforms and Laundry,05-Oct-2017,000006558974831,WWW.ARGOS.CO.UK,5310,Clothing uniforms and laundry,23.94,3.99,19.95
Children and Young Peoples Services,Head of Looked After Provision Permanence and Care Leavers,085957,Secure Management,Supplies and Services,328041,Clothing Uniforms and Laundry,05-Oct-2017,000006558974835,VERY.CO.UK,5964,Clothing uniforms and laundry,89.98,0.00,89.98
Regeneration and Local Services,Direct Services,010367,C&G - South Grounds Maintenance,Supplies and Services,304259,Equipment and Materials,05-Oct-2017,000006558974841,SCREWFIX,5211,Equipment-purchase and rental,32.76,5.46,27.30
Regeneration and Local Services,Culture & Sport,011060,Hardwick Park Catering,Supplies and Services,324117,Provisions,05-Oct-2017,000006558974845,HOPWELLS LTD,5811,Catering costs - provisions,309.12,51.52,257.60
Regeneration and Local Services,Culture & Sport,011060,Hardwick Park Catering,Supplies and Services,324117,Provisions,05-Oct-2017,000006558974845 - 1,HOPWELLS LTD,5811,Catering costs - provisions,197.61,,197.61
Regeneration and Local Services,Culture & Sport,011060,Hardwick Park Catering,Supplies and Services,324117,Provisions,05-Oct-2017,000006558974851,HOPWELLS LTD,5811,Catering costs - provisions,129.24,21.54,107.70
Regeneration and Local Services,Culture & Sport,011060,Hardwick Park Catering,Supplies and Services,324117,Provisions,05-Oct-2017,000006558974851 - 1,HOPWELLS LTD,5811,Catering costs - provisions,94.63,,94.63
Regeneration and Local Services,Culture & Sport,011060,Hardwick Park Catering,Supplies and Services,324117,Provisions,05-Oct-2017,000006558974857,HOPWELLS LTD,5811,Catering costs - provisions,135.30,22.55,112.75
Regeneration and Local Services,Culture & Sport,011060,Hardwick Park Catering,Supplies and Services,324117,Provisions,05-Oct-2017,000006558974857 - 1,HOPWELLS LTD,5811,Catering costs - provisions,55.37,,55.37
Regeneration and Local Services,Culture & Sport,011060,Hardwick Park Catering,Supplies and Services,324117,Provisions,05-Oct-2017,000006558974863,HOPWELLS LTD,5811,Catering costs - provisions,164.40,0.00,164.40
Regeneration and Local Services,Culture & Sport,011060,Hardwick Park Catering,Supplies and Services,324117,Provisions,05-Oct-2017,000006558974865,HOPWELLS LTD,5811,Catering costs - provisions,40.56,6.76,33.80
Regeneration and Local Services,Culture & Sport,011060,Hardwick Park Catering,Supplies and Services,324117,Provisions,05-Oct-2017,000006558974865 - 1,HOPWELLS LTD,5811,Catering costs - provisions,50.00,,50.00
Regeneration and Local Services,Culture & Sport,011060,Hardwick Park Catering,Supplies and Services,324117,Provisions,05-Oct-2017,000006558974871,JR HOLLAND FOODSERVICE,5422,Catering costs - provisions,70.52,0.00,70.52
Regeneration and Local Services,Culture & Sport,011060,Hardwick Park Catering,Supplies and Services,324117,Provisions,05-Oct-2017,000006558974877,HOPWELLS LTD,5811,Catering costs - provisions,-11.22,0.00,-11.22
Regeneration and Local Services,Culture & Sport,011060,Hardwick Park Catering,Supplies and Services,324117,Provisions,05-Oct-2017,000006558974879,HOPWELLS LTD,5811,Catering costs - provisions,-19.82,-3.30,-16.52
Regeneration and Local Services,Culture & Sport,026591,Hardwick Park,Supplies and Services,328041,Clothing Uniforms and Laundry,05-Oct-2017,000006558974905,WWW.BIGTEESHIRT.CO.UK,5611,Clothing uniforms and laundry,22.04,0.00,22.04
Regeneration and Local Services,Culture & Sport,026591,Hardwick Park,Supplies and Services,328041,Clothing Uniforms and Laundry,05-Oct-2017,000006558974907,WWW.BIGMEN.CO.UK,5611,Clothing uniforms and laundry,30.00,5.00,25.00
Regeneration and Local Services,Culture & Sport,026591,Hardwick Park,Supplies and Services,328041,Clothing Uniforms and Laundry,05-Oct-2017,000006558974907 - 1,WWW.BIGMEN.CO.UK,5611,Clothing uniforms and laundry,3.99,,3.99
Regeneration and Local Services,Culture & Sport,026591,Hardwick Park,Supplies and Services,328041,Clothing Uniforms and Laundry,05-Oct-2017,000006558974909,BIG TEE SHIRT,5611,Clothing uniforms and laundry,19.94,3.32,16.62
Regeneration and Local Services,Culture & Sport,026591,Hardwick Park,Supplies and Services,328041,Clothing Uniforms and Laundry,05-Oct-2017,000006558974911,BIG TEE SHIRT,5611,Clothing uniforms and laundry,23.70,3.95,19.75
Regeneration and Local Services,Culture & Sport,026591,Hardwick Park,Supplies and Services,328041,Clothing Uniforms and Laundry,05-Oct-2017,000006558974911 - 1,BIG TEE SHIRT,5611,Clothing uniforms and laundry,5.24,,5.24
Regeneration and Local Services,Direct Services,021234,Catering - Locomotion,Supplies and Services,324117,Provisions,05-Oct-2017,000006558974921,HOPWELLS LTD,5811,Catering costs - provisions,61.20,10.20,51.00
Regeneration and Local Services,Direct Services,021234,Catering - Locomotion,Supplies and Services,324117,Provisions,05-Oct-2017,000006558974921 - 1,HOPWELLS LTD,5811,Catering costs - provisions,238.87,,238.87
Regeneration and Local Services,Direct Services,021234,Catering - Locomotion,Supplies and Services,324117,Provisions,05-Oct-2017,000006558974925,HOPWELLS LTD,5811,Catering costs - provisions,59.82,9.97,49.85
Regeneration and Local Services,Direct Services,021234,Catering - Locomotion,Supplies and Services,324117,Provisions,05-Oct-2017,000006558974925 - 1,HOPWELLS LTD,5811,Catering costs - provisions,119.28,,119.28
Regeneration and Local Services,Direct Services,021234,Catering - Locomotion,Supplies and Services,324117,Provisions,05-Oct-2017,000006558974929,HOPWELLS LTD,5811,Catering costs - provisions,128.56,0.00,128.56
Regeneration and Local Services,Direct Services,021234,Catering - Locomotion,Supplies and Services,324117,Provisions,05-Oct-2017,000006558974931,HOPWELLS LTD,5811,Catering costs - provisions,42.90,7.15,35.75
Regeneration and Local Services,Direct Services,021234,Catering - Locomotion,Supplies and Services,324117,Provisions,05-Oct-2017,000006558974931 - 1,HOPWELLS LTD,5811,Catering costs - provisions,74.64,,74.64
Regeneration and Local Services,Direct Services,021234,Catering - Locomotion,Supplies and Services,324117,Provisions,05-Oct-2017,000006558974935,HOPWELLS LTD,5811,Catering costs - provisions,115.24,0.00,115.24
Regeneration and Local Services,Direct Services,021234,Catering - Locomotion,Supplies and Services,324117,Provisions,05-Oct-2017,000006558974939,HOPWELLS LTD,5811,Catering costs - provisions,19.76,0.00,19.76
Regeneration and Local Services,Direct Services,021234,Catering - Locomotion,Supplies and Services,324117,Provisions,05-Oct-2017,000006558974945,JR HOLLAND FOODSERVICE,5422,Catering costs - provisions,7.80,0.00,7.80
Regeneration and Local Services,Direct Services,021234,Catering - Locomotion,Supplies and Services,324117,Provisions,05-Oct-2017,000006558974949,HOPWELLS LTD,5811,Catering costs - provisions,-19.76,0.00,-19.76
Regeneration and Local Services,Direct Services,021234,Catering - Locomotion,Supplies and Services,324117,Provisions,05-Oct-2017,000006558974953,HOPWELLS LTD,5811,Catering costs - provisions,-54.65,0.00,-54.65
Regeneration and Local Services,Direct Services,010525,Catering - Green Lane,Supplies and Services,324117,Provisions,05-Oct-2017,000006558974973,HOPWELLS LTD,5811,Catering costs - provisions,76.76,0.00,76.76
Regeneration and Local Services,Direct Services,010525,Catering - Green Lane,Supplies and Services,324117,Provisions,05-Oct-2017,000006558974975,HOPWELLS LTD,5811,Catering costs - provisions,42.70,0.00,42.70
Regeneration and Local Services,Direct Services,010525,Catering - Green Lane,Supplies and Services,324117,Provisions,05-Oct-2017,000006558974979,JR HOLLAND FOODSERVICE,5422,Catering costs - provisions,33.21,0.00,33.21
Children and Young Peoples Services,Head of Looked After Provision Permanence and Care Leavers,085352,Tow Law CU,Supplies and Services,324117,Provisions,05-Oct-2017,000006558974983,TESCO STORES 2371,5411,Catering costs - provisions,195.14,0.00,195.14
Children and Young Peoples Services,Head of Looked After Provision Permanence and Care Leavers,085333,Coxhoe Satelite Home,Supplies and Services,324117,Provisions,05-Oct-2017,000006558975013,ASDA SUPERSTORE 4987,5411,Catering costs - provisions,95.68,0.00,95.68
Children and Young Peoples Services,Head of Looked After Provision Permanence and Care Leavers,085333,Coxhoe Satelite Home,Supplies and Services,324117,Provisions,05-Oct-2017,000006558975015,ASDA SUPERSTORE 4987,5411,Catering costs - provisions,15.65,0.00,15.65
Resources,Resources Management,069000,Resources Management,Supplies and Services,324117,Provisions,05-Oct-2017,000006558975019,SAINSBURYS LOC4937,5411,Catering costs - provisions,4.20,0.00,4.20
Regeneration and Local Services,Economic Development and Housing,031576,B& B - Temp Accom,Supplies and Services,364320,Grants to Voluntary Organisations,05-Oct-2017,000006558975039,TRAVELODGE,3615,Accommodation assistance,46.00,7.67,38.33
Regeneration and Local Services,Culture & Sport,054235,Bishop Auckland Town Hall Cafe,Supplies and Services,324117,Provisions,05-Oct-2017,000006558975083,HOPWELLS LTD,5811,Catering costs - provisions,108.14,0.00,108.14
Regeneration and Local Services,Culture & Sport,054235,Bishop Auckland Town Hall Cafe,Supplies and Services,324117,Provisions,05-Oct-2017,000006558975085,HOPWELLS LTD,5811,Catering costs - provisions,48.47,0.00,48.47
Regeneration and Local Services,Culture & Sport,054235,Bishop Auckland Town Hall Cafe,Supplies and Services,324117,Provisions,05-Oct-2017,000006558975089,JR HOLLAND FOODSERVICE,5422,Catering costs - provisions,39.81,0.00,39.81
Regeneration and Local Services,Culture & Sport,054235,Bishop Auckland Town Hall Cafe,Supplies and Services,324117,Provisions,05-Oct-2017,000006558975091,HOPWELLS LTD,5811,Catering costs - provisions,-11.20,0.00,-11.20
Regeneration and Local Services,Direct Services,021324,Catering - Meadowfield,Supplies and Services,324117,Provisions,05-Oct-2017,000006558975095,HOPWELLS LTD,5811,Catering costs - provisions,48.87,0.00,48.87
Regeneration and Local Services,Direct Services,021324,Catering - Meadowfield,Supplies and Services,324117,Provisions,05-Oct-2017,000006558975099,HOPWELLS LTD,5811,Catering costs - provisions,36.92,0.00,36.92
Regeneration and Local Services,Direct Services,021324,Catering - Meadowfield,Supplies and Services,324117,Provisions,05-Oct-2017,000006558975103,JR HOLLAND FOODSERVICE,5422,Catering costs - provisions,27.86,0.00,27.86
Regeneration and Local Services,Direct Services,021324,Catering - Meadowfield,Supplies and Services,324117,Provisions,05-Oct-2017,000006558975107,JR HOLLAND FOODSERVICE,5422,Catering costs - provisions,13.87,0.00,13.87
Adult and Health Services,Head of Adults,055306,Spennymoor Pathways,Supplies and Services,324117,Provisions,05-Oct-2017,000006558975159,ASDA SUPERSTORE 4987,5411,Catering costs - provisions,2.25,0.00,2.25
Regeneration and Local Services,Direct Services,021235,Catering - Wharton Park,Supplies and Services,324117,Provisions,05-Oct-2017,000006558975171,HOPWELLS LTD,5811,Catering costs - provisions,43.32,7.22,36.10
Regeneration and Local Services,Direct Services,021235,Catering - Wharton Park,Supplies and Services,324117,Provisions,05-Oct-2017,000006558975171 - 1,HOPWELLS LTD,5811,Catering costs - provisions,81.05,,81.05
Regeneration and Local Services,Direct Services,021235,Catering - Wharton Park,Supplies and Services,324117,Provisions,05-Oct-2017,000006558975177,HOPWELLS LTD,5811,Catering costs - provisions,73.68,12.28,61.40
Regeneration and Local Services,Direct Services,021235,Catering - Wharton Park,Supplies and Services,324117,Provisions,05-Oct-2017,000006558975177 - 1,HOPWELLS LTD,5811,Catering costs - provisions,42.92,,42.92
Regeneration and Local Services,Direct Services,021235,Catering - Wharton Park,Supplies and Services,324117,Provisions,05-Oct-2017,000006558975181,HOPWELLS LTD,5811,Catering costs - provisions,43.27,0.00,43.27
Regeneration and Local Services,Direct Services,021235,Catering - Wharton Park,Supplies and Services,324117,Provisions,05-Oct-2017,000006558975183,JR HOLLAND FOODSERVICE,5422,Catering costs - provisions,12.10,0.00,12.10
Regeneration and Local Services,Culture & Sport,011230,Operations Locality 2,Supplies and Services,304259,Equipment and Materials,05-Oct-2017,000006558975219,WILKO RETAIL LIMIT,5722,Equipment-purchase and rental,22.50,0.00,22.50
Regeneration and Local Services,Economic Development and Housing,030554,International Relations,Supplies and Services,384926,Miscellaneous Expenses,05-Oct-2017,000006558975227,PRINCE BISHOP SHOPPING,7523,International visits,2.10,0.00,2.10
Regeneration and Local Services,Direct Services,021242,Catering - County Hall,Supplies and Services,324117,Provisions,05-Oct-2017,000006564718891,JR HOLLAND FOODSERVICE,5422,Catering costs - provisions,78.30,0.00,78.30
Regeneration and Local Services,Direct Services,021242,Catering - County Hall,Supplies and Services,324117,Provisions,05-Oct-2017,000006564718901,JR HOLLAND FOODSERVICE,5422,Catering costs - provisions,13.16,0.00,13.16
Regeneration and Local Services,Economic Development and Housing,030554,International Relations,Transport,235057,Public Transport,05-Oct-2017,000006564718927,EUROWINGS WYQCHM_1319772,4511,Staff travelling,59.21,0.00,59.21
Regeneration and Local Services,Economic Development and Housing,030554,International Relations,Transport,235057,Public Transport,05-Oct-2017,000006564718933,ROYAL DUTCH AIRLINES (KLM),3010,Staff travelling,234.17,0.00,234.17
Regeneration and Local Services,Economic Development and Housing,030554,International Relations,Transport,235057,Public Transport,05-Oct-2017,000006564718935,ROYAL DUTCH AIRLINES (KLM),3010,Staff travelling,234.17,0.00,234.17
Regeneration and Local Services,Economic Development and Housing,030554,International Relations,Transport,235057,Public Transport,05-Oct-2017,000006564718937,ROYAL DUTCH AIRLINES (KLM),3010,Staff travelling,234.17,0.00,234.17
Regeneration and Local Services,Economic Development and Housing,030554,International Relations,Transport,235057,Public Transport,05-Oct-2017,000006564718943,ROYAL DUTCH AIRLINES (KLM),3010,Staff travelling,234.17,0.00,234.17
Regeneration and Local Services,Economic Development and Housing,030554,International Relations,Transport,235057,Public Transport,05-Oct-2017,000006564718947,ROYAL DUTCH AIRLINES (KLM),3010,Staff travelling,234.17,0.00,234.17
Regeneration and Local Services,Economic Development and Housing,030554,International Relations,Transport,235057,Public Transport,05-Oct-2017,000006564718953,ROYAL DUTCH AIRLINES (KLM),3010,Staff travelling,234.17,0.00,234.17
Regeneration and Local Services,Economic Development and Housing,030554,International Relations,Transport,235057,Public Transport,05-Oct-2017,000006564718959,ROYAL DUTCH AIRLINES (KLM),3010,Staff travelling,162.82,0.00,162.82
Regeneration and Local Services,Economic Development and Housing,030554,International Relations,Transport,235057,Public Transport,05-Oct-2017,000006564718963,ROYAL DUTCH AIRLINES (KLM),3010,Staff travelling,53.20,0.00,53.20
Regeneration and Local Services,Economic Development and Housing,030554,International Relations,Transport,235057,Public Transport,05-Oct-2017,000006564718965,ROYAL DUTCH AIRLINES (KLM),3010,Staff travelling,53.20,0.00,53.20
Regeneration and Local Services,Economic Development and Housing,030554,International Relations,Transport,235057,Public Transport,05-Oct-2017,000006564718969,ROYAL DUTCH AIRLINES (KLM),3010,Staff travelling,53.20,0.00,53.20
Regeneration and Local Services,Economic Development and Housing,030554,International Relations,Transport,235057,Public Transport,05-Oct-2017,000006564718971,ROYAL DUTCH AIRLINES (KLM),3010,Staff travelling,53.20,0.00,53.20
Regeneration and Local Services,Economic Development and Housing,030554,International Relations,Transport,235057,Public Transport,05-Oct-2017,000006564718975,ROYAL DUTCH AIRLINES (KLM),3010,Staff travelling,53.20,0.00,53.20
Regeneration and Local Services,Economic Development and Housing,030554,International Relations,Transport,235057,Public Transport,05-Oct-2017,000006564718979,ROYAL DUTCH AIRLINES (KLM),3010,Staff travelling,53.20,0.00,53.20
Regeneration and Local Services,Economic Development and Housing,030554,International Relations,Transport,235057,Public Transport,05-Oct-2017,000006564718983,ROYAL DUTCH AIRLINES (KLM),3010,Staff travelling,26.60,0.00,26.60
Regeneration and Local Services,Culture & Sport,054812,Gala Theatre - Catering etc,Supplies and Services,324117,Provisions,05-Oct-2017,000006564718989,BATLEYS PERTH,5300,Catering costs - provisions,63.22,0.00,63.22
Children and Young Peoples Services,Head of Looked After Provision Permanence and Care Leavers,085957,Secure Management,Supplies and Services,328041,Clothing Uniforms and Laundry,05-Oct-2017,000006564719149,AMAZON UK RETAIL AMAZO,5999,Clothing uniforms and laundry,95.72,0.00,95.72
Children and Young Peoples Services,Head of Looked After Provision Permanence and Care Leavers,085955,Auckland,Supplies and Services,328041,Clothing Uniforms and Laundry,05-Oct-2017,000006564719155,SPORTSDIRECT.COM,5941,Clothing uniforms and laundry,30.97,5.16,25.81
Regeneration and Local Services,Spatial Policy Planning Assets & Environment,031222,North Pennines Allen Valleys Landscape Partnership,Supplies and Services,348037,Subsistence,05-Oct-2017,000006564719185,THE BRIDGE,5812,Subsistence,23.05,0.00,23.05
Regeneration and Local Services,Culture & Sport,011060,Hardwick Park Catering,Supplies and Services,324117,Provisions,05-Oct-2017,000006564719199,BATLEYS PERTH,5300,Catering costs - provisions,14.40,2.40,12.00
Regeneration and Local Services,Culture & Sport,011060,Hardwick Park Catering,Supplies and Services,324117,Provisions,05-Oct-2017,000006564719199 - 1,BATLEYS PERTH,5300,Catering costs - provisions,140.42,,140.42
Regeneration and Local Services,Culture & Sport,011060,Hardwick Park Catering,Supplies and Services,324117,Provisions,05-Oct-2017,000006564719203,BATLEYS PERTH,5300,Catering costs - provisions,10.62,0.00,10.62
Regeneration and Local Services,Economic Development and Housing,030699,Business Growth and Innovation General,Supplies and Services,304403,Equipment and Materials,06-Oct-2017,000006558974531,MEETEDGAR MONTHLY,5734,Other consumables,1.02,0.00,1.02
Children and Young Peoples Services,Head of Looked After Provision Permanence and Care Leavers,085957,Secure Management,Supplies and Services,328041,Clothing Uniforms and Laundry,06-Oct-2017,000006558974825,Amazon UK Marketplace,5942,Clothing uniforms and laundry,4.99,0.00,4.99
Resources,Digital and Customer Services,065321,Operations - Digital & Customer Services,Supplies and Services,342033,Computers and Communications,06-Oct-2017,000006558974895,Amazon UK Marketplace,5942,Computer hardware,9.98,0.00,9.98
Children and Young Peoples Services,Head of Looked After Provision Permanence and Care Leavers,085341,High Etherley Satelite Home,Supplies and Services,324117,Provisions,06-Oct-2017,000006564718687,TESCO STORES 6329,5411,Catering costs - provisions,133.54,0.00,133.54
Children and Young Peoples Services,Head of Education,071801,Selby Cottage Childcare Centre,Supplies and Services,324117,Provisions,06-Oct-2017,000006564718715,ALDI 32 774 S,5411,Catering costs - provisions,17.12,0.00,17.12
Children and Young Peoples Services,Head of Education,054640,Durham Learning Resources,Supplies and Services,312011,Newspapers Books and Periodicals,06-Oct-2017,000006564718719,AMAZON.CO.UK,5942,Books-school library,2.14,0.00,2.14
Resources,Corporate Finance,069810,Health and Safety,Supplies and Services,304335,Equipment and Materials,06-Oct-2017,000006564718733,Amazon UK Marketplace,5942,ICT supplies etc,11.22,0.00,11.22
Children and Young Peoples Services,Head of Early Help Assessment and Safeguarding,071443,Stanley One Point Hub,Supplies and Services,304335,Equipment and Materials,06-Oct-2017,000006564718737,Amazon UK Marketplace,5942,ICT supplies etc,23.98,0.00,23.98
Regeneration and Local Services,Economic Development and Housing,031500,Housing Solutions - Core Team,Supplies and Services,364320,Grants to Voluntary Organisations,06-Oct-2017,000006564718811,TRAVELODGE,3615,Accommodation assistance,136.00,22.67,113.33
Regeneration and Local Services,Economic Development and Housing,031500,Housing Solutions - Core Team,Supplies and Services,364320,Grants to Voluntary Organisations,06-Oct-2017,000006564718813,TRAVELODGE,3615,Accommodation assistance,136.00,0.00,136.00
Children and Young Peoples Services,Head of Looked After Provision Permanence and Care Leavers,085956,Lumley,Supplies and Services,324117,Provisions,06-Oct-2017,000006564718827,TESCO STORES 6329,5411,Catering costs - provisions,123.88,0.00,123.88
Regeneration and Local Services,Economic Development and Housing,030737,Durham Works Flexible Fund,Transport,230031,Contract Hire,06-Oct-2017,000006564718883,ARRIVA NORTH EAST,4131,Pupils-transport to play fields etc,25.00,0.00,25.00
Regeneration and Local Services,Direct Services,021242,Catering - County Hall,Supplies and Services,324117,Provisions,06-Oct-2017,000006564718897,JR HOLLAND FOODSERVICE,5422,Catering costs - provisions,40.55,0.00,40.55
Regeneration and Local Services,Direct Services,021242,Catering - County Hall,Supplies and Services,324117,Provisions,06-Oct-2017,000006564718905,JR HOLLAND FOODSERVICE,5422,Catering costs - provisions,13.16,0.00,13.16
Children and Young Peoples Services,Head of Education,079599,Psychological-HQ,Employees,040149,Recruitment Instruction and Training,06-Oct-2017,000006564719011,WEBSTORE,8220,Training-all costs,50.00,8.33,41.67
Children and Young Peoples Services,Head of Early Help Assessment and Safeguarding,085511,Emergency Duty Team,Supplies and Services,352001,Conference Expenses,06-Oct-2017,000006564719017,TRAVELODGE,3615,Conferencesseminars fees etc,-87.00,0.00,-87.00
Regeneration and Local Services,Economic Development and Housing,030725,Community Economic Development,Transport,235057,Public Transport,06-Oct-2017,000006564719051,ARRIVA NORTH EAST,4131,Staff travelling,21.00,0.00,21.00
Regeneration and Local Services,Economic Development and Housing,030749,Employability - Youth Contract,Transport,235057,Public Transport,06-Oct-2017,000006564719089,WWW.SIMPLYGO.COM,4131,Staff travelling,92.00,0.00,92.00
Regeneration and Local Services,Economic Development and Housing,030749,Employability - Youth Contract,Transport,235057,Public Transport,06-Oct-2017,000006564719093,ARRIVA NORTH EAST,4131,Staff travelling,50.00,0.00,50.00
Children and Young Peoples Services,Head of Looked After Provision Permanence and Care Leavers,085341,High Etherley Satelite Home,Supplies and Services,308011,Furniture,06-Oct-2017,000006564719109,HOMEBASE LTD 822,5211,Furniture repair and replacement,12.96,0.00,12.96
Children and Young Peoples Services,Head of Looked After Provision Permanence and Care Leavers,085955,Auckland,Supplies and Services,304649,Equipment and Materials,06-Oct-2017,000006564719151,ARGOS RETAIL GROUP,5310,Toys,14.99,0.00,14.99
Regeneration and Local Services,Direct Services,010301,C&G - North Grounds Maintenance,Supplies and Services,304403,Equipment and Materials,06-Oct-2017,000006564719171,BESCOL,5231,Other consumables,58.32,0.00,58.32
Regeneration and Local Services,Spatial Policy Planning Assets & Environment,031222,North Pennines Allen Valleys Landscape Partnership,Supplies and Services,304259,Equipment and Materials,06-Oct-2017,000006564719175,EDWARDS OF HEXHAM,5941,Equipment-purchase and rental,14.55,2.43,12.12
Regeneration and Local Services,Spatial Policy Planning Assets & Environment,031222,North Pennines Allen Valleys Landscape Partnership,Supplies and Services,324117,Provisions,06-Oct-2017,000006564719179,ALLENDALE CO-OPERATIVE,5499,Catering costs - provisions,7.63,0.00,7.63
Regeneration and Local Services,Spatial Policy Planning Assets & Environment,031222,North Pennines Allen Valleys Landscape Partnership,Supplies and Services,324117,Provisions,06-Oct-2017,000006564719183,ALLENDALE CO-OPERATIVE,5499,Catering costs - provisions,3.37,0.00,3.37
Regeneration and Local Services,Culture & Sport,011060,Hardwick Park Catering,Supplies and Services,324117,Provisions,06-Oct-2017,000006564719195,JR HOLLAND FOODSERVICE,5422,Catering costs - provisions,61.68,0.00,61.68
Resources,Digital and Customer Services,065335,School Services - Implementations,Supplies and Services,304639,Equipment and Materials,06-Oct-2017,000006564719209,LAPTOPSCREWSDIRECTCOM,5045,Technicians-supplies,8.29,1.38,6.91
Regeneration and Local Services,Direct Services,010525,Catering - Green Lane,Supplies and Services,324117,Provisions,06-Oct-2017,000006564719235,JR HOLLAND FOODSERVICE,5422,Catering costs - provisions,37.11,0.00,37.11
Children and Young Peoples Services,Head of Early Help Assessment and Safeguarding,085556,Child Protection Team Stanley,Supplies and Services,304259,Equipment and Materials,06-Oct-2017,000006564719263,WWW.DURHAM.GOV.UK,9399,Equipment-purchase and rental,20.00,0.00,20.00
Regeneration and Local Services,Spatial Policy Planning Assets & Environment,031222,North Pennines Allen Valleys Landscape Partnership,Transport,235057,Public Transport,06-Oct-2017,000006564719353,BRITISH A,3005,Staff travelling,133.29,0.00,133.29
Children and Young Peoples Services,Head of Early Help Assessment and Safeguarding,088001,Peterlee Locality,Supplies and Services,304259,Equipment and Materials,06-Oct-2017,000006564719423,WWW.DURHAM.GOV.UK,9399,Equipment-purchase and rental,12.00,0.00,12.00
Regeneration and Local Services,Direct Services,021324,Catering - Meadowfield,Supplies and Services,324117,Provisions,06-Oct-2017,000006564719439,JR HOLLAND FOODSERVICE,5422,Catering costs - provisions,42.30,0.00,42.30
Regeneration and Local Services,Direct Services,021324,Catering - Meadowfield,Supplies and Services,324117,Provisions,06-Oct-2017,000006564719443,JR HOLLAND FOODSERVICE,5422,Catering costs - provisions,9.87,0.00,9.87
Regeneration and Local Services,Direct Services,010301,C&G - North Grounds Maintenance,Supplies and Services,304221,Equipment and Materials,06-Oct-2017,000006564719457,MACHINE MART LTD,7394,Direct materials,356.99,0.00,356.99
Regeneration and Local Services,Direct Services,010301,C&G - North Grounds Maintenance,Supplies and Services,304221,Equipment and Materials,06-Oct-2017,000006564719461,MACHINE MART LTD,7394,Direct materials,356.99,0.00,356.99
Resources,Digital and Customer Services,065303,Design & Print - Design,Supplies and Services,372009,Subscriptions,06-Oct-2017,000006564719529,APPY PIE,5734,Subscriptions,48.00,0.00,48.00
Resources,Digital and Customer Services,069010,Administration,Transport,235057,Public Transport,06-Oct-2017,000006564719531,OYSTER RENEW WEB,4112,Staff travelling,50.00,0.00,50.00
Children and Young Peoples Services,Head of Early Help Assessment and Safeguarding,085801,CDYOS - Support,Supplies and Services,324117,Provisions,06-Oct-2017,000006564719617,ASDA HOME SHOPPING,5411,Catering costs - provisions,25.55,0.00,25.55
Regeneration and Local Services,Culture & Sport,011060,Hardwick Park Catering,Supplies and Services,324117,Provisions,06-Oct-2017,000006571936529,BATLEYS PERTH,5300,Catering costs - provisions,53.94,8.99,44.95
Regeneration and Local Services,Culture & Sport,011060,Hardwick Park Catering,Supplies and Services,324117,Provisions,06-Oct-2017,000006571936529 - 1,BATLEYS PERTH,5300,Catering costs - provisions,148.06,,148.06
Regeneration and Local Services,Direct Services,010525,Catering - Green Lane,Supplies and Services,324117,Provisions,06-Oct-2017,000006571936571,BATLEYS PERTH,5300,Catering costs - provisions,130.02,21.67,108.35
Regeneration and Local Services,Direct Services,010525,Catering - Green Lane,Supplies and Services,324117,Provisions,06-Oct-2017,000006571936571 - 1,BATLEYS PERTH,5300,Catering costs - provisions,116.91,,116.91
Regeneration and Local Services,Spatial Policy Planning Assets & Environment,031222,North Pennines Allen Valleys Landscape Partnership,Transport,235057,Public Transport,06-Oct-2017,000006571936679,AER LINGUS,3043,Staff travelling,42.72,0.00,42.72
Children and Young Peoples Services,Head of Looked After Provision Permanence and Care Leavers,085954,Walworth,Supplies and Services,324117,Provisions,07-Oct-2017,000006564718831,TESCO STORES 6329,5411,Catering costs - provisions,81.59,0.00,81.59
Children and Young Peoples Services,Head of Looked After Provision Permanence and Care Leavers,085342,9 Cedar Drive Aycliffe,Supplies and Services,324117,Provisions,07-Oct-2017,000006564718845,TESCO STORES 2916,5411,Catering costs - provisions,29.26,0.00,29.26
Children and Young Peoples Services,Head of Looked After Provision Permanence and Care Leavers,085342,9 Cedar Drive Aycliffe,Supplies and Services,324117,Provisions,07-Oct-2017,000006564718849,TESCO STORES 2916,5411,Catering costs - provisions,10.08,0.00,10.08
Regeneration and Local Services,Culture & Sport,054233,Bishop Auckland Town Hall Library,Supplies and Services,312011,Newspapers Books and Periodicals,07-Oct-2017,000006564718909,Amazon EU,5969,Books-school library,39.97,0.00,39.97
Regeneration and Local Services,Economic Development and Housing,031500,Housing Solutions - Core Team,Supplies and Services,352001,Conference Expenses,07-Oct-2017,000006564719227,TRAVELODGE,3615,Conferencesseminars fees etc,83.00,13.83,69.17
Children and Young Peoples Services,Head of Education,076004,Music - Parents Fund,Supplies and Services,312009,Newspapers Books and Periodicals,07-Oct-2017,000006564719557,Bernaerts Music BVBA,5733,Newspapers books and periodicals,78.63,0.00,78.63
Children and Young Peoples Services,Head of Education,054640,Durham Learning Resources,Supplies and Services,312011,Newspapers Books and Periodicals,08-Oct-2017,000006564718723,Amazon UK Marketplace,5942,Books-school library,29.99,0.00,29.99
Regeneration and Local Services,Economic Development and Housing,030699,Business Growth and Innovation General,Supplies and Services,384999,Miscellaneous Expenses,08-Oct-2017,000006564718855,LIVEBUZZ,7922,Other expenses,150.00,0.00,150.00
Regeneration and Local Services,Economic Development and Housing,030737,Durham Works Flexible Fund,Transport,235057,Public Transport,08-Oct-2017,000006564718921,ARRIVA NORTH EAST,4131,Staff travelling,7.00,0.00,7.00
Regeneration and Local Services,Economic Development and Housing,030737,Durham Works Flexible Fund,Transport,235057,Public Transport,08-Oct-2017,000006564718925,ARRIVA NORTH EAST,4131,Staff travelling,7.00,0.00,7.00
Children and Young Peoples Services,Head of Looked After Provision Permanence and Care Leavers,085341,High Etherley Satelite Home,Supplies and Services,324117,Provisions,08-Oct-2017,000006564719111,TESCO STORES 6329,5411,Catering costs - provisions,43.58,0.00,43.58
Regeneration and Local Services,Culture & Sport,054815,Gala Theatre Stage School,Supplies and Services,312011,Newspapers Books and Periodicals,08-Oct-2017,000006564719213,Amazon UK Marketplace,5942,Books-school library,19.98,0.00,19.98
Children and Young Peoples Services,Central Charges (CYPS),085823,CDYOS North Area,Supplies and Services,312011,Newspapers Books and Periodicals,08-Oct-2017,000006564719245,Amazon EU,5969,Books-school library,10.55,0.00,10.55
Resources,Resources Management,069000,Resources Management,Supplies and Services,324117,Provisions,08-Oct-2017,000006564719287,SAINSBURYS LOC4937,5411,Catering costs - provisions,4.00,0.00,4.00
Regeneration and Local Services,Culture & Sport,026591,Hardwick Park,Supplies and Services,304245,Equipment and Materials,08-Oct-2017,000006564719299,Amazon UK Marketplace,5942,Materials,13.03,0.00,13.03
Adult and Health Services,Head of Adults,055306,Spennymoor Pathways,Supplies and Services,328041,Clothing Uniforms and Laundry,08-Oct-2017,000006564719541,ARGOS LTD,5310,Clothing uniforms and laundry,19.99,0.00,19.99
Regeneration and Local Services,Economic Development and Housing,030554,International Relations,Transport,235057,Public Transport,09-Oct-2017,000006564718985,EUROWINGS WYQCHM_1319772,4511,Staff travelling,1.63,0.00,1.63
Children and Young Peoples Services,Head of Education,071801,Selby Cottage Childcare Centre,Supplies and Services,308011,Furniture,09-Oct-2017,000006571936187,IKEA LIMITED,5712,Furniture repair and replacement,145.05,0.00,145.05
Children and Young Peoples Services,Head of Education,071801,Selby Cottage Childcare Centre,Supplies and Services,328041,Clothing Uniforms and Laundry,09-Oct-2017,000006571936191,THE RANGE,5311,Clothing uniforms and laundry,86.40,0.00,86.40
Children and Young Peoples Services,Head of Education,071801,Selby Cottage Childcare Centre,Supplies and Services,304259,Equipment and Materials,09-Oct-2017,000006571936195,WILKO RETAIL LIMIT,5722,Equipment-purchase and rental,18.05,0.00,18.05
Children and Young Peoples Services,Head of Education,071801,Selby Cottage Childcare Centre,Supplies and Services,324117,Provisions,09-Oct-2017,000006571936197,ASDA HOME SHOPPING,5411,Catering costs - provisions,84.13,0.00,84.13
Transformation and Partnerships,Comms & Information Management,060201,LUCI Conference,Supplies and Services,304403,Equipment and Materials,09-Oct-2017,000006571936201,Amazon UK Marketplace,5942,Other consumables,179.40,0.00,179.40
Regeneration and Local Services,Transport and Contracted Services,032170,Integrated Passenger Transport,Supplies and Services,332047,Printing Stationery and Gen Off Exps,09-Oct-2017,000006571936205,Amazon UK Marketplace,5942,Stationery,19.37,0.00,19.37
Dedicated Schools Grant,Dedicated Schools Grant,079094,IMPACT Revenue,Employees,040149,Recruitment Instruction and Training,09-Oct-2017,000006571936217,WEBSTORE,8220,Training-all costs,150.00,0.00,150.00
Children and Young Peoples Services,Head of Looked After Provision Permanence and Care Leavers,085342,9 Cedar Drive Aycliffe,Supplies and Services,324117,Provisions,09-Oct-2017,000006571936253,WM MORRISONS,5411,Catering costs - provisions,21.05,0.00,21.05
Adult and Health Services,Head of Adults,055302,Durham Pathways,Supplies and Services,324117,Provisions,09-Oct-2017,000006571936267,SAINSBURYS 0776,5411,Catering costs - provisions,36.70,0.00,36.70
Regeneration and Local Services,Economic Development and Housing,030737,Durham Works Flexible Fund,Transport,230031,Contract Hire,09-Oct-2017,000006571936277,ARRIVA NORTH EAST,4131,Pupils-transport to play fields etc,25.00,0.00,25.00
Regeneration and Local Services,Direct Services,021242,Catering - County Hall,Supplies and Services,324117,Provisions,09-Oct-2017,000006571936281,WWW.ADELIEFOODS.CO.UK,5499,Catering costs - provisions,236.60,0.00,236.60
Regeneration and Local Services,Direct Services,021242,Catering - County Hall,Supplies and Services,324117,Provisions,09-Oct-2017,000006571936283,WWW.ADELIEFOODS.CO.UK,5499,Catering costs - provisions,180.07,0.00,180.07
Regeneration and Local Services,Direct Services,021242,Catering - County Hall,Supplies and Services,324117,Provisions,09-Oct-2017,000006571936287,WWW.ADELIEFOODS.CO.UK,5499,Catering costs - provisions,130.14,0.00,130.14
Regeneration and Local Services,Direct Services,021242,Catering - County Hall,Supplies and Services,324117,Provisions,09-Oct-2017,000006571936289,WWW.ADELIEFOODS.CO.UK,5499,Catering costs - provisions,125.86,0.00,125.86
Regeneration and Local Services,Direct Services,021242,Catering - County Hall,Supplies and Services,324117,Provisions,09-Oct-2017,000006571936291,WWW.ADELIEFOODS.CO.UK,5499,Catering costs - provisions,57.14,0.00,57.14
Regeneration and Local Services,Direct Services,021242,Catering - County Hall,Supplies and Services,324117,Provisions,09-Oct-2017,000006571936295,FREEMAN CATERING BUTCH,5422,Catering costs - provisions,199.07,0.00,199.07
Regeneration and Local Services,Direct Services,021242,Catering - County Hall,Supplies and Services,324117,Provisions,09-Oct-2017,000006571936299,FREEMAN CATERING BUTCH,5422,Catering costs - provisions,107.81,0.00,107.81
Regeneration and Local Services,Direct Services,021242,Catering - County Hall,Supplies and Services,324117,Provisions,09-Oct-2017,000006571936303,JR HOLLAND FOODSERVICE,5422,Catering costs - provisions,33.57,0.00,33.57
Regeneration and Local Services,Direct Services,021242,Catering - County Hall,Supplies and Services,324117,Provisions,09-Oct-2017,000006571936307,JR HOLLAND FOODSERVICE,5422,Catering costs - provisions,13.52,0.00,13.52
Regeneration and Local Services,Economic Development and Housing,030737,Durham Works Flexible Fund,Transport,235057,Public Transport,09-Oct-2017,000006571936319,ARRIVA NORTH EAST,4131,Staff travelling,50.00,0.00,50.00
Regeneration and Local Services,Culture & Sport,054812,Gala Theatre - Catering etc,Supplies and Services,324117,Provisions,09-Oct-2017,000006571936323,FREEMAN CATERING BUTCH,5422,Catering costs - provisions,24.30,0.00,24.30
Regeneration and Local Services,Economic Development and Housing,031576,B& B - Temp Accom,Supplies and Services,364320,Grants to Voluntary Organisations,09-Oct-2017,000006571936327,TRAVELODGE,3615,Accommodation assistance,43.00,7.17,35.83
Regeneration and Local Services,Economic Development and Housing,031576,B& B - Temp Accom,Supplies and Services,364320,Grants to Voluntary Organisations,09-Oct-2017,000006571936331,TRAVELODGE,3615,Accommodation assistance,41.00,6.83,34.17
Children and Young Peoples Services,Head of Early Help Assessment and Safeguarding,085511,Emergency Duty Team,Supplies and Services,352001,Conference Expenses,09-Oct-2017,000006571936341,THE GREENBANK,7011,Conferencesseminars fees etc,105.00,0.00,105.00
Regeneration and Local Services,Direct Services,010900,Fleet - Meadowfield Fleet,Transport,215013,Running Costs of Vehicles,09-Oct-2017,000006571936383,DVLA VEHICLE TAX,9399,Vehicle Excise Duty (VED),242.50,0.00,242.50
Regeneration and Local Services,Direct Services,010900,Fleet - Meadowfield Fleet,Transport,215013,Running Costs of Vehicles,09-Oct-2017,000006571936387,DVLA VEHICLE TAX,9399,Vehicle Excise Duty (VED),242.50,0.00,242.50
Regeneration and Local Services,Direct Services,010900,Fleet - Meadowfield Fleet,Transport,215013,Running Costs of Vehicles,09-Oct-2017,000006571936389,DVLA VEHICLE TAX,9399,Vehicle Excise Duty (VED),242.50,0.00,242.50
Regeneration and Local Services,Direct Services,010551,Fleet - Chilton Fleet,Transport,215013,Running Costs of Vehicles,09-Oct-2017,000006571936393,DVLA VEHICLE TAX,9399,Vehicle Excise Duty (VED),242.50,0.00,242.50
Regeneration and Local Services,Direct Services,010900,Fleet - Meadowfield Fleet,Transport,215013,Running Costs of Vehicles,09-Oct-2017,000006571936397,DVLA VEHICLE TAX,9399,Vehicle Excise Duty (VED),242.50,0.00,242.50
Regeneration and Local Services,Direct Services,010900,Fleet - Meadowfield Fleet,Transport,215013,Running Costs of Vehicles,09-Oct-2017,000006571936399,DVLA VEHICLE TAX,9399,Vehicle Excise Duty (VED),242.50,0.00,242.50
Regeneration and Local Services,Direct Services,010900,Fleet - Meadowfield Fleet,Transport,215013,Running Costs of Vehicles,09-Oct-2017,000006571936403,DVLA VEHICLE TAX,9399,Vehicle Excise Duty (VED),242.50,0.00,242.50
Regeneration and Local Services,Direct Services,010900,Fleet - Meadowfield Fleet,Transport,215013,Running Costs of Vehicles,09-Oct-2017,000006571936405,DVLA VEHICLE TAX,9399,Vehicle Excise Duty (VED),167.50,0.00,167.50
Regeneration and Local Services,Direct Services,010900,Fleet - Meadowfield Fleet,Transport,215013,Running Costs of Vehicles,09-Oct-2017,000006571936409,DVLA VEHICLE TAX,9399,Vehicle Excise Duty (VED),242.50,0.00,242.50
Regeneration and Local Services,Direct Services,010900,Fleet - Meadowfield Fleet,Transport,215013,Running Costs of Vehicles,09-Oct-2017,000006571936411,DVLA VEHICLE TAX,9399,Vehicle Excise Duty (VED),242.50,0.00,242.50
Regeneration and Local Services,Direct Services,010900,Fleet - Meadowfield Fleet,Transport,215013,Running Costs of Vehicles,09-Oct-2017,000006571936415,DVLA VEHICLE TAX,9399,Vehicle Excise Duty (VED),242.50,0.00,242.50
Regeneration and Local Services,Direct Services,010864,Fleet - Hackworth Road Fleet,Transport,215013,Running Costs of Vehicles,09-Oct-2017,000006571936419,DVLA VEHICLE TAX,9399,Vehicle Excise Duty (VED),167.50,0.00,167.50
Regeneration and Local Services,Direct Services,010900,Fleet - Meadowfield Fleet,Transport,215013,Running Costs of Vehicles,09-Oct-2017,000006571936421,DVLA VEHICLE TAX,9399,Vehicle Excise Duty (VED),242.50,0.00,242.50
Regeneration and Local Services,Direct Services,010900,Fleet - Meadowfield Fleet,Transport,215013,Running Costs of Vehicles,09-Oct-2017,000006571936425,DVLA VEHICLE TAX,9399,Vehicle Excise Duty (VED),242.50,0.00,242.50
Regeneration and Local Services,Direct Services,010551,Fleet - Chilton Fleet,Transport,215013,Running Costs of Vehicles,09-Oct-2017,000006571936429,DVLA VEHICLE TAX,9399,Vehicle Excise Duty (VED),242.50,0.00,242.50
Regeneration and Local Services,Direct Services,010900,Fleet - Meadowfield Fleet,Transport,215013,Running Costs of Vehicles,09-Oct-2017,000006571936431,DVLA VEHICLE TAX,9399,Vehicle Excise Duty (VED),242.50,0.00,242.50
Regeneration and Local Services,Direct Services,010551,Fleet - Chilton Fleet,Transport,215013,Running Costs of Vehicles,09-Oct-2017,000006571936435,DVLA VEHICLE TAX,9399,Vehicle Excise Duty (VED),242.50,0.00,242.50
Regeneration and Local Services,Direct Services,010367,C&G - South Grounds Maintenance,Supplies and Services,304259,Equipment and Materials,09-Oct-2017,000006571936449,JEWSON LTD,5211,Equipment-purchase and rental,79.03,13.17,65.86
Regeneration and Local Services,Economic Development and Housing,030749,Employability - Youth Contract,Supplies and Services,328041,Clothing Uniforms and Laundry,09-Oct-2017,000006571936455,SELECT,5691,Clothing uniforms and laundry,21.98,0.00,21.98
Regeneration and Local Services,Economic Development and Housing,030749,Employability - Youth Contract,Supplies and Services,328041,Clothing Uniforms and Laundry,09-Oct-2017,000006571936459,WWW.ASOS.COM,5651,Clothing uniforms and laundry,24.00,0.00,24.00
Children and Young Peoples Services,Head of Education,071732,Dean Bank Childcare,Supplies and Services,312011,Newspapers Books and Periodicals,09-Oct-2017,000006571936471,Amazon UK Marketplace,5942,Books-school library,4.50,0.00,4.50
Children and Young Peoples Services,Head of Education,071732,Dean Bank Childcare,Supplies and Services,324117,Provisions,09-Oct-2017,000006571936475,ASDA HOME SHOPPING,5411,Catering costs - provisions,97.10,0.00,97.10
Children and Young Peoples Services,Head of Education,071732,Dean Bank Childcare,Supplies and Services,324117,Provisions,09-Oct-2017,000006571936477,ASDA HOME SHOPPING,5411,Catering costs - provisions,-0.20,0.00,-0.20
Children and Young Peoples Services,Head of Looked After Provision Permanence and Care Leavers,085952,Secure Education,Supplies and Services,324117,Provisions,09-Oct-2017,000006571936503,TESCO STORES 6329,5411,Catering costs - provisions,89.24,0.00,89.24
Regeneration and Local Services,Culture & Sport,011060,Hardwick Park Catering,Supplies and Services,324117,Provisions,09-Oct-2017,000006571936525,JR HOLLAND FOODSERVICE,5422,Catering costs - provisions,18.48,0.00,18.48
Regeneration and Local Services,Direct Services,021234,Catering - Locomotion,Supplies and Services,324117,Provisions,09-Oct-2017,000006571936539,WWW.ADELIEFOODS.CO.UK,5499,Catering costs - provisions,72.36,0.00,72.36
Regeneration and Local Services,Direct Services,021234,Catering - Locomotion,Supplies and Services,324117,Provisions,09-Oct-2017,000006571936541,WWW.ADELIEFOODS.CO.UK,5499,Catering costs - provisions,35.28,0.00,35.28
Regeneration and Local Services,Direct Services,021234,Catering - Locomotion,Supplies and Services,324117,Provisions,09-Oct-2017,000006571936543,WWW.ADELIEFOODS.CO.UK,5499,Catering costs - provisions,35.28,0.00,35.28
Regeneration and Local Services,Direct Services,021234,Catering - Locomotion,Supplies and Services,324117,Provisions,09-Oct-2017,000006571936547,WWW.ADELIEFOODS.CO.UK,5499,Catering costs - provisions,35.28,0.00,35.28
Regeneration and Local Services,Economic Development and Housing,031500,Housing Solutions - Core Team,Supplies and Services,352001,Conference Expenses,09-Oct-2017,000006571936549,TRAVELODGE,3615,Conferencesseminars fees etc,41.00,6.83,34.17
Regeneration and Local Services,Direct Services,010525,Catering - Green Lane,Supplies and Services,324117,Provisions,09-Oct-2017,000006571936561,WWW.ADELIEFOODS.CO.UK,5499,Catering costs - provisions,42.42,0.00,42.42
Regeneration and Local Services,Direct Services,010525,Catering - Green Lane,Supplies and Services,324117,Provisions,09-Oct-2017,000006571936565,WWW.ADELIEFOODS.CO.UK,5499,Catering costs - provisions,36.90,0.00,36.90
Regeneration and Local Services,Direct Services,010525,Catering - Green Lane,Supplies and Services,324117,Provisions,09-Oct-2017,000006571936567,FREEMAN CATERING BUTCH,5422,Catering costs - provisions,61.66,0.00,61.66
Children and Young Peoples Services,Central Charges (CYPS),085823,CDYOS North Area,Supplies and Services,312011,Newspapers Books and Periodicals,09-Oct-2017,000006571936577,Amazon UK Marketplace,5942,Books-school library,3.45,0.00,3.45
Regeneration and Local Services,Economic Development and Housing,031500,Housing Solutions - Core Team,Supplies and Services,304999,Equipment and Materials,09-Oct-2017,000006571936597,WWW.THEDISPUTESERVICE.,6513,Misc equipment tools and materials,23.00,3.83,19.17
Regeneration and Local Services,Economic Development and Housing,031500,Housing Solutions - Core Team,Supplies and Services,304999,Equipment and Materials,09-Oct-2017,000006571936599,WWW.THEDISPUTESERVICE.,6513,Misc equipment tools and materials,23.00,3.83,19.17
Children and Young Peoples Services,Head of Looked After Provision Permanence and Care Leavers,085333,Coxhoe Satelite Home,Supplies and Services,324117,Provisions,09-Oct-2017,000006571936643,TESCO STORES 2371,5411,Catering costs - provisions,86.66,0.00,86.66
Children and Young Peoples Services,Head of Looked After Provision Permanence and Care Leavers,085333,Coxhoe Satelite Home,Supplies and Services,328041,Clothing Uniforms and Laundry,09-Oct-2017,000006571936647,B & M RETAIL,5310,Clothing uniforms and laundry,16.14,0.00,16.14
Regeneration and Local Services,Culture & Sport,026591,Hardwick Park,Supplies and Services,304245,Equipment and Materials,09-Oct-2017,000006571936653,Amazon UK Marketplace,5942,Materials,13.16,0.00,13.16
Regeneration and Local Services,Direct Services,021324,Catering - Meadowfield,Supplies and Services,324117,Provisions,09-Oct-2017,000006571936735,FREEMAN CATERING BUTCH,5422,Catering costs - provisions,75.22,0.00,75.22
Regeneration and Local Services,Direct Services,021324,Catering - Meadowfield,Supplies and Services,324117,Provisions,09-Oct-2017,000006571936739,FREEMAN CATERING BUTCH,5422,Catering costs - provisions,54.22,0.00,54.22
Adult and Health Services,Head of Adults,055301,Stanley Pathways,Supplies and Services,324117,Provisions,09-Oct-2017,000006571936743,ASDA SUPERSTORE,5411,Catering costs - provisions,21.44,0.00,21.44
Children and Young Peoples Services,Head of Looked After Provision Permanence and Care Leavers,085363,LAC & Permanence Team 3,Supplies and Services,304259,Equipment and Materials,09-Oct-2017,000006571936767,DARLINGTON BC INTERNET,9399,Equipment-purchase and rental,32.00,0.00,32.00
Children and Young Peoples Services,Head of Looked After Provision Permanence and Care Leavers,085363,LAC & Permanence Team 3,Supplies and Services,304259,Equipment and Materials,09-Oct-2017,000006571936771,DARLINGTON BC INTERNET,9399,Equipment-purchase and rental,22.00,0.00,22.00
Children and Young Peoples Services,Head of Looked After Provision Permanence and Care Leavers,085363,LAC & Permanence Team 3,Supplies and Services,304259,Equipment and Materials,09-Oct-2017,000006571936773,WWW.DURHAM.GOV.UK,9399,Equipment-purchase and rental,180.00,0.00,180.00
Regeneration and Local Services,Culture & Sport,011086,Positive Futures,Supplies and Services,324117,Provisions,09-Oct-2017,000006571936791,ASDA SUPERSTORE 4987,5411,Catering costs - provisions,15.76,0.00,15.76
Adult and Health Services,Head of Adults,055306,Spennymoor Pathways,Supplies and Services,324117,Provisions,09-Oct-2017,000006571936845,ASDA SUPERSTORE 4987,5411,Catering costs - provisions,4.92,0.00,4.92
Regeneration and Local Services,Direct Services,021235,Catering - Wharton Park,Supplies and Services,324117,Provisions,09-Oct-2017,000006571936853,WWW.ADELIEFOODS.CO.UK,5499,Catering costs - provisions,53.77,0.00,53.77
Regeneration and Local Services,Direct Services,021235,Catering - Wharton Park,Supplies and Services,324117,Provisions,09-Oct-2017,000006571936855,WWW.ADELIEFOODS.CO.UK,5499,Catering costs - provisions,29.48,0.00,29.48
Regeneration and Local Services,Direct Services,021235,Catering - Wharton Park,Supplies and Services,324117,Provisions,09-Oct-2017,000006571936859,WWW.ADELIEFOODS.CO.UK,5499,Catering costs - provisions,29.48,0.00,29.48
Regeneration and Local Services,Direct Services,021235,Catering - Wharton Park,Supplies and Services,324117,Provisions,09-Oct-2017,000006571936861,JR HOLLAND FOODSERVICE,5422,Catering costs - provisions,23.70,0.00,23.70
Adult and Health Services,Head of Adults,055309,Peterlee Pathways,Supplies and Services,324117,Provisions,09-Oct-2017,000006571936883,CAKES 4 U,5462,Catering costs - provisions,12.74,0.00,12.74
Adult and Health Services,Head of Adults,055309,Peterlee Pathways,Supplies and Services,304259,Equipment and Materials,09-Oct-2017,000006571936885,CURRYS ONLINE,5732,Equipment-purchase and rental,24.50,0.00,24.50
Adult and Health Services,Head of Adults,055309,Peterlee Pathways,Supplies and Services,324117,Provisions,09-Oct-2017,000006571936927,LIDL UK,5411,Catering costs - provisions,4.35,0.00,4.35
Regeneration and Local Services,Economic Development and Housing,030692,Durham Dales Centre - Management and Admin,Supplies and Services,324117,Provisions,09-Oct-2017,000006571936931,SCOTMID CO-OP STANHOPE,5411,Catering costs - provisions,5.88,0.00,5.88
Regeneration and Local Services,Economic Development and Housing,030552,ATLAS Regional Network,Supplies and Services,384926,Miscellaneous Expenses,09-Oct-2017,000006571936953,WILKO.COM,5722,International visits,46.00,0.00,46.00
Resources,Digital and Customer Services,065303,Design & Print - Design,Supplies and Services,304335,Equipment and Materials,09-Oct-2017,000006575456241,DRI WWW SHAREIT INFO,7372,ICT supplies etc,59.99,10.00,49.99
Regeneration and Local Services,Economic Development and Housing,030737,Durham Works Flexible Fund,Supplies and Services,328041,Clothing Uniforms and Laundry,09-Oct-2017,000006575456491,NEW LOOK INTERNET,5621,Clothing uniforms and laundry,76.97,0.00,76.97
Regeneration and Local Services,Culture & Sport,054812,Gala Theatre - Catering etc,Supplies and Services,324117,Provisions,09-Oct-2017,000006575456511,BATLEYS PERTH,5300,Catering costs - provisions,175.56,29.26,146.30
Regeneration and Local Services,Culture & Sport,054812,Gala Theatre - Catering etc,Supplies and Services,324117,Provisions,09-Oct-2017,000006575456511 - 1,BATLEYS PERTH,5300,Catering costs - provisions,164.08,,164.08
Regeneration and Local Services,Direct Services,010900,Fleet - Meadowfield Fleet,Transport,215013,Running Costs of Vehicles,09-Oct-2017,000006575456653,DVLA VEHICLE TAX,9399,Vehicle Excise Duty (VED),242.50,0.00,242.50
Regeneration and Local Services,Direct Services,010900,Fleet - Meadowfield Fleet,Transport,215013,Running Costs of Vehicles,09-Oct-2017,000006575456659,DVLA VEHICLE TAX,9399,Vehicle Excise Duty (VED),242.50,0.00,242.50
Regeneration and Local Services,Direct Services,010900,Fleet - Meadowfield Fleet,Transport,215013,Running Costs of Vehicles,09-Oct-2017,000006575456663,DVLA VEHICLE TAX,9399,Vehicle Excise Duty (VED),242.50,0.00,242.50
Regeneration and Local Services,Direct Services,010900,Fleet - Meadowfield Fleet,Transport,215013,Running Costs of Vehicles,09-Oct-2017,000006575456667,DVLA VEHICLE TAX,9399,Vehicle Excise Duty (VED),167.50,0.00,167.50
Regeneration and Local Services,Direct Services,010900,Fleet - Meadowfield Fleet,Transport,215013,Running Costs of Vehicles,09-Oct-2017,000006575456671,DVLA VEHICLE TAX,9399,Vehicle Excise Duty (VED),167.50,0.00,167.50
Regeneration and Local Services,Direct Services,010900,Fleet - Meadowfield Fleet,Transport,215013,Running Costs of Vehicles,09-Oct-2017,000006575456675,DVLA VEHICLE TAX,9399,Vehicle Excise Duty (VED),242.50,0.00,242.50
Regeneration and Local Services,Direct Services,010561,Fleet - Morrison Busty Fleet,Transport,215013,Running Costs of Vehicles,09-Oct-2017,000006575456681,DVLA VEHICLE TAX,9399,Vehicle Excise Duty (VED),242.50,0.00,242.50
Regeneration and Local Services,Direct Services,010900,Fleet - Meadowfield Fleet,Transport,215013,Running Costs of Vehicles,09-Oct-2017,000006575456685,DVLA VEHICLE TAX,9399,Vehicle Excise Duty (VED),167.50,0.00,167.50
Regeneration and Local Services,Direct Services,010900,Fleet - Meadowfield Fleet,Transport,215013,Running Costs of Vehicles,09-Oct-2017,000006575456687,DVLA VEHICLE TAX,9399,Vehicle Excise Duty (VED),242.50,0.00,242.50
Regeneration and Local Services,Direct Services,010900,Fleet - Meadowfield Fleet,Transport,215013,Running Costs of Vehicles,09-Oct-2017,000006575456693,DVLA VEHICLE TAX,9399,Vehicle Excise Duty (VED),242.50,0.00,242.50
Regeneration and Local Services,Direct Services,010900,Fleet - Meadowfield Fleet,Transport,215013,Running Costs of Vehicles,09-Oct-2017,000006575456695,DVLA VEHICLE TAX,9399,Vehicle Excise Duty (VED),167.50,0.00,167.50
Regeneration and Local Services,Direct Services,010551,Fleet - Chilton Fleet,Transport,215013,Running Costs of Vehicles,09-Oct-2017,000006575456699,DVLA VEHICLE TAX,9399,Vehicle Excise Duty (VED),167.50,0.00,167.50
Regeneration and Local Services,Direct Services,010900,Fleet - Meadowfield Fleet,Transport,215013,Running Costs of Vehicles,09-Oct-2017,000006575456705,DVLA VEHICLE TAX,9399,Vehicle Excise Duty (VED),242.50,0.00,242.50
Regeneration and Local Services,Direct Services,010900,Fleet - Meadowfield Fleet,Transport,215013,Running Costs of Vehicles,09-Oct-2017,000006575456709,DVLA VEHICLE TAX,9399,Vehicle Excise Duty (VED),242.50,0.00,242.50
Regeneration and Local Services,Direct Services,010561,Fleet - Morrison Busty Fleet,Transport,215013,Running Costs of Vehicles,09-Oct-2017,000006575456715,DVLA VEHICLE TAX,9399,Vehicle Excise Duty (VED),202.50,0.00,202.50
Regeneration and Local Services,Direct Services,010551,Fleet - Chilton Fleet,Transport,215013,Running Costs of Vehicles,09-Oct-2017,000006575456721,DVLA VEHICLE TAX,9399,Vehicle Excise Duty (VED),242.50,0.00,242.50
Regeneration and Local Services,Direct Services,010561,Fleet - Morrison Busty Fleet,Transport,215013,Running Costs of Vehicles,09-Oct-2017,000006575456727,DVLA VEHICLE TAX,9399,Vehicle Excise Duty (VED),242.50,0.00,242.50
Regeneration and Local Services,Direct Services,010900,Fleet - Meadowfield Fleet,Transport,215013,Running Costs of Vehicles,09-Oct-2017,000006575456731,DVLA VEHICLE TAX,9399,Vehicle Excise Duty (VED),242.50,0.00,242.50
Regeneration and Local Services,Direct Services,010900,Fleet - Meadowfield Fleet,Transport,215013,Running Costs of Vehicles,09-Oct-2017,000006575456737,DVLA VEHICLE TAX,9399,Vehicle Excise Duty (VED),242.50,0.00,242.50
Regeneration and Local Services,Economic Development and Housing,030692,Durham Dales Centre - Management and Admin,Supplies and Services,328041,Clothing Uniforms and Laundry,09-Oct-2017,000006575457277,WWW.AKHOSIERY.CO.UK,5621,Clothing uniforms and laundry,468.34,0.00,468.34
Regeneration and Local Services,Direct Services,021235,Catering - Wharton Park,Supplies and Services,324117,Provisions,09-Oct-2017,000006575457463,BATLEYS PERTH,5300,Catering costs - provisions,172.02,28.67,143.35
Regeneration and Local Services,Direct Services,021235,Catering - Wharton Park,Supplies and Services,324117,Provisions,09-Oct-2017,000006575457463 - 1,BATLEYS PERTH,5300,Catering costs - provisions,19.43,,19.43
Regeneration and Local Services,Spatial Policy Planning Assets & Environment,031222,North Pennines Allen Valleys Landscape Partnership,Supplies and Services,304259,Equipment and Materials,09-Oct-2017,000006579983259,NORTHUMBERLAND CC,9399,Equipment-purchase and rental,385.00,0.00,385.00
Children and Young Peoples Services,Head of Looked After Provision Permanence and Care Leavers,085363,LAC & Permanence Team 3,Supplies and Services,304259,Equipment and Materials,09-Oct-2017,000006579983597,SUNDERLAND CC,9399,Equipment-purchase and rental,20.00,0.00,20.00
Children and Young Peoples Services,Head of Education,071801,Selby Cottage Childcare Centre,Supplies and Services,328041,Clothing Uniforms and Laundry,10-Oct-2017,000006575456211,ARGOS LTD,5310,Clothing uniforms and laundry,108.96,0.00,108.96
Children and Young Peoples Services,Head of Education,071801,Selby Cottage Childcare Centre,Supplies and Services,304259,Equipment and Materials,10-Oct-2017,000006575456217,WILKO RETAIL LIMIT,5722,Equipment-purchase and rental,14.85,2.48,12.37
Children and Young Peoples Services,Head of Looked After Provision Permanence and Care Leavers,085380,Operations Manager Adoption & Fostering,Supplies and Services,304335,Equipment and Materials,10-Oct-2017,000006575456225,Amazon UK Marketplace,5942,ICT supplies etc,69.99,0.00,69.99
Resources,Digital and Customer Services,069010,Administration,Supplies and Services,344033,Telephones,10-Oct-2017,000006575456233,Amazon UK Marketplace,5942,Telephones general-all costs,159.60,0.00,159.60
Children and Young Peoples Services,Head of Early Help Assessment and Safeguarding,085624,Families First Crook,Supplies and Services,304335,Equipment and Materials,10-Oct-2017,000006575456237,Amazon UK Marketplace,5942,ICT supplies etc,39.98,0.00,39.98
Resources,Digital and Customer Services,065432,Web Development Group,Employees,040149,Recruitment Instruction and Training,10-Oct-2017,000006575456245,OPEN STUDY COLLEGE,8299,Training-all costs,389.00,0.00,389.00
Regeneration and Local Services,Transport and Contracted Services,032170,Integrated Passenger Transport,Supplies and Services,332047,Printing Stationery and Gen Off Exps,10-Oct-2017,000006575456251,AMZ ARMCO,5999,Stationery,-19.37,0.00,-19.37
Adult and Health Services,Head of Adults,055302,Durham Pathways,Supplies and Services,324117,Provisions,10-Oct-2017,000006575456327,TESCO STORES 2278,5411,Catering costs - provisions,7.80,0.00,7.80
Children and Young Peoples Services,Head of Early Help Assessment and Safeguarding,088037,One Point YEI,Supplies and Services,384199,Miscellaneous Expenses,10-Oct-2017,000006575456431,WWW.DURHAM.GOV.UK,9399,Other hired and contracted services,12.00,0.00,12.00
Children and Young Peoples Services,Head of Early Help Assessment and Safeguarding,088037,One Point YEI,Supplies and Services,384199,Miscellaneous Expenses,10-Oct-2017,000006575456435,WWW.DURHAM.GOV.UK,9399,Other hired and contracted services,12.00,0.00,12.00
Children and Young Peoples Services,Head of Early Help Assessment and Safeguarding,088037,One Point YEI,Supplies and Services,384199,Miscellaneous Expenses,10-Oct-2017,000006575456441,WWW.DURHAM.GOV.UK,9399,Other hired and contracted services,12.00,0.00,12.00
Children and Young Peoples Services,Head of Early Help Assessment and Safeguarding,088037,One Point YEI,Supplies and Services,384199,Miscellaneous Expenses,10-Oct-2017,000006575456445,WWW.DURHAM.GOV.UK,9399,Other hired and contracted services,12.00,0.00,12.00
Regeneration and Local Services,Direct Services,021242,Catering - County Hall,Supplies and Services,324117,Provisions,10-Oct-2017,000006575456463,JR HOLLAND FOODSERVICE,5422,Catering costs - provisions,74.33,0.00,74.33
Regeneration and Local Services,Economic Development and Housing,030737,Durham Works Flexible Fund,Transport,235057,Public Transport,10-Oct-2017,000006575456479,ARRIVA NORTH EAST,4131,Staff travelling,25.00,0.00,25.00
Regeneration and Local Services,Economic Development and Housing,030737,Durham Works Flexible Fund,Transport,235057,Public Transport,10-Oct-2017,000006575456487,ARRIVA NORTH EAST,4131,Staff travelling,7.00,0.00,7.00
Regeneration and Local Services,Culture & Sport,054812,Gala Theatre - Catering etc,Supplies and Services,324117,Provisions,10-Oct-2017,000006575456505,JR HOLLAND FOODSERVICE,5422,Catering costs - provisions,27.03,0.00,27.03
Regeneration and Local Services,Direct Services,010367,C&G - South Grounds Maintenance,Supplies and Services,304259,Equipment and Materials,10-Oct-2017,000006575456743,JEWSON LTD,5211,Equipment-purchase and rental,297.00,49.50,247.50
Regeneration and Local Services,Economic Development and Housing,030749,Employability - Youth Contract,Supplies and Services,340001,Postages,10-Oct-2017,000006575456749,POST OFFICE COUNTER,9402,Postages,220.00,0.00,220.00
Children and Young Peoples Services,Head of Education,071732,Dean Bank Childcare,Supplies and Services,312011,Newspapers Books and Periodicals,10-Oct-2017,000006575456805,Amazon UK Marketplace,5942,Books-school library,9.08,0.00,9.08
Children and Young Peoples Services,Head of Education,071732,Dean Bank Childcare,Supplies and Services,312011,Newspapers Books and Periodicals,10-Oct-2017,000006575456811,Amazon UK Marketplace,5942,Books-school library,11.98,0.00,11.98
Regeneration and Local Services,Culture & Sport,054813,Gala Theatre - Technical,Supplies and Services,312011,Newspapers Books and Periodicals,10-Oct-2017,000006575456819,Amazon UK Marketplace,5942,Books-school library,64.54,0.00,64.54
Regeneration and Local Services,Culture & Sport,054813,Gala Theatre - Technical,Supplies and Services,328041,Clothing Uniforms and Laundry,10-Oct-2017,000006575456823,WWW.DICKIESSTORE.CO.UK,5691,Clothing uniforms and laundry,4.98,0.83,4.15
Regeneration and Local Services,Culture & Sport,054813,Gala Theatre - Technical,Supplies and Services,328041,Clothing Uniforms and Laundry,10-Oct-2017,000006575456823 - 1,WWW.DICKIESSTORE.CO.UK,5691,Clothing uniforms and laundry,35.01,,35.01
Regeneration and Local Services,Culture & Sport,054813,Gala Theatre - Technical,Supplies and Services,304403,Equipment and Materials,10-Oct-2017,000006575456827,MESSY SUPPLIES,5999,Other consumables,21.56,3.59,17.97
Children and Young Peoples Services,Head of Early Help Assessment and Safeguarding,071445,Chester le Street One Point Hub,Supplies and Services,324117,Provisions,10-Oct-2017,000006575456871,JR HOLLAND FOODSERVICE,5422,Catering costs - provisions,16.64,0.00,16.64
Children and Young Peoples Services,Head of Looked After Provision Permanence and Care Leavers,085957,Secure Management,Supplies and Services,384999,Miscellaneous Expenses,10-Oct-2017,000006575456887,Amazon UK Marketplace,5942,Other expenses,59.96,0.00,59.96
Children and Young Peoples Services,Head of Looked After Provision Permanence and Care Leavers,085957,Secure Management,Supplies and Services,328041,Clothing Uniforms and Laundry,10-Oct-2017,000006575456895,Amazon UK Marketplace,5942,Clothing uniforms and laundry,108.98,0.00,108.98
Children and Young Peoples Services,Head of Looked After Provision Permanence and Care Leavers,085957,Secure Management,Supplies and Services,328041,Clothing Uniforms and Laundry,10-Oct-2017,000006575456899,M and M Direct Ltd,5941,Clothing uniforms and laundry,64.95,0.00,64.95
Children and Young Peoples Services,Head of Looked After Provision Permanence and Care Leavers,085961,Themed Week Activity,Supplies and Services,384871,Miscellaneous Expenses,10-Oct-2017,000006575456903,RED CACTUS EVENTS LTD,7999,Training-other activities,275.00,45.83,229.17
Children and Young Peoples Services,Head of Looked After Provision Permanence and Care Leavers,085957,Secure Management,Supplies and Services,328041,Clothing Uniforms and Laundry,10-Oct-2017,000006575456909,WWW.ARGOS.CO.UK,5310,Clothing uniforms and laundry,83.94,0.00,83.94
Children and Young Peoples Services,Head of Looked After Provision Permanence and Care Leavers,085957,Secure Management,Supplies and Services,328041,Clothing Uniforms and Laundry,10-Oct-2017,000006575456913,WWW.FOOTASYLUM.COM,5941,Clothing uniforms and laundry,22.98,0.00,22.98
Children and Young Peoples Services,Head of Looked After Provision Permanence and Care Leavers,085957,Secure Management,Supplies and Services,328041,Clothing Uniforms and Laundry,10-Oct-2017,000006575456917,WWW.FOOTASYLUM.COM,5941,Clothing uniforms and laundry,64.98,0.00,64.98
Children and Young Peoples Services,Head of Looked After Provision Permanence and Care Leavers,085957,Secure Management,Supplies and Services,328041,Clothing Uniforms and Laundry,10-Oct-2017,000006575456921,gethelabel.com,5651,Clothing uniforms and laundry,110.94,0.00,110.94
Children and Young Peoples Services,Head of Looked After Provision Permanence and Care Leavers,085957,Secure Management,Supplies and Services,328041,Clothing Uniforms and Laundry,10-Oct-2017,000006575456927,VERY.CO.UK,5964,Clothing uniforms and laundry,151.99,0.00,151.99
Regeneration and Local Services,Culture & Sport,011060,Hardwick Park Catering,Supplies and Services,324117,Provisions,10-Oct-2017,000006575456967,JR HOLLAND FOODSERVICE,5422,Catering costs - provisions,23.46,0.00,23.46
Regeneration and Local Services,Direct Services,021234,Catering - Locomotion,Supplies and Services,324117,Provisions,10-Oct-2017,000006575456981,JR HOLLAND FOODSERVICE,5422,Catering costs - provisions,15.48,0.00,15.48
Adult and Health Services,Head of Adults,051603,OP/PD Durham & CLS,Supplies and Services,340001,Postages,10-Oct-2017,000006575457011,ROYAL MAIL ONLINE SHOP,9402,Postages,56.00,0.00,56.00
Regeneration and Local Services,Culture & Sport,011191,Wellbeing4Life,Supplies and Services,324117,Provisions,10-Oct-2017,000006575457061,LIDL UK,5411,Catering costs - provisions,9.99,0.00,9.99
Children and Young Peoples Services,Head of Early Help Assessment and Safeguarding,071616,Seaham Childrens Centre,Supplies and Services,304259,Equipment and Materials,10-Oct-2017,000006575457089,CURRYS ONLINE,5732,Equipment-purchase and rental,229.99,0.00,229.99
Regeneration and Local Services,Economic Development and Housing,030737,Durham Works Flexible Fund,Transport,235057,Public Transport,10-Oct-2017,000006575457107,WWW.SIMPLYGO.COM,4131,Staff travelling,92.00,0.00,92.00
Regeneration and Local Services,Economic Development and Housing,031576,B& B - Temp Accom,Supplies and Services,364320,Grants to Voluntary Organisations,10-Oct-2017,000006575457115,TRAVELODGE,3615,Accommodation assistance,38.00,6.33,31.67
Regeneration and Local Services,Spatial Policy Planning Assets & Environment,036000,Asset Management,Supplies and Services,352001,Conference Expenses,10-Oct-2017,000006575457241,RICS,8699,Conferencesseminars fees etc,132.00,0.00,132.00
Children and Young Peoples Services,Head of Early Help Assessment and Safeguarding,088001,Peterlee Locality,Supplies and Services,304259,Equipment and Materials,10-Oct-2017,000006575457273,HARTLEPOOL BC CNP,9399,Equipment-purchase and rental,14.21,0.00,14.21
Regeneration and Local Services,Culture & Sport,054235,Bishop Auckland Town Hall Cafe,Supplies and Services,324117,Provisions,10-Oct-2017,000006575457285,JR HOLLAND FOODSERVICE,5422,Catering costs - provisions,21.84,0.00,21.84
Regeneration and Local Services,Culture & Sport,054235,Bishop Auckland Town Hall Cafe,Supplies and Services,324117,Provisions,10-Oct-2017,000006575457293,JR HOLLAND FOODSERVICE,5422,Catering costs - provisions,12.04,0.00,12.04
Adult and Health Services,Head of Adults,055301,Stanley Pathways,Supplies and Services,324117,Provisions,10-Oct-2017,000006575457315,ASDA SUPERSTORE,5411,Catering costs - provisions,4.97,0.00,4.97
Regeneration and Local Services,Economic Development and Housing,030694,Netpark Incubator 2,Supplies and Services,342033,Computers and Communications,10-Oct-2017,000006575457405,ARGOS RETAIL GROUP,5310,Computer hardware,3.49,0.00,3.49
Adult and Health Services,Head of Adults,055309,Peterlee Pathways,Supplies and Services,324117,Provisions,10-Oct-2017,000006575457485,LIDL UK,5411,Catering costs - provisions,0.89,0.00,0.89
Regeneration and Local Services,Economic Development and Housing,030737,Durham Works Flexible Fund,Supplies and Services,328041,Clothing Uniforms and Laundry,10-Oct-2017,000006575457491,PAYPAL FANCYTRADER,5699,Clothing uniforms and laundry,199.00,0.00,199.00
Regeneration and Local Services,Culture & Sport,011230,Operations Locality 2,Supplies and Services,304259,Equipment and Materials,10-Oct-2017,000006575457533,SCREWFIX DIRECT,5211,Equipment-purchase and rental,161.14,0.00,161.14
Regeneration and Local Services,Direct Services,021242,Catering - County Hall,Supplies and Services,324117,Provisions,10-Oct-2017,000006579983081,BATLEYS PERTH,5300,Catering costs - provisions,434.10,72.35,361.75
Regeneration and Local Services,Direct Services,021242,Catering - County Hall,Supplies and Services,324117,Provisions,10-Oct-2017,000006579983081 - 1,BATLEYS PERTH,5300,Catering costs - provisions,280.78,,280.78
Regeneration and Local Services,Direct Services,021242,Catering - County Hall,Supplies and Services,324117,Provisions,10-Oct-2017,000006579983091,BATLEYS PERTH,5300,Catering costs - provisions,11.48,0.00,11.48
Regeneration and Local Services,Culture & Sport,011060,Hardwick Park Catering,Supplies and Services,324117,Provisions,10-Oct-2017,000006579983269,BATLEYS PERTH,5300,Catering costs - provisions,26.10,4.35,21.75
Regeneration and Local Services,Culture & Sport,011060,Hardwick Park Catering,Supplies and Services,324117,Provisions,10-Oct-2017,000006579983269 - 1,BATLEYS PERTH,5300,Catering costs - provisions,80.09,,80.09
Regeneration and Local Services,Direct Services,010525,Catering - Green Lane,Supplies and Services,324117,Provisions,10-Oct-2017,000006579983313,BATLEYS PERTH,5300,Catering costs - provisions,260.16,43.36,216.80
Regeneration and Local Services,Direct Services,010525,Catering - Green Lane,Supplies and Services,324117,Provisions,10-Oct-2017,000006579983313 - 1,BATLEYS PERTH,5300,Catering costs - provisions,31.59,,31.59
Regeneration and Local Services,Direct Services,010525,Catering - Green Lane,Supplies and Services,324117,Provisions,10-Oct-2017,000006579983319,BATLEYS PERTH,5300,Catering costs - provisions,7.30,0.00,7.30
Regeneration and Local Services,Spatial Policy Planning Assets & Environment,031202,North Pennines - Peatscapes,Supplies and Services,352001,Conference Expenses,10-Oct-2017,000006579983441,THE RITZ-CARLTON,3710,Conferencesseminars fees etc,79.00,0.00,79.00
Regeneration and Local Services,Direct Services,021324,Catering - Meadowfield,Supplies and Services,324117,Provisions,10-Oct-2017,000006579983563,BATLEYS PERTH,5300,Catering costs - provisions,70.56,11.76,58.80
Regeneration and Local Services,Direct Services,021324,Catering - Meadowfield,Supplies and Services,324117,Provisions,10-Oct-2017,000006579983563 - 1,BATLEYS PERTH,5300,Catering costs - provisions,54.18,,54.18
Regeneration and Local Services,Economic Development and Housing,030749,Employability - Youth Contract,Supplies and Services,312011,Newspapers Books and Periodicals,10-Oct-2017,000006624707045,4IMPRINT,5969,Books-school library,216.54,36.09,180.45
Children and Young Peoples Services,Head of Looked After Provision Permanence and Care Leavers,085341,High Etherley Satelite Home,Supplies and Services,324117,Provisions,11-Oct-2017,000006579982961,TESCO STORES 6329,5411,Catering costs - provisions,31.45,0.00,31.45
Children and Young Peoples Services,Head of Looked After Provision Permanence and Care Leavers,085341,High Etherley Satelite Home,Supplies and Services,324117,Provisions,11-Oct-2017,000006579982965,TESCO STORES 6329,5411,Catering costs - provisions,7.00,0.00,7.00
Children and Young Peoples Services,Head of Education,071801,Selby Cottage Childcare Centre,Supplies and Services,304403,Equipment and Materials,11-Oct-2017,000006579982969,WWW.LIGHTS4FUN.CO.,5999,Other consumables,42.97,0.00,42.97
Children and Young Peoples Services,Head of Early Help Assessment and Safeguarding,085624,Families First Crook,Supplies and Services,304335,Equipment and Materials,11-Oct-2017,000006579982973,Amazon UK Marketplace,5942,ICT supplies etc,39.98,0.00,39.98
Children and Young Peoples Services,Head of Education,078554,Adult Skills-Main,Supplies and Services,304335,Equipment and Materials,11-Oct-2017,000006579982977,Amazon EU,5969,ICT supplies etc,11.38,0.00,11.38
Regeneration and Local Services,Direct Services,010383,C&G - South Street Cleansing,Supplies and Services,304259,Equipment and Materials,11-Oct-2017,000006579983021,TUDOR ENVIRONMENTAL,5261,Equipment-purchase and rental,276.64,46.11,230.53
Children and Young Peoples Services,Head of Looked After Provision Permanence and Care Leavers,085957,Secure Management,Supplies and Services,304403,Equipment and Materials,11-Oct-2017,000006579983025,WWW.IRONMONGERYDIRECT.,5231,Other consumables,184.80,30.80,154.00
Regeneration and Local Services,Direct Services,022902,Waste Strategy,Supplies and Services,372009,Subscriptions,11-Oct-2017,000006579983061,EMAP LTD-SUBSCRIPTIONS,2741,Subscriptions,141.30,0.00,141.30
Regeneration and Local Services,Direct Services,021242,Catering - County Hall,Supplies and Services,324117,Provisions,11-Oct-2017,000006579983069,JR HOLLAND FOODSERVICE,5422,Catering costs - provisions,108.63,0.00,108.63
Regeneration and Local Services,Direct Services,021242,Catering - County Hall,Supplies and Services,324117,Provisions,11-Oct-2017,000006579983075,JR HOLLAND FOODSERVICE,5422,Catering costs - provisions,36.57,0.00,36.57
Regeneration and Local Services,Direct Services,021242,Catering - County Hall,Supplies and Services,324117,Provisions,11-Oct-2017,000006579983077,JR HOLLAND FOODSERVICE,5422,Catering costs - provisions,31.35,0.00,31.35
Resources,Digital and Customer Services,065461,Business Support,Supplies and Services,372009,Subscriptions,11-Oct-2017,000006579983093,WEB NETWORKSOLUTIONS,5968,Subscriptions,31.83,0.00,31.83
Regeneration and Local Services,Economic Development and Housing,030737,Durham Works Flexible Fund,Supplies and Services,384999,Miscellaneous Expenses,11-Oct-2017,000006579983099,FIFE COUNCIL INTERNET,9399,Other expenses,15.00,0.00,15.00
Regeneration and Local Services,Economic Development and Housing,030554,International Relations,Transport,235057,Public Transport,11-Oct-2017,000006579983101,EAST COAST MAINLINE CO,4112,Staff travelling,33.45,0.00,33.45
Regeneration and Local Services,Economic Development and Housing,030749,Employability - Youth Contract,Supplies and Services,324117,Provisions,11-Oct-2017,000006579983157,ASDA STORES,5411,Catering costs - provisions,41.50,0.00,41.50
Regeneration and Local Services,Economic Development and Housing,030737,Durham Works Flexible Fund,Supplies and Services,348037,Subsistence,11-Oct-2017,000006579983213,WWW.SIMPLYGO.COM,4131,Subsistence,70.00,0.00,70.00
Children and Young Peoples Services,Head of Early Help Assessment and Safeguarding,088037,One Point YEI,Supplies and Services,304403,Equipment and Materials,11-Oct-2017,000006579983217,GRO HM PASSPORT OFFICE,9399,Other consumables,9.25,0.00,9.25
Regeneration and Local Services,Economic Development and Housing,030737,Durham Works Flexible Fund,Supplies and Services,344033,Telephones,11-Oct-2017,000006579983219,VODAFONE,4814,Telephones general-all costs,19.02,3.17,15.85
Regeneration and Local Services,Economic Development and Housing,030737,Durham Works Flexible Fund,Supplies and Services,344033,Telephones,11-Oct-2017,000006579983219 - 1,VODAFONE,4814,Telephones general-all costs,9.98,,9.98
Regeneration and Local Services,Economic Development and Housing,030737,Durham Works Flexible Fund,Supplies and Services,328041,Clothing Uniforms and Laundry,11-Oct-2017,000006579983225,ARGOS LTD,5310,Clothing uniforms and laundry,250.04,0.00,250.04
Regeneration and Local Services,Economic Development and Housing,030737,Durham Works Flexible Fund,Supplies and Services,328041,Clothing Uniforms and Laundry,11-Oct-2017,000006579983227,ARGOS LTD,5310,Clothing uniforms and laundry,250.04,0.00,250.04
Regeneration and Local Services,Economic Development and Housing,030737,Durham Works Flexible Fund,Supplies and Services,342033,Computers and Communications,11-Oct-2017,000006579983231,WWW.NISBETS.COM,5964,Computer hardware,262.74,43.79,218.95
Children and Young Peoples Services,Head of Looked After Provision Permanence and Care Leavers,085952,Secure Education,Supplies and Services,384999,Miscellaneous Expenses,11-Oct-2017,000006579983239,Amazon EU,5969,Other expenses,20.00,0.00,20.00
Children and Young Peoples Services,Head of Looked After Provision Permanence and Care Leavers,085954,Walworth,Supplies and Services,304649,Equipment and Materials,11-Oct-2017,000006579983243,WWW.ARGOS.CO.UK,5310,Toys,153.94,25.66,128.28
Children and Young Peoples Services,Head of Looked After Provision Permanence and Care Leavers,085957,Secure Management,Supplies and Services,328041,Clothing Uniforms and Laundry,11-Oct-2017,000006579983247,WWW.FOOTASYLUM.COM,5941,Clothing uniforms and laundry,33.93,0.00,33.93
Children and Young Peoples Services,Head of Looked After Provision Permanence and Care Leavers,085955,Auckland,Supplies and Services,324117,Provisions,11-Oct-2017,000006579983251,TESCO STORES 6329,5411,Catering costs - provisions,100.81,0.00,100.81
Children and Young Peoples Services,Head of Looked After Provision Permanence and Care Leavers,085955,Auckland,Supplies and Services,384999,Miscellaneous Expenses,11-Oct-2017,000006579983255,SP STEVEN BROWN ART,7333,Other expenses,329.92,54.99,274.93
Regeneration and Local Services,Culture & Sport,011060,Hardwick Park Catering,Supplies and Services,324117,Provisions,11-Oct-2017,000006579983265,JR HOLLAND FOODSERVICE,5422,Catering costs - provisions,116.22,0.00,116.22
Regeneration and Local Services,Culture & Sport,011060,Hardwick Park Catering,Supplies and Services,324117,Provisions,11-Oct-2017,000006579983267,JR HOLLAND FOODSERVICE,5422,Catering costs - provisions,47.14,0.00,47.14
Resources,Digital and Customer Services,065335,School Services - Implementations,Supplies and Services,342033,Computers and Communications,11-Oct-2017,000006579983283,Amazon UK Marketplace,5942,Computer hardware,11.16,0.00,11.16
Resources,Digital and Customer Services,065335,School Services - Implementations,Supplies and Services,304639,Equipment and Materials,11-Oct-2017,000006579983287,PAYPAL BECKETTSMUS,5735,Technicians-supplies,26.30,0.00,26.30
Regeneration and Local Services,Direct Services,010525,Catering - Green Lane,Supplies and Services,324117,Provisions,11-Oct-2017,000006579983307,JR HOLLAND FOODSERVICE,5422,Catering costs - provisions,36.65,0.00,36.65
Regeneration and Local Services,Direct Services,010525,Catering - Green Lane,Supplies and Services,324117,Provisions,11-Oct-2017,000006579983311,JR HOLLAND FOODSERVICE,5422,Catering costs - provisions,1.49,0.00,1.49
Children and Young Peoples Services,Head of Looked After Provision Permanence and Care Leavers,085352,Tow Law CU,Supplies and Services,328041,Clothing Uniforms and Laundry,11-Oct-2017,000006579983325,WWW.ARGOS.CO.UK,5310,Clothing uniforms and laundry,236.94,0.00,236.94
Children and Young Peoples Services,Head of Looked After Provision Permanence and Care Leavers,085352,Tow Law CU,Supplies and Services,324117,Provisions,11-Oct-2017,000006579983327,TESCO STORES 2371,5411,Catering costs - provisions,125.75,0.00,125.75
Children and Young Peoples Services,Head of Looked After Provision Permanence and Care Leavers,085352,Tow Law CU,Supplies and Services,328041,Clothing Uniforms and Laundry,11-Oct-2017,000006579983349,ARGOS RETAIL GROUP,5310,Clothing uniforms and laundry,113.41,0.00,113.41
Regeneration and Local Services,Economic Development and Housing,030749,Employability - Youth Contract,Transport,230031,Contract Hire,11-Oct-2017,000006579983393,ARRIVA NORTH EAST,4131,Pupils-transport to play fields etc,6.50,0.00,6.50
Children and Young Peoples Services,Head of Looked After Provision Permanence and Care Leavers,085333,Coxhoe Satelite Home,Supplies and Services,324117,Provisions,11-Oct-2017,000006579983397,TESCO STORES 2371,5411,Catering costs - provisions,118.00,0.00,118.00
Regeneration and Local Services,Direct Services,010367,C&G - South Grounds Maintenance,Supplies and Services,328041,Clothing Uniforms and Laundry,11-Oct-2017,000006579983405,STERLING SAFETY SERVIC,5691,Clothing uniforms and laundry,42.00,7.00,35.00
Regeneration and Local Services,Direct Services,010367,C&G - South Grounds Maintenance,Supplies and Services,304259,Equipment and Materials,11-Oct-2017,000006579983409,SCREWFIX DIRECT LT,5211,Equipment-purchase and rental,11.98,2.00,9.98
Adult and Health Services,Head of Adults,055301,Stanley Pathways,Supplies and Services,324117,Provisions,11-Oct-2017,000006579983413,ASDA SUPERSTORE,5411,Catering costs - provisions,14.52,0.00,14.52
Regeneration and Local Services,Culture & Sport,026591,Hardwick Park,Supplies and Services,304245,Equipment and Materials,11-Oct-2017,000006579983421,Amazon UK Marketplace,5942,Materials,3.62,0.00,3.62
Children and Young Peoples Services,Head of Early Help Assessment and Safeguarding,071616,Seaham Childrens Centre,Supplies and Services,312011,Newspapers Books and Periodicals,11-Oct-2017,000006579983425,Amazon UK Marketplace,5942,Books-school library,9.01,0.00,9.01
Regeneration and Local Services,Spatial Policy Planning Assets & Environment,031202,North Pennines - Peatscapes,Supplies and Services,324117,Provisions,11-Oct-2017,000006579983445,WAITROSE 619,5411,Catering costs - provisions,3.37,0.00,3.37
Regeneration and Local Services,Spatial Policy Planning Assets & Environment,031202,North Pennines - Peatscapes,Supplies and Services,348037,Subsistence,11-Oct-2017,000006579983447,PAPA BRUNO,5814,Subsistence,8.50,0.00,8.50
Regeneration and Local Services,Direct Services,010301,C&G - North Grounds Maintenance,Supplies and Services,384999,Miscellaneous Expenses,11-Oct-2017,000006579983497,FLEET (LINE MARKERS) L,5046,Other expenses,176.71,0.00,176.71
Dedicated Schools Grant,Dedicated Schools Grant,079040,SENSS-HQ,Supplies and Services,304403,Equipment and Materials,11-Oct-2017,000006579983529,UCL BUSINESS PLC,5734,Other consumables,36.00,0.00,36.00
Children and Young Peoples Services,Head of Education,071903,EYDCP-Sustainability EDS,Employees,040149,Recruitment Instruction and Training,11-Oct-2017,000006579983539,WWWKATHYBRODIECOM,8999,Training-all costs,25.00,0.00,25.00
Children and Young Peoples Services,Head of Education,071903,EYDCP-Sustainability EDS,Employees,040149,Recruitment Instruction and Training,11-Oct-2017,000006579983541,WWWKATHYBRODIECOM,8999,Training-all costs,25.00,0.00,25.00
Regeneration and Local Services,Culture & Sport,054235,Bishop Auckland Town Hall Cafe,Supplies and Services,324117,Provisions,11-Oct-2017,000006579983545,JR HOLLAND FOODSERVICE,5422,Catering costs - provisions,70.00,0.00,70.00
Regeneration and Local Services,Direct Services,021324,Catering - Meadowfield,Supplies and Services,324117,Provisions,11-Oct-2017,000006579983557,JR HOLLAND FOODSERVICE,5422,Catering costs - provisions,21.93,0.00,21.93
Regeneration and Local Services,Direct Services,021324,Catering - Meadowfield,Supplies and Services,324117,Provisions,11-Oct-2017,000006579983559,JR HOLLAND FOODSERVICE,5422,Catering costs - provisions,13.87,0.00,13.87
Resources,Digital and Customer Services,070204,School Services - Systems,Supplies and Services,342033,Computers and Communications,11-Oct-2017,000006579983661,GOOGLE APPS LOGIN FOR,7372,Computer hardware,335.35,0.00,335.35
Adult and Health Services,Commissioning inc Supporting People,052969,Locality and Operational Support AHS,Supplies and Services,338064,Services,11-Oct-2017,000006579983665,DISCLOSURE SCOT,9399,Disclosure & Barring (DBS) Fees,25.00,0.00,25.00
Regeneration and Local Services,Direct Services,021235,Catering - Wharton Park,Supplies and Services,324117,Provisions,11-Oct-2017,000006579983675,JR HOLLAND FOODSERVICE,5422,Catering costs - provisions,13.11,0.00,13.11
Regeneration and Local Services,Spatial Policy Planning Assets & Environment,031200,North Pennines Core,Supplies and Services,312011,Newspapers Books and Periodicals,11-Oct-2017,000006579983717,Amazon EU,5969,Books-school library,29.79,0.00,29.79
Regeneration and Local Services,Spatial Policy Planning Assets & Environment,031200,North Pennines Core,Supplies and Services,328041,Clothing Uniforms and Laundry,11-Oct-2017,000006579983719,WORKWEAR EXPRESS LIMIT,5699,Clothing uniforms and laundry,54.05,9.01,45.04
Children and Young Peoples Services,Head of Early Help Assessment and Safeguarding,085801,CDYOS - Support,Supplies and Services,304999,Equipment and Materials,11-Oct-2017,000006579983723,AMFBOWLING.CO.UK,7933,Misc equipment tools and materials,174.90,0.00,174.90
Adult and Health Services,Head of Adults,055309,Peterlee Pathways,Supplies and Services,308011,Furniture,11-Oct-2017,000006579983727,POUNDSTRETCHER 396,5714,Furniture repair and replacement,5.98,0.00,5.98
Adult and Health Services,Head of Adults,055309,Peterlee Pathways,Supplies and Services,324117,Provisions,11-Oct-2017,000006579983731,LIDL UK,5411,Catering costs - provisions,3.83,0.00,3.83
Children and Young Peoples Services,Head of Looked After Provision Permanence and Care Leavers,085957,Secure Management,Supplies and Services,328041,Clothing Uniforms and Laundry,11-Oct-2017,000006584804969,gethelabel.com,5651,Clothing uniforms and laundry,16.99,0.00,16.99
Regeneration and Local Services,Spatial Policy Planning Assets & Environment,031202,North Pennines - Peatscapes,Transport,235057,Public Transport,11-Oct-2017,000006584805163,3C_ ECML DURHAM STATIO,7523,Staff travelling,20.50,0.00,20.50
Children and Young Peoples Services,Head of Early Help Assessment and Safeguarding,074000,TTF-Attachment and Results,Transfer Payments,525033,Other,11-Oct-2017,000006584805335,ASDA GEORGE COM LEEDS,5411,Grants to individuals,-2.95,0.00,-2.95
Children and Young Peoples Services,Head of Early Help Assessment and Safeguarding,074000,TTF-Attachment and Results,Transfer Payments,525033,Other,11-Oct-2017,000006584805339,ASDA GEORGE COM LEEDS,5411,Grants to individuals,-79.00,0.00,-79.00
Resources,Digital and Customer Services,065461,Business Support,Supplies and Services,372009,Subscriptions,12-Oct-2017,000006579983095,WEB NETWORKSOLUTIONS,5968,Subscriptions,0.88,0.00,0.88
Resources,Digital and Customer Services,070204,School Services - Systems,Supplies and Services,342033,Computers and Communications,12-Oct-2017,000006579983667,GOOGLE APPS LOGIN FOR,7372,Computer hardware,9.22,0.00,9.22
Children and Young Peoples Services,Head of Looked After Provision Permanence and Care Leavers,085342,9 Cedar Drive Aycliffe,Supplies and Services,304403,Equipment and Materials,12-Oct-2017,000006584804785,AMAZON UK RETAIL AMAZO,5999,Other consumables,12.98,0.00,12.98
Regeneration and Local Services,Direct Services,021242,Catering - County Hall,Supplies and Services,324117,Provisions,12-Oct-2017,000006584804837,HOPWELLS LTD,5811,Catering costs - provisions,337.69,0.00,337.69
Regeneration and Local Services,Direct Services,021242,Catering - County Hall,Supplies and Services,324117,Provisions,12-Oct-2017,000006584804845,HOPWELLS LTD,5811,Catering costs - provisions,99.14,0.00,99.14
Regeneration and Local Services,Direct Services,021242,Catering - County Hall,Supplies and Services,324117,Provisions,12-Oct-2017,000006584804849,HOPWELLS LTD,5811,Catering costs - provisions,79.83,0.00,79.83
Regeneration and Local Services,Direct Services,021242,Catering - County Hall,Supplies and Services,324117,Provisions,12-Oct-2017,000006584804853,JR HOLLAND FOODSERVICE,5422,Catering costs - provisions,80.56,0.00,80.56
Regeneration and Local Services,Direct Services,021242,Catering - County Hall,Supplies and Services,324117,Provisions,12-Oct-2017,000006584804857,JR HOLLAND FOODSERVICE,5422,Catering costs - provisions,13.16,0.00,13.16
Regeneration and Local Services,Economic Development and Housing,030737,Durham Works Flexible Fund,Transport,235057,Public Transport,12-Oct-2017,000006584804865,ARRIVA NORTH EAST,4131,Staff travelling,7.00,0.00,7.00
Regeneration and Local Services,Culture & Sport,054812,Gala Theatre - Catering etc,Supplies and Services,324117,Provisions,12-Oct-2017,000006584804871,HOPWELLS LTD,5811,Catering costs - provisions,50.54,0.00,50.54
Regeneration and Local Services,Culture & Sport,054812,Gala Theatre - Catering etc,Supplies and Services,324117,Provisions,12-Oct-2017,000006584804875,JR HOLLAND FOODSERVICE,5422,Catering costs - provisions,52.88,0.00,52.88
Children and Young Peoples Services,Head of Education,071903,EYDCP-Sustainability EDS,Supplies and Services,328041,Clothing Uniforms and Laundry,12-Oct-2017,000006584804959,WWW.EARLYEXCELLENCE.CO,5641,Clothing uniforms and laundry,78.00,0.00,78.00
Children and Young Peoples Services,Head of Looked After Provision Permanence and Care Leavers,085955,Auckland,Supplies and Services,312009,Newspapers Books and Periodicals,12-Oct-2017,000006584804967,Amazon UK Marketplace,5942,Newspapers books and periodicals,15.83,0.00,15.83
Children and Young Peoples Services,Head of Looked After Provision Permanence and Care Leavers,085965,Barnard,Supplies and Services,324117,Provisions,12-Oct-2017,000006584804971,TESCO STORES 6329,5411,Catering costs - provisions,87.21,0.00,87.21
Children and Young Peoples Services,Head of Looked After Provision Permanence and Care Leavers,085952,Secure Education,Supplies and Services,312009,Newspapers Books and Periodicals,12-Oct-2017,000006584804975,AMAZON.CO.UK,5942,Newspapers books and periodicals,23.90,0.00,23.90
Regeneration and Local Services,Culture & Sport,010919,Countryside Site Management,Supplies and Services,304259,Equipment and Materials,12-Oct-2017,000006584804979,CARRS BILLINGTON AGRI,5399,Equipment-purchase and rental,19.73,3.29,16.44
Regeneration and Local Services,Culture & Sport,011060,Hardwick Park Catering,Supplies and Services,324117,Provisions,12-Oct-2017,000006584804989,HOPWELLS LTD,5811,Catering costs - provisions,96.36,16.06,80.30
Regeneration and Local Services,Culture & Sport,011060,Hardwick Park Catering,Supplies and Services,324117,Provisions,12-Oct-2017,000006584804989 - 1,HOPWELLS LTD,5811,Catering costs - provisions,40.52,,40.52
Regeneration and Local Services,Culture & Sport,011060,Hardwick Park Catering,Supplies and Services,324117,Provisions,12-Oct-2017,000006584804993,HOPWELLS LTD,5811,Catering costs - provisions,113.16,0.00,113.16
Regeneration and Local Services,Culture & Sport,011060,Hardwick Park Catering,Supplies and Services,324117,Provisions,12-Oct-2017,000006584804997,HOPWELLS LTD,5811,Catering costs - provisions,96.46,0.00,96.46
Regeneration and Local Services,Culture & Sport,011060,Hardwick Park Catering,Supplies and Services,324117,Provisions,12-Oct-2017,000006584805001,JR HOLLAND FOODSERVICE,5422,Catering costs - provisions,59.67,0.00,59.67
Regeneration and Local Services,Culture & Sport,011060,Hardwick Park Catering,Supplies and Services,324117,Provisions,12-Oct-2017,000006584805005,HOPWELLS LTD,5811,Catering costs - provisions,-10.24,0.00,-10.24
Regeneration and Local Services,Direct Services,021234,Catering - Locomotion,Supplies and Services,324117,Provisions,12-Oct-2017,000006584805027,HOPWELLS LTD,5811,Catering costs - provisions,105.36,0.00,105.36
Regeneration and Local Services,Direct Services,021234,Catering - Locomotion,Supplies and Services,324117,Provisions,12-Oct-2017,000006584805031,HOPWELLS LTD,5811,Catering costs - provisions,17.59,0.00,17.59
Regeneration and Local Services,Direct Services,021234,Catering - Locomotion,Supplies and Services,324117,Provisions,12-Oct-2017,000006584805035,JR HOLLAND FOODSERVICE,5422,Catering costs - provisions,6.24,0.00,6.24
Regeneration and Local Services,Economic Development and Housing,031500,Housing Solutions - Core Team,Supplies and Services,352001,Conference Expenses,12-Oct-2017,000006584805041,TRAVELODGE,3615,Conferencesseminars fees etc,38.00,6.33,31.67
Regeneration and Local Services,Economic Development and Housing,030671,Business Space,Supplies and Services,332047,Printing Stationery and Gen Off Exps,12-Oct-2017,000006584805045,WATERMARK STATIONERS L,5943,Stationery,71.64,11.94,59.70
Regeneration and Local Services,Direct Services,010525,Catering - Green Lane,Supplies and Services,324117,Provisions,12-Oct-2017,000006584805051,HOPWELLS LTD,5811,Catering costs - provisions,126.92,0.00,126.92
Children and Young Peoples Services,Head of Looked After Provision Permanence and Care Leavers,085352,Tow Law CU,Transport,235057,Public Transport,12-Oct-2017,000006584805081,Trainline,4112,Staff travelling,37.43,0.00,37.43
Regeneration and Local Services,Economic Development and Housing,030749,Employability - Youth Contract,Transport,230031,Contract Hire,12-Oct-2017,000006584805107,ARRIVA NORTH EAST,4131,Pupils-transport to play fields etc,6.50,0.00,6.50
Regeneration and Local Services,Economic Development and Housing,030749,Employability - Youth Contract,Transport,230031,Contract Hire,12-Oct-2017,000006584805109,ARRIVA NORTH EAST,4131,Pupils-transport to play fields etc,3.80,0.00,3.80
Regeneration and Local Services,Direct Services,020073,Bldg Serv - R&M Div 73 - Gas Servicing,Supplies and Services,304221,Equipment and Materials,12-Oct-2017,000006584805113,Amazon UK Marketplace,5942,Direct materials,50.55,0.00,50.55
Regeneration and Local Services,Direct Services,010367,C&G - South Grounds Maintenance,Supplies and Services,324117,Provisions,12-Oct-2017,000006584805117,J M RAINE,5399,Catering costs - provisions,59.75,9.96,49.79
Regeneration and Local Services,Direct Services,010367,C&G - South Grounds Maintenance,Supplies and Services,384999,Miscellaneous Expenses,12-Oct-2017,000006584805121,WWW.GUSTHARTS.COM,5046,Other expenses,104.77,17.46,87.31
Regeneration and Local Services,Culture & Sport,026591,Hardwick Park,Supplies and Services,312011,Newspapers Books and Periodicals,12-Oct-2017,000006584805131,AMAZON.CO.UK,5942,Books-school library,23.97,0.00,23.97
Regeneration and Local Services,Culture & Sport,011060,Hardwick Park Catering,Supplies and Services,304083,Equipment and Materials,12-Oct-2017,000006584805133,Amazon UK Marketplace,5942,Catering equipment,15.04,0.00,15.04
Dedicated Schools Grant,Dedicated Schools Grant,079040,SENSS-HQ,Employees,040149,Recruitment Instruction and Training,12-Oct-2017,000006584805203,PAYPAL SPECIALNEED,8999,Training-all costs,32.00,0.00,32.00
Dedicated Schools Grant,Dedicated Schools Grant,079040,SENSS-HQ,Supplies and Services,324117,Provisions,12-Oct-2017,000006584805207,ASDA SUPERSTORE 4987,5411,Catering costs - provisions,30.63,0.00,30.63
Regeneration and Local Services,Direct Services,021324,Catering - Meadowfield,Supplies and Services,324117,Provisions,12-Oct-2017,000006584805217,HOPWELLS LTD,5811,Catering costs - provisions,54.92,0.00,54.92
Adult and Health Services,Head of Adults,055301,Stanley Pathways,Supplies and Services,324117,Provisions,12-Oct-2017,000006584805227,ASDA SUPERSTORE,5411,Catering costs - provisions,1.98,0.00,1.98
Children and Young Peoples Services,Head of Early Help Assessment and Safeguarding,074000,TTF-Attachment and Results,Transfer Payments,525033,Other,12-Oct-2017,000006584805303,FRANKS THE FLOORING ST,5713,Grants to individuals,130.02,21.67,108.35
Children and Young Peoples Services,Head of Early Help Assessment and Safeguarding,074000,TTF-Attachment and Results,Transfer Payments,525033,Other,12-Oct-2017,000006584805303 - 1,FRANKS THE FLOORING ST,5713,Grants to individuals,19.98,,19.98
Children and Young Peoples Services,Head of Early Help Assessment and Safeguarding,074000,TTF-Attachment and Results,Transfer Payments,525033,Other,12-Oct-2017,000006584805309,FRANKS THE FLOORING ST,5713,Grants to individuals,105.00,17.50,87.50
Children and Young Peoples Services,Head of Early Help Assessment and Safeguarding,074000,TTF-Attachment and Results,Transfer Payments,525033,Other,12-Oct-2017,000006584805309 - 1,FRANKS THE FLOORING ST,5713,Grants to individuals,45.00,,45.00
Children and Young Peoples Services,Head of Early Help Assessment and Safeguarding,074000,TTF-Attachment and Results,Transfer Payments,525033,Other,12-Oct-2017,000006584805311,ASDA GEORGE COM LEEDS,5411,Grants to individuals,131.95,21.99,109.96
Children and Young Peoples Services,Head of Early Help Assessment and Safeguarding,074000,TTF-Attachment and Results,Transfer Payments,525033,Other,12-Oct-2017,000006584805315,ASDA GEORGE COM LEEDS,5411,Grants to individuals,111.00,18.50,92.50
Children and Young Peoples Services,Head of Early Help Assessment and Safeguarding,074000,TTF-Attachment and Results,Transfer Payments,525033,Other,12-Oct-2017,000006584805315 - 1,ASDA GEORGE COM LEEDS,5411,Grants to individuals,19.95,,19.95
Children and Young Peoples Services,Head of Early Help Assessment and Safeguarding,074000,TTF-Attachment and Results,Supplies and Services,324117,Provisions,12-Oct-2017,000006584805319,ASDA GEORGE COM LEEDS,5411,Catering costs - provisions,120.95,20.16,100.79
Children and Young Peoples Services,Head of Early Help Assessment and Safeguarding,074000,TTF-Attachment and Results,Transfer Payments,525033,Other,12-Oct-2017,000006584805323,ASDA GEORGE COM LEEDS,5411,Grants to individuals,91.92,15.32,76.60
Children and Young Peoples Services,Head of Early Help Assessment and Safeguarding,074000,TTF-Attachment and Results,Transfer Payments,525033,Other,12-Oct-2017,000006584805323 - 1,ASDA GEORGE COM LEEDS,5411,Grants to individuals,0.03,,0.03
Children and Young Peoples Services,Head of Early Help Assessment and Safeguarding,074000,TTF-Attachment and Results,Transfer Payments,525033,Other,12-Oct-2017,000006584805325,ASDA GEORGE COM LEEDS,5411,Grants to individuals,71.95,11.99,59.96
Children and Young Peoples Services,Head of Early Help Assessment and Safeguarding,074000,TTF-Attachment and Results,Transfer Payments,525033,Other,12-Oct-2017,000006584805327,TESCO DIRECT,5999,Grants to individuals,49.25,8.21,41.04
Children and Young Peoples Services,Head of Early Help Assessment and Safeguarding,074000,TTF-Attachment and Results,Transfer Payments,525033,Other,12-Oct-2017,000006584805331,TESCO-Seller_IST_1_240,5999,Grants to individuals,144.94,24.16,120.78
Resources,Internal Audit and Insurance,065103,Insurance and Risk,Supplies and Services,372009,Subscriptions,12-Oct-2017,000006584805343,WWW.AAT-ORG.UK,8931,Subscriptions,92.00,0.00,92.00
Children and Young Peoples Services,Head of Early Help Assessment and Safeguarding,071404,Laurel Avenue Childrens Centre,Supplies and Services,324117,Provisions,12-Oct-2017,000006584805349,TESCO STORES 2371,5411,Catering costs - provisions,4.00,0.00,4.00
Regeneration and Local Services,Direct Services,021235,Catering - Wharton Park,Supplies and Services,324117,Provisions,12-Oct-2017,000006584805353,HOPWELLS LTD,5811,Catering costs - provisions,98.64,16.44,82.20
Regeneration and Local Services,Direct Services,021235,Catering - Wharton Park,Supplies and Services,324117,Provisions,12-Oct-2017,000006584805353 - 1,HOPWELLS LTD,5811,Catering costs - provisions,12.75,,12.75
Adult and Health Services,Head of Adults,055309,Peterlee Pathways,Supplies and Services,308011,Furniture,12-Oct-2017,000006584805359,POUNDSTRETCHER 396,5714,Furniture repair and replacement,8.58,0.00,8.58
Regeneration and Local Services,Economic Development and Housing,030737,Durham Works Flexible Fund,Supplies and Services,384999,Miscellaneous Expenses,12-Oct-2017,000006584805363,ALLBEAUTY.COM,5977,Other expenses,99.95,0.00,99.95
Children and Young Peoples Services,Head of Early Help Assessment and Safeguarding,071693,Brandon Childrens Centre,Supplies and Services,312011,Newspapers Books and Periodicals,12-Oct-2017,000006584805383,Amazon UK Marketplace,5942,Books-school library,36.99,0.00,36.99
Children and Young Peoples Services,Head of Early Help Assessment and Safeguarding,071693,Brandon Childrens Centre,Supplies and Services,312011,Newspapers Books and Periodicals,12-Oct-2017,000006584805385,AMAZON.CO.UK,5942,Books-school library,3.90,0.00,3.90
Transformation and Partnerships,Partnerships & Community Engagement Div.,060472,Syrian Vulnerable Persons Scheme,Supplies and Services,304259,Equipment and Materials,12-Oct-2017,000006584805405,WILKO.COM,5722,Equipment-purchase and rental,647.00,107.83,539.17
Transformation and Partnerships,Partnerships & Community Engagement Div.,060472,Syrian Vulnerable Persons Scheme,Supplies and Services,308011,Furniture,12-Oct-2017,000006584805409,VERTICAL BLINDS DIRECT,5719,Furniture repair and replacement,490.47,81.75,408.72
Transformation and Partnerships,Partnerships & Community Engagement Div.,060472,Syrian Vulnerable Persons Scheme,Supplies and Services,384999,Miscellaneous Expenses,12-Oct-2017,000006584805411,TERRYS TEXTILES LT,5949,Other expenses,263.77,43.96,219.81
Transformation and Partnerships,Partnerships & Community Engagement Div.,060472,Syrian Vulnerable Persons Scheme,Supplies and Services,384999,Miscellaneous Expenses,12-Oct-2017,000006584805415,TERRYS TEXTILES LT,5949,Other expenses,251.93,41.99,209.94
Transformation and Partnerships,Partnerships & Community Engagement Div.,060472,Syrian Vulnerable Persons Scheme,Supplies and Services,384999,Miscellaneous Expenses,12-Oct-2017,000006584805417,TERRYS TEXTILES LT,5949,Other expenses,174.87,29.15,145.72
Regeneration and Local Services,Economic Development and Housing,030554,International Relations,Supplies and Services,384926,Miscellaneous Expenses,12-Oct-2017,000006584805431,PRINCE BISHOP SHOPPING,7523,International visits,1.50,0.00,1.50
Regeneration and Local Services,Economic Development and Housing,030732,Rural Employability Project - South Durham,Supplies and Services,352001,Conference Expenses,12-Oct-2017,000006590308883,GET LICENSED,7392,Conferencesseminars fees etc,224.00,0.00,224.00
Children and Young Peoples Services,Head of Looked After Provision Permanence and Care Leavers,085954,Walworth,Supplies and Services,332047,Printing Stationery and Gen Off Exps,12-Oct-2017,000006590309163,AMAZON.CO.UK,5942,Stationery,5.00,0.00,5.00
Regeneration and Local Services,Culture & Sport,011060,Hardwick Park Catering,Supplies and Services,324117,Provisions,12-Oct-2017,000006590309175,BATLEYS PERTH,5300,Catering costs - provisions,232.74,38.79,193.95
Regeneration and Local Services,Culture & Sport,011060,Hardwick Park Catering,Supplies and Services,324117,Provisions,12-Oct-2017,000006590309175 - 1,BATLEYS PERTH,5300,Catering costs - provisions,210.17,,210.17
Regeneration and Local Services,Culture & Sport,011060,Hardwick Park Catering,Supplies and Services,324117,Provisions,12-Oct-2017,000006590309183,BATLEYS PERTH,5300,Catering costs - provisions,7.79,0.00,7.79
Regeneration and Local Services,Culture & Sport,011060,Hardwick Park Catering,Supplies and Services,324117,Provisions,12-Oct-2017,000006590309185,BATLEYS PERTH,5300,Catering costs - provisions,14.58,0.00,14.58
Children and Young Peoples Services,Head of Looked After Provision Permanence and Care Leavers,085352,Tow Law CU,Employees,040149,Recruitment Instruction and Training,12-Oct-2017,000006590309261,PREMIER INN,3811,Training-all costs,117.98,0.00,117.98
Regeneration and Local Services,Culture & Sport,026591,Hardwick Park,Supplies and Services,312011,Newspapers Books and Periodicals,12-Oct-2017,000006590309389,AMAZON.CO.UK,5942,Books-school library,7.99,0.00,7.99
Regeneration and Local Services,Economic Development and Housing,030737,Durham Works Flexible Fund,Supplies and Services,384999,Miscellaneous Expenses,12-Oct-2017,000006598145767,WWW.SALLYEXPRESS.COM,7230,Other expenses,47.99,0.00,47.99
Regeneration and Local Services,Economic Development and Housing,030737,Durham Works Flexible Fund,Supplies and Services,384999,Miscellaneous Expenses,12-Oct-2017,000006598145771,WWW.SALLYEXPRESS.COM,7230,Other expenses,66.22,0.00,66.22
Children and Young Peoples Services,Head of Looked After Provision Permanence and Care Leavers,085341,High Etherley Satelite Home,Supplies and Services,324117,Provisions,13-Oct-2017,000006590308795,TESCO STORES 6329,5411,Catering costs - provisions,24.50,0.00,24.50
Regeneration and Local Services,Direct Services,021242,Catering - County Hall,Supplies and Services,324117,Provisions,13-Oct-2017,000006590308835,TESCO STORES 6329,5411,Catering costs - provisions,8.23,0.00,8.23
Children and Young Peoples Services,Head of Education,071801,Selby Cottage Childcare Centre,Supplies and Services,304259,Equipment and Materials,13-Oct-2017,000006590308841,ITUNES.COM/BILL,5735,Equipment-purchase and rental,0.79,0.00,0.79
Regeneration and Local Services,Economic Development and Housing,030732,Rural Employability Project - South Durham,Employees,040149,Recruitment Instruction and Training,13-Oct-2017,000006590308885,CPLTRAINING,8220,Training-all costs,332.40,55.40,277.00
Adult and Health Services,Head of Adults,055302,Durham Pathways,Supplies and Services,324117,Provisions,13-Oct-2017,000006590308889,LIDL UK,5411,Catering costs - provisions,4.85,0.00,4.85
Children and Young Peoples Services,Head of Looked After Provision Permanence and Care Leavers,085342,9 Cedar Drive Aycliffe,Supplies and Services,304403,Equipment and Materials,13-Oct-2017,000006590308929,DISCOUNT DECOR,5231,Other consumables,107.94,0.00,107.94
Regeneration and Local Services,Economic Development and Housing,030737,Durham Works Flexible Fund,Supplies and Services,328041,Clothing Uniforms and Laundry,13-Oct-2017,000006590308963,WORKWEAR EXPRESS LIMIT,5699,Clothing uniforms and laundry,60.42,10.07,50.35
Regeneration and Local Services,Economic Development and Housing,030737,Durham Works Flexible Fund,Supplies and Services,328041,Clothing Uniforms and Laundry,13-Oct-2017,000006590308963 - 1,WORKWEAR EXPRESS LIMIT,5699,Clothing uniforms and laundry,16.05,,16.05
Regeneration and Local Services,Economic Development and Housing,030737,Durham Works Flexible Fund,Supplies and Services,328041,Clothing Uniforms and Laundry,13-Oct-2017,000006590308967,WORKWEAR EXPRESS LIMIT,5699,Clothing uniforms and laundry,8.64,0.00,8.64
Regeneration and Local Services,Direct Services,021242,Catering - County Hall,Supplies and Services,324117,Provisions,13-Oct-2017,000006590308971,JR HOLLAND FOODSERVICE,5422,Catering costs - provisions,63.18,0.00,63.18
Regeneration and Local Services,Direct Services,021242,Catering - County Hall,Supplies and Services,324117,Provisions,13-Oct-2017,000006590308975,JR HOLLAND FOODSERVICE,5422,Catering costs - provisions,13.16,0.00,13.16
Regeneration and Local Services,Direct Services,010561,Fleet - Morrison Busty Fleet,Transport,215013,Running Costs of Vehicles,13-Oct-2017,000006590309091,DVLA VEHICLE TAX,9399,Vehicle Excise Duty (VED),242.50,0.00,242.50
Regeneration and Local Services,Economic Development and Housing,030749,Employability - Youth Contract,Transport,235057,Public Transport,13-Oct-2017,000006590309099,WWW.SIMPLYGO.COM,4131,Staff travelling,70.00,0.00,70.00
Regeneration and Local Services,Culture & Sport,054813,Gala Theatre - Technical,Supplies and Services,304259,Equipment and Materials,13-Oct-2017,000006590309125,SCREWFIX,5211,Equipment-purchase and rental,33.26,5.54,27.72
Children and Young Peoples Services,Head of Looked After Provision Permanence and Care Leavers,085956,Lumley,Supplies and Services,324117,Provisions,13-Oct-2017,000006590309159,TESCO STORES 6329,5411,Catering costs - provisions,108.05,0.00,108.05
Regeneration and Local Services,Spatial Policy Planning Assets & Environment,031200,North Pennines Core,Transport,235057,Public Transport,13-Oct-2017,000006590309189,DAR STN VTEC SST,4112,Staff travelling,14.00,0.00,14.00
Children and Young Peoples Services,Head of Looked After Provision Permanence and Care Leavers,085551,Short Break Services-Park Hse Sher,Supplies and Services,312011,Newspapers Books and Periodicals,13-Oct-2017,000006590309207,Amazon UK Marketplace,5942,Books-school library,35.99,0.00,35.99
Regeneration and Local Services,Economic Development and Housing,031500,Housing Solutions - Core Team,Supplies and Services,352001,Conference Expenses,13-Oct-2017,000006590309231,TRAVELODGE,3615,Conferencesseminars fees etc,130.75,21.79,108.96
Regeneration and Local Services,Direct Services,010525,Catering - Green Lane,Supplies and Services,324117,Provisions,13-Oct-2017,000006590309245,JR HOLLAND FOODSERVICE,5422,Catering costs - provisions,70.79,0.00,70.79
Regeneration and Local Services,Direct Services,010367,C&G - South Grounds Maintenance,Supplies and Services,304221,Equipment and Materials,13-Oct-2017,000006590309293,ARCO LTD,5085,Direct materials,82.31,13.72,68.59
Regeneration and Local Services,Economic Development and Housing,030749,Employability - Youth Contract,Transport,230031,Contract Hire,13-Oct-2017,000006590309309,ARRIVA NORTH EAST,4131,Pupils-transport to play fields etc,60.00,10.00,50.00
Regeneration and Local Services,Direct Services,020073,Bldg Serv - R&M Div 73 - Gas Servicing,Supplies and Services,304221,Equipment and Materials,13-Oct-2017,000006590309317,Amazon UK Marketplace,5942,Direct materials,17.41,0.00,17.41
Children and Young Peoples Services,Head of Looked After Provision Permanence and Care Leavers,085333,Coxhoe Satelite Home,Supplies and Services,312011,Newspapers Books and Periodicals,13-Oct-2017,000006590309335,HOME BARGAINS SPENNYMO,5251,Books-school library,21.89,0.00,21.89
Children and Young Peoples Services,Head of Looked After Provision Permanence and Care Leavers,085333,Coxhoe Satelite Home,Supplies and Services,324117,Provisions,13-Oct-2017,000006590309339,ASDA SUPERSTORE 4987,5411,Catering costs - provisions,117.91,0.00,117.91
Children and Young Peoples Services,Head of Looked After Provision Permanence and Care Leavers,085333,Coxhoe Satelite Home,Supplies and Services,324117,Provisions,13-Oct-2017,000006590309343,TESCO STORES 2371,5411,Catering costs - provisions,29.80,0.00,29.80
Children and Young Peoples Services,Head of Looked After Provision Permanence and Care Leavers,085333,Coxhoe Satelite Home,Supplies and Services,324117,Provisions,13-Oct-2017,000006590309345,TESCO STORES 2371,5411,Catering costs - provisions,18.90,0.00,18.90
Regeneration and Local Services,Spatial Policy Planning Assets & Environment,031222,North Pennines Allen Valleys Landscape Partnership,Transport,235057,Public Transport,13-Oct-2017,000006590309437,WWW DUBLINCOACH IE,4131,Staff travelling,13.39,0.00,13.39
Regeneration and Local Services,Spatial Policy Planning Assets & Environment,031202,North Pennines - Peatscapes,Transport,235057,Public Transport,13-Oct-2017,000006590309447,NEWCASTLE PARK AND FLY,7523,Staff travelling,32.94,0.00,32.94
Children and Young Peoples Services,Head of Education,078100,Curric and Professional Development,Supplies and Services,324117,Provisions,13-Oct-2017,000006590309465,ASDA STORES,5411,Catering costs - provisions,2.00,0.00,2.00
Children and Young Peoples Services,Head of Early Help Assessment and Safeguarding,088013,Seaham 0 - 5,Supplies and Services,304259,Equipment and Materials,13-Oct-2017,000006590309487,CURRYS ONLINE,5732,Equipment-purchase and rental,199.99,33.33,166.66
Regeneration and Local Services,Culture & Sport,054235,Bishop Auckland Town Hall Cafe,Supplies and Services,324117,Provisions,13-Oct-2017,000006590309535,JR HOLLAND FOODSERVICE,5422,Catering costs - provisions,17.33,0.00,17.33
Regeneration and Local Services,Direct Services,021324,Catering - Meadowfield,Supplies and Services,324117,Provisions,13-Oct-2017,000006590309549,JR HOLLAND FOODSERVICE,5422,Catering costs - provisions,32.23,0.00,32.23
Regeneration and Local Services,Direct Services,021324,Catering - Meadowfield,Supplies and Services,324117,Provisions,13-Oct-2017,000006590309553,JR HOLLAND FOODSERVICE,5422,Catering costs - provisions,9.87,0.00,9.87
Children and Young Peoples Services,Head of Early Help Assessment and Safeguarding,074000,TTF-Attachment and Results,Transfer Payments,525033,Other,13-Oct-2017,000006590309673,Amazon EU,5969,Grants to individuals,11.73,0.00,11.73
Resources,Internal Audit and Insurance,065104,Internal Audit,Employees,040149,Recruitment Instruction and Training,13-Oct-2017,000006590309677,WWW.ACCOUNTS@IIA.ORG.U,8931,Training-all costs,810.00,135.00,675.00
Regeneration and Local Services,Spatial Policy Planning Assets & Environment,031105,Environment Awards,Supplies and Services,332047,Printing Stationery and Gen Off Exps,13-Oct-2017,000006590309681,WILKO.COM,5722,Stationery,84.00,0.00,84.00
Regeneration and Local Services,Direct Services,021235,Catering - Wharton Park,Supplies and Services,324117,Provisions,13-Oct-2017,000006590309699,JR HOLLAND FOODSERVICE,5422,Catering costs - provisions,25.24,0.00,25.24
Transformation and Partnerships,Partnerships & Community Engagement Div.,060472,Syrian Vulnerable Persons Scheme,Supplies and Services,304259,Equipment and Materials,13-Oct-2017,000006590309731,WILKO.COM,5722,Equipment-purchase and rental,624.00,104.00,520.00
Transformation and Partnerships,Partnerships & Community Engagement Div.,060472,Syrian Vulnerable Persons Scheme,Supplies and Services,304259,Equipment and Materials,13-Oct-2017,000006590309733,WILKO.COM,5722,Equipment-purchase and rental,380.00,63.33,316.67
Transformation and Partnerships,Partnerships & Community Engagement Div.,060472,Syrian Vulnerable Persons Scheme,Supplies and Services,304259,Equipment and Materials,13-Oct-2017,000006590309735,WILKO.COM,5722,Equipment-purchase and rental,363.00,60.50,302.50
Regeneration and Local Services,Spatial Policy Planning Assets & Environment,031200,North Pennines Core,Supplies and Services,304999,Equipment and Materials,13-Oct-2017,000006590309745,MAILCHIMP PAYASYOUG,5968,Misc equipment tools and materials,46.19,0.00,46.19
Children and Young Peoples Services,Head of Early Help Assessment and Safeguarding,085801,CDYOS - Support,Supplies and Services,312011,Newspapers Books and Periodicals,13-Oct-2017,000006590309759,Amazon UK Marketplace,5942,Books-school library,50.95,0.00,50.95
Children and Young Peoples Services,Head of Early Help Assessment and Safeguarding,085801,CDYOS - Support,Supplies and Services,312011,Newspapers Books and Periodicals,13-Oct-2017,000006590309761,Amazon UK Marketplace,5942,Books-school library,13.28,0.00,13.28
Regeneration and Local Services,Direct Services,021242,Catering - County Hall,Supplies and Services,324117,Provisions,13-Oct-2017,000006606282719,BATLEYS PERTH,5300,Catering costs - provisions,328.80,54.80,274.00
Regeneration and Local Services,Direct Services,021242,Catering - County Hall,Supplies and Services,324117,Provisions,13-Oct-2017,000006606282719 - 1,BATLEYS PERTH,5300,Catering costs - provisions,136.07,,136.07
Regeneration and Local Services,Culture & Sport,011060,Hardwick Park Catering,Supplies and Services,324117,Provisions,13-Oct-2017,000006606282981,BATLEYS PERTH,5300,Catering costs - provisions,173.88,28.98,144.90
Regeneration and Local Services,Culture & Sport,011060,Hardwick Park Catering,Supplies and Services,324117,Provisions,13-Oct-2017,000006606282981 - 1,BATLEYS PERTH,5300,Catering costs - provisions,139.83,,139.83
Regeneration and Local Services,Direct Services,010525,Catering - Green Lane,Supplies and Services,324117,Provisions,13-Oct-2017,000006606283063,BATLEYS PERTH,5300,Catering costs - provisions,70.92,11.82,59.10
Regeneration and Local Services,Direct Services,010525,Catering - Green Lane,Supplies and Services,324117,Provisions,13-Oct-2017,000006606283063 - 1,BATLEYS PERTH,5300,Catering costs - provisions,63.89,,63.89
Regeneration and Local Services,Direct Services,010525,Catering - Green Lane,Supplies and Services,324117,Provisions,13-Oct-2017,000006606283067,BATLEYS PERTH,5300,Catering costs - provisions,-5.20,0.00,-5.20
Regeneration and Local Services,Economic Development and Housing,030699,Business Growth and Innovation General,Supplies and Services,342033,Computers and Communications,14-Oct-2017,000006590308915,WATCHFULPAYPAL,7379,Computer hardware,15.08,0.00,15.08
Regeneration and Local Services,Economic Development and Housing,031576,B& B - Temp Accom,Supplies and Services,364320,Grants to Voluntary Organisations,14-Oct-2017,000006590309017,PREMIER INN,3811,Accommodation assistance,115.00,19.17,95.83
Children and Young Peoples Services,Head of Education,071732,Dean Bank Childcare,Supplies and Services,312011,Newspapers Books and Periodicals,14-Oct-2017,000006590309111,Amazon UK Marketplace,5942,Books-school library,7.99,0.00,7.99
Children and Young Peoples Services,Head of Education,071732,Dean Bank Childcare,Supplies and Services,312011,Newspapers Books and Periodicals,14-Oct-2017,000006590309115,AMAZON.CO.UK,5942,Books-school library,19.99,0.00,19.99
Regeneration and Local Services,Culture & Sport,054813,Gala Theatre - Technical,Supplies and Services,324117,Provisions,14-Oct-2017,000006590309127,MARKS&SPENCER PLC,5411,Catering costs - provisions,101.00,0.00,101.00
Children and Young Peoples Services,Head of Looked After Provision Permanence and Care Leavers,085341,High Etherley Satelite Home,Supplies and Services,324117,Provisions,14-Oct-2017,000006590309133,TESCO STORES 6329,5411,Catering costs - provisions,17.63,0.00,17.63
Children and Young Peoples Services,Head of Looked After Provision Permanence and Care Leavers,085341,High Etherley Satelite Home,Supplies and Services,338057,Services,14-Oct-2017,000006590309135,TESCO STORES 6329,5411,Medical fees,0.30,0.00,0.30
Children and Young Peoples Services,Head of Looked After Provision Permanence and Care Leavers,085955,Auckland,Supplies and Services,312009,Newspapers Books and Periodicals,14-Oct-2017,000006590309165,Amazon UK Marketplace,5942,Newspapers books and periodicals,20.21,0.00,20.21
Children and Young Peoples Services,Head of Looked After Provision Permanence and Care Leavers,085954,Walworth,Supplies and Services,324117,Provisions,14-Oct-2017,000006590309167,TESCO STORES 6329,5411,Catering costs - provisions,90.45,0.00,90.45
Resources,Resources Management,069000,Resources Management,Supplies and Services,324117,Provisions,14-Oct-2017,000006590309363,SAINSBURYS (2303),5411,Catering costs - provisions,30.80,0.00,30.80
Transformation and Partnerships,Partnerships & Community Engagement Div.,060472,Syrian Vulnerable Persons Scheme,Supplies and Services,384999,Miscellaneous Expenses,14-Oct-2017,000006590309737,TERRYS TEXTILES LT,5949,Other expenses,340.86,56.81,284.05
Children and Young Peoples Services,Head of Looked After Provision Permanence and Care Leavers,085341,High Etherley Satelite Home,Supplies and Services,324117,Provisions,15-Oct-2017,000006590308799,BRIDGE INN,5811,Catering costs - provisions,36.45,0.00,36.45
Children and Young Peoples Services,Head of Looked After Provision Permanence and Care Leavers,085341,High Etherley Satelite Home,Supplies and Services,348037,Subsistence,15-Oct-2017,000006590308801,ARCHERS,5812,Subsistence,8.10,0.00,8.10
Children and Young Peoples Services,Head of Education,071801,Selby Cottage Childcare Centre,Supplies and Services,324117,Provisions,15-Oct-2017,000006590308847,ASDA HOME SHOPPING,5411,Catering costs - provisions,5.00,0.00,5.00
Children and Young Peoples Services,Head of Looked After Provision Permanence and Care Leavers,085333,Coxhoe Satelite Home,Supplies and Services,324117,Provisions,15-Oct-2017,000006590309059,TESCO STORES 2371,5411,Catering costs - provisions,6.10,0.00,6.10
Children and Young Peoples Services,Head of Education,071732,Dean Bank Childcare,Supplies and Services,312011,Newspapers Books and Periodicals,15-Oct-2017,000006590309119,AMAZON.CO.UK,5942,Books-school library,47.46,0.00,47.46
Regeneration and Local Services,Spatial Policy Planning Assets & Environment,031222,North Pennines Allen Valleys Landscape Partnership,Supplies and Services,324117,Provisions,15-Oct-2017,000006590309171,WAITROSE 782,5411,Catering costs - provisions,33.57,0.00,33.57
Resources,Digital and Customer Services,070204,School Services - Systems,Supplies and Services,304639,Equipment and Materials,15-Oct-2017,000006590309195,Amazon UK Marketplace,5942,Technicians-supplies,15.94,0.00,15.94
Resources,Digital and Customer Services,070204,School Services - Systems,Supplies and Services,342033,Computers and Communications,15-Oct-2017,000006590309197,Amazon UK Marketplace,5942,Computer hardware,11.89,0.00,11.89
Resources,Digital and Customer Services,065335,School Services - Implementations,Supplies and Services,304639,Equipment and Materials,15-Oct-2017,000006590309201,Amazon UK Marketplace,5942,Technicians-supplies,21.98,0.00,21.98
Resources,Digital and Customer Services,070204,School Services - Systems,Supplies and Services,342033,Computers and Communications,15-Oct-2017,000006590309203,Amazon EU,5969,Computer hardware,292.98,0.00,292.98
Regeneration and Local Services,Culture & Sport,011214,Volunteer & Skills,Employees,040149,Recruitment Instruction and Training,15-Oct-2017,000006590309403,TYNE AND WEAR SPORT,8299,Training-all costs,40.00,0.00,40.00
Regeneration and Local Services,Culture & Sport,011214,Volunteer & Skills,Employees,040149,Recruitment Instruction and Training,15-Oct-2017,000006590309405,TYNE AND WEAR SPORT,8299,Training-all costs,40.00,0.00,40.00
Regeneration and Local Services,Culture & Sport,011214,Volunteer & Skills,Employees,040149,Recruitment Instruction and Training,15-Oct-2017,000006590309411,TYNE AND WEAR SPORT,8299,Training-all costs,40.00,0.00,40.00
Children and Young Peoples Services,Head of Looked After Provision Permanence and Care Leavers,085341,High Etherley Satelite Home,Supplies and Services,328041,Clothing Uniforms and Laundry,15-Oct-2017,000006598144861,PRIMARK,5651,Clothing uniforms and laundry,61.50,0.00,61.50
Regeneration and Local Services,Economic Development and Housing,030699,Business Growth and Innovation General,Supplies and Services,342033,Computers and Communications,16-Oct-2017,000006590308919,WATCHFULPAYPAL,7379,Computer hardware,0.41,0.00,0.41
Regeneration and Local Services,Spatial Policy Planning Assets & Environment,031222,North Pennines Allen Valleys Landscape Partnership,Transport,235057,Public Transport,16-Oct-2017,000006590309439,WWW DUBLINCOACH IE,4131,Staff travelling,0.37,0.00,0.37
Children and Young Peoples Services,Head of Looked After Provision Permanence and Care Leavers,085341,High Etherley Satelite Home,Supplies and Services,324117,Provisions,16-Oct-2017,000006598144863,TESCO STORES 6329,5411,Catering costs - provisions,103.96,0.00,103.96
Regeneration and Local Services,Direct Services,021242,Catering - County Hall,Supplies and Services,324117,Provisions,16-Oct-2017,000006598144867,MAKRO SELF SERVICE WAS,5300,Catering costs - provisions,51.67,0.00,51.67
Children and Young Peoples Services,Head of Education,071801,Selby Cottage Childcare Centre,Supplies and Services,324117,Provisions,16-Oct-2017,000006598144879,ALDI 32 774 S,5411,Catering costs - provisions,30.78,0.00,30.78
Children and Young Peoples Services,Head of Education,071801,Selby Cottage Childcare Centre,Supplies and Services,328041,Clothing Uniforms and Laundry,16-Oct-2017,000006598144883,ARGOS LTD,5310,Clothing uniforms and laundry,82.96,0.00,82.96
Children and Young Peoples Services,Head of Education,071801,Selby Cottage Childcare Centre,Supplies and Services,328041,Clothing Uniforms and Laundry,16-Oct-2017,000006598144889,ARGOS LTD,5310,Clothing uniforms and laundry,20.97,0.00,20.97
Children and Young Peoples Services,Head of Education,071801,Selby Cottage Childcare Centre,Supplies and Services,324117,Provisions,16-Oct-2017,000006598144891,ASDA HOME SHOPPING,5411,Catering costs - provisions,82.54,0.00,82.54
Children and Young Peoples Services,Head of Education,071801,Selby Cottage Childcare Centre,Supplies and Services,304259,Equipment and Materials,16-Oct-2017,000006598144897,WILKO RETAIL LIMIT,5722,Equipment-purchase and rental,9.75,0.00,9.75
Children and Young Peoples Services,Head of Education,071801,Selby Cottage Childcare Centre,Supplies and Services,324117,Provisions,16-Oct-2017,000006598144899,TESCO STORES 2278,5411,Catering costs - provisions,42.04,0.00,42.04
Adult and Health Services,Head of Adults,055302,Durham Pathways,Supplies and Services,324117,Provisions,16-Oct-2017,000006598144947,LIDL UK,5411,Catering costs - provisions,4.59,0.00,4.59
Children and Young Peoples Services,Head of Looked After Provision Permanence and Care Leavers,085957,Secure Management,Supplies and Services,384999,Miscellaneous Expenses,16-Oct-2017,000006598144953,Amazon UK Marketplace,5942,Other expenses,29.97,0.00,29.97
Children and Young Peoples Services,Head of Looked After Provision Permanence and Care Leavers,085957,Secure Management,Premises,115125,Repairs to Grounds,16-Oct-2017,000006598144959,WWW.SAFETYSIGNSANDNOTI,5999,General maintenance,37.06,6.18,30.88
Children and Young Peoples Services,Head of Looked After Provision Permanence and Care Leavers,085957,Secure Management,Supplies and Services,324117,Provisions,16-Oct-2017,000006598144963,TESCO STORES 6329,5411,Catering costs - provisions,68.03,0.00,68.03
Children and Young Peoples Services,Head of Looked After Provision Permanence and Care Leavers,085342,9 Cedar Drive Aycliffe,Supplies and Services,324117,Provisions,16-Oct-2017,000006598144999,TESCO STORES 2916,5411,Catering costs - provisions,67.27,0.00,67.27
Children and Young Peoples Services,Head of Looked After Provision Permanence and Care Leavers,085342,9 Cedar Drive Aycliffe,Supplies and Services,324117,Provisions,16-Oct-2017,000006598145001,TESCO STORES 2916,5411,Catering costs - provisions,2.00,0.00,2.00
Regeneration and Local Services,Economic Development and Housing,030737,Durham Works Flexible Fund,Transport,230031,Contract Hire,16-Oct-2017,000006598145035,ARRIVA NORTH EAST,4131,Pupils-transport to play fields etc,25.00,0.00,25.00
Regeneration and Local Services,Direct Services,021242,Catering - County Hall,Supplies and Services,324117,Provisions,16-Oct-2017,000006598145041,WWW.ADELIEFOODS.CO.UK,5499,Catering costs - provisions,177.99,0.00,177.99
Regeneration and Local Services,Direct Services,021242,Catering - County Hall,Supplies and Services,324117,Provisions,16-Oct-2017,000006598145045,WWW.ADELIEFOODS.CO.UK,5499,Catering costs - provisions,171.68,0.00,171.68
Regeneration and Local Services,Direct Services,021242,Catering - County Hall,Supplies and Services,324117,Provisions,16-Oct-2017,000006598145047,WWW.ADELIEFOODS.CO.UK,5499,Catering costs - provisions,157.01,0.00,157.01
Regeneration and Local Services,Direct Services,021242,Catering - County Hall,Supplies and Services,324117,Provisions,16-Oct-2017,000006598145051,WWW.ADELIEFOODS.CO.UK,5499,Catering costs - provisions,108.23,0.00,108.23
Regeneration and Local Services,Direct Services,021242,Catering - County Hall,Supplies and Services,324117,Provisions,16-Oct-2017,000006598145055,WWW.ADELIEFOODS.CO.UK,5499,Catering costs - provisions,54.70,0.00,54.70
Regeneration and Local Services,Direct Services,021242,Catering - County Hall,Supplies and Services,324117,Provisions,16-Oct-2017,000006598145057,JR HOLLAND FOODSERVICE,5422,Catering costs - provisions,120.66,0.00,120.66
Regeneration and Local Services,Direct Services,021242,Catering - County Hall,Supplies and Services,324117,Provisions,16-Oct-2017,000006598145063,JR HOLLAND FOODSERVICE,5422,Catering costs - provisions,24.24,0.00,24.24
Regeneration and Local Services,Direct Services,021242,Catering - County Hall,Supplies and Services,324117,Provisions,16-Oct-2017,000006598145065,JR HOLLAND FOODSERVICE,5422,Catering costs - provisions,13.52,0.00,13.52
Regeneration and Local Services,Economic Development and Housing,030737,Durham Works Flexible Fund,Supplies and Services,328041,Clothing Uniforms and Laundry,16-Oct-2017,000006598145091,SAINSBURYS SACAT 2199,5411,Clothing uniforms and laundry,39.05,0.00,39.05
Regeneration and Local Services,Economic Development and Housing,030737,Durham Works Flexible Fund,Transport,235057,Public Transport,16-Oct-2017,000006598145097,ARRIVA NORTH EAST,4131,Staff travelling,7.00,0.00,7.00
Regeneration and Local Services,Economic Development and Housing,030737,Durham Works Flexible Fund,Transport,235057,Public Transport,16-Oct-2017,000006598145101,ARRIVA NORTH EAST,4131,Staff travelling,7.00,0.00,7.00
Regeneration and Local Services,Economic Development and Housing,030737,Durham Works Flexible Fund,Supplies and Services,328041,Clothing Uniforms and Laundry,16-Oct-2017,000006598145103,TK MAXX,5331,Clothing uniforms and laundry,45.99,0.00,45.99
Regeneration and Local Services,Economic Development and Housing,030737,Durham Works Flexible Fund,Transport,235057,Public Transport,16-Oct-2017,000006598145109,CO-OP GROUP 010518,5411,Staff travelling,85.50,0.00,85.50
Regeneration and Local Services,Economic Development and Housing,031576,B& B - Temp Accom,Supplies and Services,352001,Conference Expenses,16-Oct-2017,000006598145213,TRAVELODGE,3615,Conferencesseminars fees etc,42.00,7.00,35.00
Regeneration and Local Services,Culture & Sport,010664,Freemans Quay Leisure Centre,Supplies and Services,312009,Newspapers Books and Periodicals,16-Oct-2017,000006598145227,WH SMITH,5994,Newspapers books and periodicals,34.03,5.67,28.36
Regeneration and Local Services,Economic Development and Housing,030749,Employability - Youth Contract,Transport,235057,Public Transport,16-Oct-2017,000006598145233,WWW.SIMPLYGO.COM,4131,Staff travelling,27.00,0.00,27.00
Regeneration and Local Services,Economic Development and Housing,030749,Employability - Youth Contract,Supplies and Services,328041,Clothing Uniforms and Laundry,16-Oct-2017,000006598145237,WWW.ASOS.COM,5651,Clothing uniforms and laundry,20.00,0.00,20.00
Regeneration and Local Services,Economic Development and Housing,030749,Employability - Youth Contract,Supplies and Services,328041,Clothing Uniforms and Laundry,16-Oct-2017,000006598145241,NEW LOOK INTERNET,5621,Clothing uniforms and laundry,39.96,0.00,39.96
Children and Young Peoples Services,Head of Education,071732,Dean Bank Childcare,Supplies and Services,324117,Provisions,16-Oct-2017,000006598145257,ASDA HOME SHOPPING,5411,Catering costs - provisions,82.61,0.00,82.61
Children and Young Peoples Services,Head of Education,071732,Dean Bank Childcare,Supplies and Services,324117,Provisions,16-Oct-2017,000006598145265,ASDA HOME SHOPPING,5411,Catering costs - provisions,70.30,0.00,70.30
Children and Young Peoples Services,Head of Education,071732,Dean Bank Childcare,Supplies and Services,328041,Clothing Uniforms and Laundry,16-Oct-2017,000006598145267,B&M RETAIL LTD,5310,Clothing uniforms and laundry,44.93,0.00,44.93
Children and Young Peoples Services,Head of Education,071732,Dean Bank Childcare,Supplies and Services,324117,Provisions,16-Oct-2017,000006598145273,ASDA HOME SHOPPING,5411,Catering costs - provisions,-0.20,0.00,-0.20
Regeneration and Local Services,Economic Development and Housing,030737,Durham Works Flexible Fund,Supplies and Services,328041,Clothing Uniforms and Laundry,16-Oct-2017,000006598145337,ARGOS LTD,5310,Clothing uniforms and laundry,199.99,0.00,199.99
Regeneration and Local Services,Economic Development and Housing,030737,Durham Works Flexible Fund,Supplies and Services,328041,Clothing Uniforms and Laundry,16-Oct-2017,000006598145343,RIVER ISLAND 822,5691,Clothing uniforms and laundry,60.05,0.00,60.05
Regeneration and Local Services,Economic Development and Housing,030737,Durham Works Flexible Fund,Supplies and Services,304259,Equipment and Materials,16-Oct-2017,000006598145347,SPORTSDIRECT 387,5941,Equipment-purchase and rental,52.98,0.00,52.98
Regeneration and Local Services,Culture & Sport,011060,Hardwick Park Catering,Supplies and Services,324117,Provisions,16-Oct-2017,000006598145367,JR HOLLAND FOODSERVICE,5422,Catering costs - provisions,34.66,0.00,34.66
Regeneration and Local Services,Direct Services,021234,Catering - Locomotion,Supplies and Services,324117,Provisions,16-Oct-2017,000006598145385,WWW.ADELIEFOODS.CO.UK,5499,Catering costs - provisions,72.36,0.00,72.36
Regeneration and Local Services,Direct Services,021234,Catering - Locomotion,Supplies and Services,324117,Provisions,16-Oct-2017,000006598145389,WWW.ADELIEFOODS.CO.UK,5499,Catering costs - provisions,35.28,0.00,35.28
Regeneration and Local Services,Direct Services,021234,Catering - Locomotion,Supplies and Services,324117,Provisions,16-Oct-2017,000006598145393,WWW.ADELIEFOODS.CO.UK,5499,Catering costs - provisions,35.28,0.00,35.28
Regeneration and Local Services,Direct Services,021234,Catering - Locomotion,Supplies and Services,324117,Provisions,16-Oct-2017,000006598145397,WWW.ADELIEFOODS.CO.UK,5499,Catering costs - provisions,35.28,0.00,35.28
Regeneration and Local Services,Direct Services,021234,Catering - Locomotion,Supplies and Services,324117,Provisions,16-Oct-2017,000006598145401,WWW.ADELIEFOODS.CO.UK,5499,Catering costs - provisions,29.25,0.00,29.25
Regeneration and Local Services,Direct Services,021234,Catering - Locomotion,Supplies and Services,324117,Provisions,16-Oct-2017,000006598145403,WWW.ADELIEFOODS.CO.UK,5499,Catering costs - provisions,14.61,0.00,14.61
Regeneration and Local Services,Direct Services,021234,Catering - Locomotion,Supplies and Services,324117,Provisions,16-Oct-2017,000006598145409,JR HOLLAND FOODSERVICE,5422,Catering costs - provisions,5.95,0.00,5.95
Regeneration and Local Services,Direct Services,010525,Catering - Green Lane,Supplies and Services,324117,Provisions,16-Oct-2017,000006598145435,WWW.ADELIEFOODS.CO.UK,5499,Catering costs - provisions,53.95,0.00,53.95
Regeneration and Local Services,Direct Services,010525,Catering - Green Lane,Supplies and Services,324117,Provisions,16-Oct-2017,000006598145437,WWW.ADELIEFOODS.CO.UK,5499,Catering costs - provisions,36.90,0.00,36.90
Regeneration and Local Services,Direct Services,010525,Catering - Green Lane,Supplies and Services,324117,Provisions,16-Oct-2017,000006598145443,WWW.ADELIEFOODS.CO.UK,5499,Catering costs - provisions,13.06,0.00,13.06
Children and Young Peoples Services,Head of Looked After Provision Permanence and Care Leavers,085333,Coxhoe Satelite Home,Supplies and Services,312011,Newspapers Books and Periodicals,16-Oct-2017,000006598145509,Amazon EU,5969,Books-school library,17.99,0.00,17.99
Children and Young Peoples Services,Head of Looked After Provision Permanence and Care Leavers,085333,Coxhoe Satelite Home,Supplies and Services,312011,Newspapers Books and Periodicals,16-Oct-2017,000006598145513,Amazon EU,5969,Books-school library,149.00,0.00,149.00
Adult and Health Services,Head of Adults,055301,Stanley Pathways,Supplies and Services,324117,Provisions,16-Oct-2017,000006598145515,ASDA SUPERSTORE,5411,Catering costs - provisions,2.97,0.00,2.97
Regeneration and Local Services,Economic Development and Housing,030737,Durham Works Flexible Fund,Transport,235057,Public Transport,16-Oct-2017,000006598145543,WWW.SIMPLYGO.COM,4131,Staff travelling,92.00,0.00,92.00
Regeneration and Local Services,Culture & Sport,054399,Local Delivery-Libraries,Supplies and Services,312011,Newspapers Books and Periodicals,16-Oct-2017,000006598145553,Amazon EU,5969,Books-school library,89.85,0.00,89.85
Children and Young Peoples Services,Head of Early Help Assessment and Safeguarding,088001,Peterlee Locality,Supplies and Services,340001,Postages,16-Oct-2017,000006598145639,UPS LTD,4215,Postages,"1,183.18",0.00,1183.18
Regeneration and Local Services,Culture & Sport,054235,Bishop Auckland Town Hall Cafe,Supplies and Services,324117,Provisions,16-Oct-2017,000006598145641,WWW.ADELIEFOODS.CO.UK,5499,Catering costs - provisions,107.64,0.00,107.64
Regeneration and Local Services,Culture & Sport,054235,Bishop Auckland Town Hall Cafe,Supplies and Services,324117,Provisions,16-Oct-2017,000006598145645,JR HOLLAND FOODSERVICE,5422,Catering costs - provisions,15.62,0.00,15.62
Children and Young Peoples Services,Head of Looked After Provision Permanence and Care Leavers,085333,Coxhoe Satelite Home,Supplies and Services,304221,Equipment and Materials,16-Oct-2017,000006598145655,WARD BROS(PLANT HIRE)L,7394,Direct materials,156.00,0.00,156.00
Regeneration and Local Services,Culture & Sport,011086,Positive Futures,Supplies and Services,324117,Provisions,16-Oct-2017,000006598145689,ASDA STORES,5411,Catering costs - provisions,12.10,0.00,12.10
Regeneration and Local Services,Economic Development and Housing,030737,Durham Works Flexible Fund,Supplies and Services,324001,Provisions,16-Oct-2017,000006598145725,WINE CELLAR,5921,Bar supplies,56.00,0.00,56.00
Adult and Health Services,Head of Adults,051622,OP/PD Dales,Supplies and Services,340001,Postages,16-Oct-2017,000006598145735,ROYAL MAIL ONLINE SHOP,9402,Postages,168.00,0.00,168.00
Resources,Legal & Democratic Services,067910,Democratic Representation,Supplies and Services,352001,Conference Expenses,16-Oct-2017,000006598145737,WWW.ARCONLINE.COUK,5970,Conferencesseminars fees etc,76.50,0.00,76.50
Regeneration and Local Services,Direct Services,021235,Catering - Wharton Park,Supplies and Services,324117,Provisions,16-Oct-2017,000006598145741,WWW.ADELIEFOODS.CO.UK,5499,Catering costs - provisions,33.13,0.00,33.13
Regeneration and Local Services,Direct Services,021235,Catering - Wharton Park,Supplies and Services,324117,Provisions,16-Oct-2017,000006598145745,WWW.ADELIEFOODS.CO.UK,5499,Catering costs - provisions,16.99,0.00,16.99
Regeneration and Local Services,Direct Services,021235,Catering - Wharton Park,Supplies and Services,324117,Provisions,16-Oct-2017,000006598145747,WWW.ADELIEFOODS.CO.UK,5499,Catering costs - provisions,16.79,0.00,16.79
Regeneration and Local Services,Direct Services,021235,Catering - Wharton Park,Supplies and Services,324117,Provisions,16-Oct-2017,000006598145751,JR HOLLAND FOODSERVICE,5422,Catering costs - provisions,13.27,0.00,13.27
Adult and Health Services,Head of Adults,055309,Peterlee Pathways,Supplies and Services,340001,Postages,16-Oct-2017,000006598145765,POST OFFICE COUNTER,9402,Postages,7.80,0.00,7.80
Regeneration and Local Services,Economic Development and Housing,030737,Durham Works Flexible Fund,Supplies and Services,328041,Clothing Uniforms and Laundry,16-Oct-2017,000006598145795,MATALAN,5691,Clothing uniforms and laundry,14.05,0.00,14.05
Transformation and Partnerships,Partnerships & Community Engagement Div.,060472,Syrian Vulnerable Persons Scheme,Supplies and Services,328041,Clothing Uniforms and Laundry,16-Oct-2017,000006598145799,Argos Durham Arnis,5310,Clothing uniforms and laundry,77.89,12.98,64.91
Regeneration and Local Services,Spatial Policy Planning Assets & Environment,031200,North Pennines Core,Supplies and Services,304999,Equipment and Materials,16-Oct-2017,000006598145809,AMAZON UK PRIME AMZN.C,5968,Misc equipment tools and materials,7.99,0.00,7.99
Children and Young Peoples Services,Head of Early Help Assessment and Safeguarding,085801,CDYOS - Support,Supplies and Services,312011,Newspapers Books and Periodicals,16-Oct-2017,000006598145823,Amazon UK Marketplace,5942,Books-school library,20.61,0.00,20.61
Adult and Health Services,Head of Adults,055309,Peterlee Pathways,Supplies and Services,332047,Printing Stationery and Gen Off Exps,16-Oct-2017,000006598145827,GODFREY SYRETT LTD,5021,Stationery,172.80,28.80,144.00
Regeneration and Local Services,Economic Development and Housing,031576,B& B - Temp Accom,Employees,040149,Recruitment Instruction and Training,16-Oct-2017,000006601707389,PREMIER INN,3811,Training-all costs,67.00,11.17,55.83
Regeneration and Local Services,Economic Development and Housing,030749,Employability - Youth Contract,Supplies and Services,328041,Clothing Uniforms and Laundry,16-Oct-2017,000006601707393,WWW.TOPMAN.COM,5691,Clothing uniforms and laundry,34.00,0.00,34.00
Children and Young Peoples Services,Head of Early Help Assessment and Safeguarding,071445,Chester le Street One Point Hub,Supplies and Services,352001,Conference Expenses,16-Oct-2017,000006601707493,TVLICENSING.CO.UK,7392,Conferencesseminars fees etc,147.00,0.00,147.00
Children and Young Peoples Services,Childrens Services Operational Support,052711,CYPS - Development and Learning,Supplies and Services,384999,Miscellaneous Expenses,16-Oct-2017,000006601707569,ZAZZLE GBP,5399,Other expenses,406.28,0.00,406.28
Regeneration and Local Services,Culture & Sport,054812,Gala Theatre - Catering etc,Supplies and Services,324117,Provisions,16-Oct-2017,000006606282747,BATLEYS PERTH,5300,Catering costs - provisions,92.46,15.41,77.05
Regeneration and Local Services,Culture & Sport,054812,Gala Theatre - Catering etc,Supplies and Services,324117,Provisions,16-Oct-2017,000006606282747 - 1,BATLEYS PERTH,5300,Catering costs - provisions,122.98,,122.98
Regeneration and Local Services,Direct Services,021235,Catering - Wharton Park,Supplies and Services,324117,Provisions,16-Oct-2017,000006606283441,BATLEYS PERTH,5300,Catering costs - provisions,98.76,16.46,82.30
Regeneration and Local Services,Direct Services,021235,Catering - Wharton Park,Supplies and Services,324117,Provisions,16-Oct-2017,000006606283441 - 1,BATLEYS PERTH,5300,Catering costs - provisions,17.51,,17.51
Children and Young Peoples Services,Head of Looked After Provision Permanence and Care Leavers,085957,Secure Management,Supplies and Services,304403,Equipment and Materials,17-Oct-2017,000006601707247,VIVANTAGE,5999,Other consumables,40.19,0.00,40.19
Regeneration and Local Services,Direct Services,021242,Catering - County Hall,Supplies and Services,324117,Provisions,17-Oct-2017,000006601707305,JR HOLLAND FOODSERVICE,5422,Catering costs - provisions,61.98,0.00,61.98
Regeneration and Local Services,Direct Services,021242,Catering - County Hall,Supplies and Services,324117,Provisions,17-Oct-2017,000006601707309,JR HOLLAND FOODSERVICE,5422,Catering costs - provisions,6.58,0.00,6.58
Regeneration and Local Services,Culture & Sport,054812,Gala Theatre - Catering etc,Supplies and Services,324117,Provisions,17-Oct-2017,000006601707325,JR HOLLAND FOODSERVICE,5422,Catering costs - provisions,20.81,0.00,20.81
Children and Young Peoples Services,Head of Early Help Assessment and Safeguarding,085511,Emergency Duty Team,Supplies and Services,352001,Conference Expenses,17-Oct-2017,000006601707347,BALMORAL GUEST HOUSE,7011,Conferencesseminars fees etc,40.00,0.00,40.00
Children and Young Peoples Services,Head of Looked After Provision Permanence and Care Leavers,085362,LAC & Permanence Team 2,Supplies and Services,384871,Miscellaneous Expenses,17-Oct-2017,000006601707361,WWW.BATTLEZONEPAINTBAL,7032,Training-other activities,15.00,0.00,15.00
Children and Young Peoples Services,Head of Looked After Provision Permanence and Care Leavers,085361,LAC & Permanence Team 1,Supplies and Services,384999,Miscellaneous Expenses,17-Oct-2017,000006601707363,GRO HM PASSPORT OFFICE,9399,Other expenses,37.00,0.00,37.00
Children and Young Peoples Services,Head of Looked After Provision Permanence and Care Leavers,085333,Coxhoe Satelite Home,Supplies and Services,332047,Printing Stationery and Gen Off Exps,17-Oct-2017,000006601707367,SHOWCASE TEESIDE,7832,Stationery,19.10,0.00,19.10
Children and Young Peoples Services,Head of Education,071732,Dean Bank Childcare,Supplies and Services,312011,Newspapers Books and Periodicals,17-Oct-2017,000006601707417,THE BOOK PEOPLE,5942,Books-school library,53.50,0.00,53.50
Regeneration and Local Services,Culture & Sport,054813,Gala Theatre - Technical,Supplies and Services,340001,Postages,17-Oct-2017,000006601707421,PARCEL2GO.COM LTD,4215,Postages,26.11,4.35,21.76
Regeneration and Local Services,Spatial Policy Planning Assets & Environment,031204,North Pennines Nectarworks,Supplies and Services,340001,Postages,17-Oct-2017,000006601707429,THE POST OFFICE,9402,Postages,15.60,0.00,15.60
Regeneration and Local Services,Economic Development and Housing,030554,International Relations,Transport,235057,Public Transport,17-Oct-2017,000006601707439,WALKERGATE CAR PAR,7523,Staff travelling,1.80,0.00,1.80
Regeneration and Local Services,Economic Development and Housing,030737,Durham Works Flexible Fund,Supplies and Services,348037,Subsistence,17-Oct-2017,000006601707471,WWW.SIMPLYGO.COM,4131,Subsistence,13.00,0.00,13.00
Regeneration and Local Services,Economic Development and Housing,030737,Durham Works Flexible Fund,Supplies and Services,304259,Equipment and Materials,17-Oct-2017,000006601707481,SCREWFIX DIRECT,5211,Equipment-purchase and rental,254.98,42.50,212.48
Regeneration and Local Services,Economic Development and Housing,030737,Durham Works Flexible Fund,Supplies and Services,304259,Equipment and Materials,17-Oct-2017,000006601707485,SCREWFIX DIRECT,5211,Equipment-purchase and rental,90.95,15.16,75.79
